Workbook

Sheet Cover
A1: District Type: | G1: ILLINOIS STATE BOARD OF EDUCATION
B2: =IF(ISBLANK(H13),"",IF(VLOOKUP($H$13,Table1[],4,FALSE)="SD","X","0")) -> X | C2: School District | G2: School Business Services Division
B3: =IF(ISBLANK(H13),"",IF(VLOOKUP($H$13,Table1[],4,FALSE)="JA","X","0")) -> 0 | C3: Joint Agreement | P3: ='DeficitBudgetSum Calc 22'!D7 & " " -> Unbalanced budget; however, a Deficit Reduction Plan is not required at this time.
G4: SCHOOL DISTRICT/JOINT AGREEMENT BUDGET FORM *
A5: Accounting Basis: | G5: ="July 1, "&'B23'!E2-1 -> July 1, 2022 | K5: ="- June 30, "&'B23'!E2 -> - June 30, 2023
B6: Cash
C10: Date of Amended Budget: | H10: 06/12/2023
H11: (MM/DD/YY)
C13: District Name: | H13: Scott-Morgan CUSD 2 | Y13: =IF(H14<>"Select dist name from drop-down on line above",1,0) -> 1
C14: District RCDT No: | H14: =IFERROR(VLOOKUP($H$13,Table1[],2,FALSE),"Select dist name from drop-down on line above") -> 1086002026 | P14: =_xlfn.IFNA(VLOOKUP(H13,Table1[],6),"") -> 01-086-0020-26
C16: ="If your FY"&'B23'!E2-1 -> If your FY2022 | E16: ="AFR states that you need to do a deficit reduction plan and your FY"&'B23'!E2 -> AFR states that you need to do a deficit reduction plan and your FY2023 | N16: budget is balanced, please state the
E17: measures you took to have your budget become balanced. (Bckgrnd-Assumpt 25-26)
C24: Budget of | E24: =IF(H13=" Click here to choose your district from drop-down list","",H13) -> Scott-Morgan CUSD 2 | L24: , County of | N24: =IFERROR(VLOOKUP($H$13,'District Dropdown'!$B$2:$F$996,5,FALSE),"") -> Scott/Morgan | R24: ,
B25: State of Illinois, for the Fiscal Year beginning | I25: ="July 1, "&'B23'!E2-1 -> July 1, 2022 | L25: and ending | N25: ="June 30, "&'B23'!E2 -> June 30, 2023 | R25: .
C27: WHEREAS the Board of Education of | H27: =IF(H13=" Click here to choose your district from drop-down list","",H13) -> Scott-Morgan CUSD 2 | S27: ,
A28: County of | D28: =N24 -> Scott/Morgan | H28: , | I28: State of Illinois, caused to be prepared in tentative form a budget, and the Secretary
A29: of this Board has made the same conveniently available to public inspection for at least thirty days prior to final action thereon;
C31: AND WHEREAS a public hearing was held as to such budget on the | K31: 12th | L31: day of | M31: June | P31: , 20 | Q31: 23 | R31: ,
A32: notice of said hearing was given at least thirty days prior thereto as required by law, and all other legal requirements have been complied with;
C34: NOW, THEREFORE, Be it resolved by the Board of Education of said district as follows:
C36: Section 1: That the fiscal year of this school district be and the same hereby is fixed and declared to be
A37: beginning | E37: =I25 -> July 1, 2022 | H37: and ending | J37: =N25 -> June 30, 2023 | M37: .
C39: Section 2: That the following budget containing an estimate of amounts available in each Fund, separately, and expenditures from each be
A40: and the same is hereby adopted as the budget of this school district for said fiscal year.
A42: ADOPTION OF BUDGET
C43: The budget shall be approved and signed below by members of the School Board. Adopted this | N43: 12th | O43: day of | P43: June | S43: , 20 | T43: 23
A44: by a roll call vote of | E44: 5 | G44: Yeas, and | H44: 0 | I44: Nays, to wit:
E48: ** MEMBERS VOTING YEA: | K48: ** MEMBERS VOTING NAY:
E49: Gary Westermeyer
E50: Terry Kunkel
E51: Roger Barnett
E52: Matt Bangert
E53: Drew Barnett
D60: * | E60: Based on the 23 Illinois Administrative Code-Part 100 and inconformity with Section 17-1 of the School Code.
D61: ** | E61: Type in the members who voted "YEA" nor "NAY". Actual school board member signatures are not required for electronic submission.
D63: (1) | E63: A certified copy of this document must be filed with the county clerk within 30 days of adoption as required
E64: by Section 18-50 of the Property Tax Code (35 ILCS 200/18-50).
D65: (2) | E65: Districts are required to submit the adopted/amended budget electronically to ISBE within 30 days of adoption or by October 30,
E66: whichever comes first. Budgets are submitted to School Finance Report (SFR): | M66: https://sec1.isbe.net/attachmgr/default.aspx
E67: Please type the member signatures before submitting to ISBE. We do not accept PDF copies.
C70: SD50-36/JA50-39 | E70: 5/22
C71: =H13 -> Scott-Morgan CUSD 2
C72: =H14 -> 1086002026

Sheet District Dropdown (hidden)
A1: Search hits for VLOOKUP: | B1: School District | C1: RCDT | D1: Type | E1: Dist Type | F1: County | G1: RCDTDash | I1: Offset for validation_list: | J1: Dropdown Menu:
A2: =IF(ISNUMBER(SEARCH(Cover!$H$13,Table1[[#This Row],[School District]])),MAX($A$1:A1)+1,0) -> 0 | B2: Click here to choose your district from drop-down list | C2: Select dist name from drop-down on line above | I2: =OFFSET($J$2,,,COUNTIF($J$2:$J$996,"?*")) -> Scott-Morgan CUSD 2 | J2: =IFERROR(VLOOKUP(ROWS($J$2:J2),$A$2:$B$996,2,FALSE),"") -> Scott-Morgan CUSD 2
A3: =IF(ISNUMBER(SEARCH(Cover!$H$13,Table1[[#This Row],[School District]])),MAX($A$1:A2)+1,0) -> 0 | B3: Abingdon-Avon CUSD 276 | C3: 33048276026 | D3: 26 | E3: =IF(OR(Table1[[#This Row],[Type]]=0,Table1[[#This Row],[Type]]>=40),"JA","SD") -> SD | F3: Knox | G3: 33-048-2760-26 | J3: =IFERROR(VLOOKUP(ROWS($J$2:J3),$A$2:$B$996,2,FALSE),"") -> 
A4: =IF(ISNUMBER(SEARCH(Cover!$H$13,Table1[[#This Row],[School District]])),MAX($A$1:A3)+1,0) -> 0 | B4: A-C Central CUSD 262 | C4: 1009262026 | D4: 26 | E4: =IF(OR(Table1[[#This Row],[Type]]=0,Table1[[#This Row],[Type]]>=40),"JA","SD") -> SD | F4: Cass/Sangamon/Menard/Morgan | G4: 01-009-2620-26 | J4: =IFERROR(VLOOKUP(ROWS($J$2:J4),$A$2:$B$996,2,FALSE),"") -> 
A5: =IF(ISNUMBER(SEARCH(Cover!$H$13,Table1[[#This Row],[School District]])),MAX($A$1:A4)+1,0) -> 0 | B5: Addison SD 4 | C5: 19022004002 | D5: 2 | E5: =IF(OR(Table1[[#This Row],[Type]]=0,Table1[[#This Row],[Type]]>=40),"JA","SD") -> SD | F5: DuPage | G5: 19-022-0040-02 | J5: =IFERROR(VLOOKUP(ROWS($J$2:J5),$A$2:$B$996,2,FALSE),"") -> 
A6: =IF(ISNUMBER(SEARCH(Cover!$H$13,Table1[[#This Row],[School District]])),MAX($A$1:A5)+1,0) -> 0 | B6: Adlai E Stevenson HSD 125 | C6: 34049125013 | D6: 13 | E6: =IF(OR(Table1[[#This Row],[Type]]=0,Table1[[#This Row],[Type]]>=40),"JA","SD") -> SD | F6: Lake | G6: 34-049-1250-13 | J6: =IFERROR(VLOOKUP(ROWS($J$2:J6),$A$2:$B$996,2,FALSE),"") -> 
A7: =IF(ISNUMBER(SEARCH(Cover!$H$13,Table1[[#This Row],[School District]])),MAX($A$1:A6)+1,0) -> 0 | B7: AERO Spec Ed Coop | C7: 7016806060 | D7: 60 | E7: =IF(OR(Table1[[#This Row],[Type]]=0,Table1[[#This Row],[Type]]>=40),"JA","SD") -> JA | F7: Cook | G7: 07-016-8060-60 | J7: =IFERROR(VLOOKUP(ROWS($J$2:J7),$A$2:$B$996,2,FALSE),"") -> 
A8: =IF(ISNUMBER(SEARCH(Cover!$H$13,Table1[[#This Row],[School District]])),MAX($A$1:A7)+1,0) -> 0 | B8: Akin CCSD 91 | C8: 21028091004 | D8: 4 | E8: =IF(OR(Table1[[#This Row],[Type]]=0,Table1[[#This Row],[Type]]>=40),"JA","SD") -> SD | F8: Franklin | G8: 21-028-0910-04 | J8: =IFERROR(VLOOKUP(ROWS($J$2:J8),$A$2:$B$996,2,FALSE),"") -> 
A9: =IF(ISNUMBER(SEARCH(Cover!$H$13,Table1[[#This Row],[School District]])),MAX($A$1:A8)+1,0) -> 0 | B9: Albers SD 63 | C9: 13014063002 | D9: 2 | E9: =IF(OR(Table1[[#This Row],[Type]]=0,Table1[[#This Row],[Type]]>=40),"JA","SD") -> SD | F9: Clinton | G9: 13-014-0630-02 | J9: =IFERROR(VLOOKUP(ROWS($J$2:J9),$A$2:$B$996,2,FALSE),"") -> 
A10: =IF(ISNUMBER(SEARCH(Cover!$H$13,Table1[[#This Row],[School District]])),MAX($A$1:A9)+1,0) -> 0 | B10: Alden Hebron SD 19 | C10: 44063019024 | D10: 24 | E10: =IF(OR(Table1[[#This Row],[Type]]=0,Table1[[#This Row],[Type]]>=40),"JA","SD") -> SD | F10: McHenry | G10: 44-063-0190-24 | J10: =IFERROR(VLOOKUP(ROWS($J$2:J10),$A$2:$B$996,2,FALSE),"") -> 
A11: =IF(ISNUMBER(SEARCH(Cover!$H$13,Table1[[#This Row],[School District]])),MAX($A$1:A10)+1,0) -> 0 | B11: Allendale CCSD 17 | C11: 20093017024 | D11: 24 | E11: =IF(OR(Table1[[#This Row],[Type]]=0,Table1[[#This Row],[Type]]>=40),"JA","SD") -> SD | F11: Wabash | G11: 20-093-0170-24 | J11: =IFERROR(VLOOKUP(ROWS($J$2:J11),$A$2:$B$996,2,FALSE),"") -> 
A12: =IF(ISNUMBER(SEARCH(Cover!$H$13,Table1[[#This Row],[School District]])),MAX($A$1:A11)+1,0) -> 0 | B12: Allen-Otter Creek CCSD 65 | C12: 35050065004 | D12: 4 | E12: =IF(OR(Table1[[#This Row],[Type]]=0,Table1[[#This Row],[Type]]>=40),"JA","SD") -> SD | F12: LaSalle/Livingston | G12: 35-050-0650-04 | J12: =IFERROR(VLOOKUP(ROWS($J$2:J12),$A$2:$B$996,2,FALSE),"") -> 
A13: =IF(ISNUMBER(SEARCH(Cover!$H$13,Table1[[#This Row],[School District]])),MAX($A$1:A12)+1,0) -> 0 | B13: Alsip-Hazlgrn-Oaklwn SD 126 | C13: 7016126002 | D13: 2 | E13: =IF(OR(Table1[[#This Row],[Type]]=0,Table1[[#This Row],[Type]]>=40),"JA","SD") -> SD | F13: Cook | G13: 07-016-1260-02 | J13: =IFERROR(VLOOKUP(ROWS($J$2:J13),$A$2:$B$996,2,FALSE),"") -> 
A14: =IF(ISNUMBER(SEARCH(Cover!$H$13,Table1[[#This Row],[School District]])),MAX($A$1:A13)+1,0) -> 0 | B14: Altamont CUSD 10 | C14: 3025010026 | D14: 26 | E14: =IF(OR(Table1[[#This Row],[Type]]=0,Table1[[#This Row],[Type]]>=40),"JA","SD") -> SD | F14: Effingham/Fayette | G14: 03-025-0100-26 | J14: =IFERROR(VLOOKUP(ROWS($J$2:J14),$A$2:$B$996,2,FALSE),"") -> 
A15: =IF(ISNUMBER(SEARCH(Cover!$H$13,Table1[[#This Row],[School District]])),MAX($A$1:A14)+1,0) -> 0 | B15: Alton CUSD 11 | C15: 41057011026 | D15: 26 | E15: =IF(OR(Table1[[#This Row],[Type]]=0,Table1[[#This Row],[Type]]>=40),"JA","SD") -> SD | F15: Madison/Jersey | G15: 41-057-0110-26 | J15: =IFERROR(VLOOKUP(ROWS($J$2:J15),$A$2:$B$996,2,FALSE),"") -> 
A16: =IF(ISNUMBER(SEARCH(Cover!$H$13,Table1[[#This Row],[School District]])),MAX($A$1:A15)+1,0) -> 0 | B16: AlWood CUSD 225 | C16: 28037225026 | D16: 26 | E16: =IF(OR(Table1[[#This Row],[Type]]=0,Table1[[#This Row],[Type]]>=40),"JA","SD") -> SD | F16: Henry | G16: 28-037-2250-26 | J16: =IFERROR(VLOOKUP(ROWS($J$2:J16),$A$2:$B$996,2,FALSE),"") -> 
A17: =IF(ISNUMBER(SEARCH(Cover!$H$13,Table1[[#This Row],[School District]])),MAX($A$1:A16)+1,0) -> 0 | B17: Amboy CUSD 272 | C17: 47052272026 | D17: 26 | E17: =IF(OR(Table1[[#This Row],[Type]]=0,Table1[[#This Row],[Type]]>=40),"JA","SD") -> SD | F17: Lee | G17: 47-052-2720-26 | J17: =IFERROR(VLOOKUP(ROWS($J$2:J17),$A$2:$B$996,2,FALSE),"") -> 
A18: =IF(ISNUMBER(SEARCH(Cover!$H$13,Table1[[#This Row],[School District]])),MAX($A$1:A17)+1,0) -> 0 | B18: Anna CCSD 37 | C18: 30091037004 | D18: 4 | E18: =IF(OR(Table1[[#This Row],[Type]]=0,Table1[[#This Row],[Type]]>=40),"JA","SD") -> SD | F18: Union | G18: 30-091-0370-04 | J18: =IFERROR(VLOOKUP(ROWS($J$2:J18),$A$2:$B$996,2,FALSE),"") -> 
A19: =IF(ISNUMBER(SEARCH(Cover!$H$13,Table1[[#This Row],[School District]])),MAX($A$1:A18)+1,0) -> 0 | B19: Anna Jonesboro CHSD 81 | C19: 30091081016 | D19: 16 | E19: =IF(OR(Table1[[#This Row],[Type]]=0,Table1[[#This Row],[Type]]>=40),"JA","SD") -> SD | F19: Union | G19: 30-091-0810-16 | J19: =IFERROR(VLOOKUP(ROWS($J$2:J19),$A$2:$B$996,2,FALSE),"") -> 
A20: =IF(ISNUMBER(SEARCH(Cover!$H$13,Table1[[#This Row],[School District]])),MAX($A$1:A19)+1,0) -> 0 | B20: Annawan CUSD 226 | C20: 28037226026 | D20: 26 | E20: =IF(OR(Table1[[#This Row],[Type]]=0,Table1[[#This Row],[Type]]>=40),"JA","SD") -> SD | F20: Henry/Bureau | G20: 28-037-2260-26 | J20: =IFERROR(VLOOKUP(ROWS($J$2:J20),$A$2:$B$996,2,FALSE),"") -> 
A21: =IF(ISNUMBER(SEARCH(Cover!$H$13,Table1[[#This Row],[School District]])),MAX($A$1:A20)+1,0) -> 0 | B21: Antioch CCSD 34 | C21: 34049034004 | D21: 4 | E21: =IF(OR(Table1[[#This Row],[Type]]=0,Table1[[#This Row],[Type]]>=40),"JA","SD") -> SD | F21: Lake | G21: 34-049-0340-04 | J21: =IFERROR(VLOOKUP(ROWS($J$2:J21),$A$2:$B$996,2,FALSE),"") -> 
A22: =IF(ISNUMBER(SEARCH(Cover!$H$13,Table1[[#This Row],[School District]])),MAX($A$1:A21)+1,0) -> 0 | B22: Aptakisic-Tripp CCSD 102 | C22: 34049102004 | D22: 4 | E22: =IF(OR(Table1[[#This Row],[Type]]=0,Table1[[#This Row],[Type]]>=40),"JA","SD") -> SD | F22: Lake | G22: 34-049-1020-04 | J22: =IFERROR(VLOOKUP(ROWS($J$2:J22),$A$2:$B$996,2,FALSE),"") -> 
A23: =IF(ISNUMBER(SEARCH(Cover!$H$13,Table1[[#This Row],[School District]])),MAX($A$1:A22)+1,0) -> 0 | B23: Arbor Park SD 145 | C23: 7016145002 | D23: 2 | E23: =IF(OR(Table1[[#This Row],[Type]]=0,Table1[[#This Row],[Type]]>=40),"JA","SD") -> SD | F23: Cook | G23: 07-016-1450-02 | J23: =IFERROR(VLOOKUP(ROWS($J$2:J23),$A$2:$B$996,2,FALSE),"") -> 
A24: =IF(ISNUMBER(SEARCH(Cover!$H$13,Table1[[#This Row],[School District]])),MAX($A$1:A23)+1,0) -> 0 | B24: Arcola CUSD 306 | C24: 11021306026 | D24: 26 | E24: =IF(OR(Table1[[#This Row],[Type]]=0,Table1[[#This Row],[Type]]>=40),"JA","SD") -> SD | F24: Douglas | G24: 11-021-3060-26 | J24: =IFERROR(VLOOKUP(ROWS($J$2:J24),$A$2:$B$996,2,FALSE),"") -> 
A25: =IF(ISNUMBER(SEARCH(Cover!$H$13,Table1[[#This Row],[School District]])),MAX($A$1:A24)+1,0) -> 0 | B25: Argenta-Oreana CUSD 1 | C25: 39055001026 | D25: 26 | E25: =IF(OR(Table1[[#This Row],[Type]]=0,Table1[[#This Row],[Type]]>=40),"JA","SD") -> SD | F25: Macon/DeWitt | G25: 39-055-0010-26 | J25: =IFERROR(VLOOKUP(ROWS($J$2:J25),$A$2:$B$996,2,FALSE),"") -> 
A26: =IF(ISNUMBER(SEARCH(Cover!$H$13,Table1[[#This Row],[School District]])),MAX($A$1:A25)+1,0) -> 0 | B26: Argo CHSD 217 | C26: 7016217016 | D26: 16 | E26: =IF(OR(Table1[[#This Row],[Type]]=0,Table1[[#This Row],[Type]]>=40),"JA","SD") -> SD | F26: Cook | G26: 07-016-2170-16 | J26: =IFERROR(VLOOKUP(ROWS($J$2:J26),$A$2:$B$996,2,FALSE),"") -> 
A27: =IF(ISNUMBER(SEARCH(Cover!$H$13,Table1[[#This Row],[School District]])),MAX($A$1:A26)+1,0) -> 0 | B27: Arlington Heights SD 25 | C27: 5016025002 | D27: 2 | E27: =IF(OR(Table1[[#This Row],[Type]]=0,Table1[[#This Row],[Type]]>=40),"JA","SD") -> SD | F27: Cook | G27: 05-016-0250-02 | J27: =IFERROR(VLOOKUP(ROWS($J$2:J27),$A$2:$B$996,2,FALSE),"") -> 
A28: =IF(ISNUMBER(SEARCH(Cover!$H$13,Table1[[#This Row],[School District]])),MAX($A$1:A27)+1,0) -> 0 | B28: Armstrong Twp HSD 225 | C28: 54092225017 | D28: 17 | E28: =IF(OR(Table1[[#This Row],[Type]]=0,Table1[[#This Row],[Type]]>=40),"JA","SD") -> SD | F28: Vermilion/Champaign | G28: 54-092-2250-17 | J28: =IFERROR(VLOOKUP(ROWS($J$2:J28),$A$2:$B$996,2,FALSE),"") -> 
A29: =IF(ISNUMBER(SEARCH(Cover!$H$13,Table1[[#This Row],[School District]])),MAX($A$1:A28)+1,0) -> 0 | B29: Armstrong-Ellis Cons SD 61 | C29: 54092061003 | D29: 3 | E29: =IF(OR(Table1[[#This Row],[Type]]=0,Table1[[#This Row],[Type]]>=40),"JA","SD") -> SD | F29: Vermilion | G29: 54-092-0610-03 | J29: =IFERROR(VLOOKUP(ROWS($J$2:J29),$A$2:$B$996,2,FALSE),"") -> 
A30: =IF(ISNUMBER(SEARCH(Cover!$H$13,Table1[[#This Row],[School District]])),MAX($A$1:A29)+1,0) -> 0 | B30: Arthur CUSD 305 | C30: 11021305026 | D30: 26 | E30: =IF(OR(Table1[[#This Row],[Type]]=0,Table1[[#This Row],[Type]]>=40),"JA","SD") -> SD | F30: Douglas | G30: 11-021-3050-26 | J30: =IFERROR(VLOOKUP(ROWS($J$2:J30),$A$2:$B$996,2,FALSE),"") -> 
A31: =IF(ISNUMBER(SEARCH(Cover!$H$13,Table1[[#This Row],[School District]])),MAX($A$1:A30)+1,0) -> 0 | B31: Ashley CCSD 15 | C31: 13095015004 | D31: 4 | E31: =IF(OR(Table1[[#This Row],[Type]]=0,Table1[[#This Row],[Type]]>=40),"JA","SD") -> SD | F31: Washington | G31: 13-095-0150-04 | J31: =IFERROR(VLOOKUP(ROWS($J$2:J31),$A$2:$B$996,2,FALSE),"") -> 
A32: =IF(ISNUMBER(SEARCH(Cover!$H$13,Table1[[#This Row],[School District]])),MAX($A$1:A31)+1,0) -> 0 | B32: Ashton-Franklin Center CUSD 275 | C32: 47052275026 | D32: 26 | E32: =IF(OR(Table1[[#This Row],[Type]]=0,Table1[[#This Row],[Type]]>=40),"JA","SD") -> SD | F32: Lee | G32: 47-052-2750-26 | J32: =IFERROR(VLOOKUP(ROWS($J$2:J32),$A$2:$B$996,2,FALSE),"") -> 
A33: =IF(ISNUMBER(SEARCH(Cover!$H$13,Table1[[#This Row],[School District]])),MAX($A$1:A32)+1,0) -> 0 | B33: Astoria CUSD 1 | C33: 26029001026 | D33: 26 | E33: =IF(OR(Table1[[#This Row],[Type]]=0,Table1[[#This Row],[Type]]>=40),"JA","SD") -> SD | F33: Fulton | G33: 26-029-0010-26 | J33: =IFERROR(VLOOKUP(ROWS($J$2:J33),$A$2:$B$996,2,FALSE),"") -> 
A34: =IF(ISNUMBER(SEARCH(Cover!$H$13,Table1[[#This Row],[School District]])),MAX($A$1:A33)+1,0) -> 0 | B34: Athens CUSD 213 | C34: 51065213026 | D34: 26 | E34: =IF(OR(Table1[[#This Row],[Type]]=0,Table1[[#This Row],[Type]]>=40),"JA","SD") -> SD | F34: Menard | G34: 51-065-2130-26 | J34: =IFERROR(VLOOKUP(ROWS($J$2:J34),$A$2:$B$996,2,FALSE),"") -> 
A35: =IF(ISNUMBER(SEARCH(Cover!$H$13,Table1[[#This Row],[School District]])),MAX($A$1:A34)+1,0) -> 0 | B35: Atwood Heights SD 125 | C35: 7016125002 | D35: 2 | E35: =IF(OR(Table1[[#This Row],[Type]]=0,Table1[[#This Row],[Type]]>=40),"JA","SD") -> SD | F35: Cook | G35: 07-016-1250-02 | J35: =IFERROR(VLOOKUP(ROWS($J$2:J35),$A$2:$B$996,2,FALSE),"") -> 
A36: =IF(ISNUMBER(SEARCH(Cover!$H$13,Table1[[#This Row],[School District]])),MAX($A$1:A35)+1,0) -> 0 | B36: Auburn CUSD 10 | C36: 51084010026 | D36: 26 | E36: =IF(OR(Table1[[#This Row],[Type]]=0,Table1[[#This Row],[Type]]>=40),"JA","SD") -> SD | F36: Sangamon | G36: 51-084-0100-26 | J36: =IFERROR(VLOOKUP(ROWS($J$2:J36),$A$2:$B$996,2,FALSE),"") -> 
A37: =IF(ISNUMBER(SEARCH(Cover!$H$13,Table1[[#This Row],[School District]])),MAX($A$1:A36)+1,0) -> 0 | B37: Aurora East USD 131 | C37: 31045131022 | D37: 22 | E37: =IF(OR(Table1[[#This Row],[Type]]=0,Table1[[#This Row],[Type]]>=40),"JA","SD") -> SD | F37: Kane | G37: 31-045-1310-22 | J37: =IFERROR(VLOOKUP(ROWS($J$2:J37),$A$2:$B$996,2,FALSE),"") -> 
A38: =IF(ISNUMBER(SEARCH(Cover!$H$13,Table1[[#This Row],[School District]])),MAX($A$1:A37)+1,0) -> 0 | B38: Aurora West USD 129 | C38: 31045129022 | D38: 22 | E38: =IF(OR(Table1[[#This Row],[Type]]=0,Table1[[#This Row],[Type]]>=40),"JA","SD") -> SD | F38: Kane | G38: 31-045-1290-22 | J38: =IFERROR(VLOOKUP(ROWS($J$2:J38),$A$2:$B$996,2,FALSE),"") -> 
A39: =IF(ISNUMBER(SEARCH(Cover!$H$13,Table1[[#This Row],[School District]])),MAX($A$1:A38)+1,0) -> 0 | B39: Aviston SD 21 | C39: 13014021002 | D39: 2 | E39: =IF(OR(Table1[[#This Row],[Type]]=0,Table1[[#This Row],[Type]]>=40),"JA","SD") -> SD | F39: Clinton | G39: 13-014-0210-02 | J39: =IFERROR(VLOOKUP(ROWS($J$2:J39),$A$2:$B$996,2,FALSE),"") -> 
A40: =IF(ISNUMBER(SEARCH(Cover!$H$13,Table1[[#This Row],[School District]])),MAX($A$1:A39)+1,0) -> 0 | B40: Avoca SD 37 | C40: 5016037002 | D40: 2 | E40: =IF(OR(Table1[[#This Row],[Type]]=0,Table1[[#This Row],[Type]]>=40),"JA","SD") -> SD | F40: Cook | G40: 05-016-0370-02 | J40: =IFERROR(VLOOKUP(ROWS($J$2:J40),$A$2:$B$996,2,FALSE),"") -> 
A41: =IF(ISNUMBER(SEARCH(Cover!$H$13,Table1[[#This Row],[School District]])),MAX($A$1:A40)+1,0) -> 0 | B41: Ball Chatham CUSD 5 | C41: 51084005026 | D41: 26 | E41: =IF(OR(Table1[[#This Row],[Type]]=0,Table1[[#This Row],[Type]]>=40),"JA","SD") -> SD | F41: Sangamon | G41: 51-084-0050-26 | J41: =IFERROR(VLOOKUP(ROWS($J$2:J41),$A$2:$B$996,2,FALSE),"") -> 
A42: =IF(ISNUMBER(SEARCH(Cover!$H$13,Table1[[#This Row],[School District]])),MAX($A$1:A41)+1,0) -> 0 | B42: Bannockburn SD 106 | C42: 34049106002 | D42: 2 | E42: =IF(OR(Table1[[#This Row],[Type]]=0,Table1[[#This Row],[Type]]>=40),"JA","SD") -> SD | F42: Lake | G42: 34-049-1060-02 | J42: =IFERROR(VLOOKUP(ROWS($J$2:J42),$A$2:$B$996,2,FALSE),"") -> 
A43: =IF(ISNUMBER(SEARCH(Cover!$H$13,Table1[[#This Row],[School District]])),MAX($A$1:A42)+1,0) -> 0 | B43: Barrington CUSD 220 | C43: 34049220026 | D43: 26 | E43: =IF(OR(Table1[[#This Row],[Type]]=0,Table1[[#This Row],[Type]]>=40),"JA","SD") -> SD | F43: Cook/Lake/Kane/McHenry | G43: 34-049-2200-26 | J43: =IFERROR(VLOOKUP(ROWS($J$2:J43),$A$2:$B$996,2,FALSE),"") -> 
A44: =IF(ISNUMBER(SEARCH(Cover!$H$13,Table1[[#This Row],[School District]])),MAX($A$1:A43)+1,0) -> 0 | B44: Bartelso SD 57 | C44: 13014057002 | D44: 2 | E44: =IF(OR(Table1[[#This Row],[Type]]=0,Table1[[#This Row],[Type]]>=40),"JA","SD") -> SD | F44: Clinton | G44: 13-014-0570-02 | J44: =IFERROR(VLOOKUP(ROWS($J$2:J44),$A$2:$B$996,2,FALSE),"") -> 
A45: =IF(ISNUMBER(SEARCH(Cover!$H$13,Table1[[#This Row],[School District]])),MAX($A$1:A44)+1,0) -> 0 | B45: Bartonville SD 66 | C45: 48072066002 | D45: 2 | E45: =IF(OR(Table1[[#This Row],[Type]]=0,Table1[[#This Row],[Type]]>=40),"JA","SD") -> SD | F45: Peoria | G45: 48-072-0660-02 | J45: =IFERROR(VLOOKUP(ROWS($J$2:J45),$A$2:$B$996,2,FALSE),"") -> 
A46: =IF(ISNUMBER(SEARCH(Cover!$H$13,Table1[[#This Row],[School District]])),MAX($A$1:A45)+1,0) -> 0 | B46: Batavia USD 101 | C46: 31045101022 | D46: 22 | E46: =IF(OR(Table1[[#This Row],[Type]]=0,Table1[[#This Row],[Type]]>=40),"JA","SD") -> SD | F46: Kane | G46: 31-045-1010-22 | J46: =IFERROR(VLOOKUP(ROWS($J$2:J46),$A$2:$B$996,2,FALSE),"") -> 
A47: =IF(ISNUMBER(SEARCH(Cover!$H$13,Table1[[#This Row],[School District]])),MAX($A$1:A46)+1,0) -> 0 | B47: Beach Park CCSD 3 | C47: 34049003004 | D47: 4 | E47: =IF(OR(Table1[[#This Row],[Type]]=0,Table1[[#This Row],[Type]]>=40),"JA","SD") -> SD | F47: Lake | G47: 34-049-0030-04 | J47: =IFERROR(VLOOKUP(ROWS($J$2:J47),$A$2:$B$996,2,FALSE),"") -> 
A48: =IF(ISNUMBER(SEARCH(Cover!$H$13,Table1[[#This Row],[School District]])),MAX($A$1:A47)+1,0) -> 0 | B48: Beardstown CUSD 15 | C48: 1009015026 | D48: 26 | E48: =IF(OR(Table1[[#This Row],[Type]]=0,Table1[[#This Row],[Type]]>=40),"JA","SD") -> SD | F48: Cass | G48: 01-009-0150-26 | J48: =IFERROR(VLOOKUP(ROWS($J$2:J48),$A$2:$B$996,2,FALSE),"") -> 
A49: =IF(ISNUMBER(SEARCH(Cover!$H$13,Table1[[#This Row],[School District]])),MAX($A$1:A48)+1,0) -> 0 | B49: Beecher City CUSD 20 | C49: 3025020026 | D49: 26 | E49: =IF(OR(Table1[[#This Row],[Type]]=0,Table1[[#This Row],[Type]]>=40),"JA","SD") -> SD | F49: Effingham/Fayette/Shelby | G49: 03-025-0200-26 | J49: =IFERROR(VLOOKUP(ROWS($J$2:J49),$A$2:$B$996,2,FALSE),"") -> 
A50: =IF(ISNUMBER(SEARCH(Cover!$H$13,Table1[[#This Row],[School District]])),MAX($A$1:A49)+1,0) -> 0 | B50: Beecher CUSD 200U | C50: 56099200U26 | D50: 26 | E50: =IF(OR(Table1[[#This Row],[Type]]=0,Table1[[#This Row],[Type]]>=40),"JA","SD") -> SD | F50: Will | G50: 56-099-200U-26 | J50: =IFERROR(VLOOKUP(ROWS($J$2:J50),$A$2:$B$996,2,FALSE),"") -> 
A51: =IF(ISNUMBER(SEARCH(Cover!$H$13,Table1[[#This Row],[School District]])),MAX($A$1:A50)+1,0) -> 0 | B51: Belle Valley SD 119 | C51: 50082119002 | D51: 2 | E51: =IF(OR(Table1[[#This Row],[Type]]=0,Table1[[#This Row],[Type]]>=40),"JA","SD") -> SD | F51: St. Clair | G51: 50-082-1190-02 | J51: =IFERROR(VLOOKUP(ROWS($J$2:J51),$A$2:$B$996,2,FALSE),"") -> 
A52: =IF(ISNUMBER(SEARCH(Cover!$H$13,Table1[[#This Row],[School District]])),MAX($A$1:A51)+1,0) -> 0 | B52: Belleville Area Spec Services | C52: 50082801060 | D52: 60 | E52: =IF(OR(Table1[[#This Row],[Type]]=0,Table1[[#This Row],[Type]]>=40),"JA","SD") -> JA | F52: St. Clair | G52: 50-082-8010-60 | J52: =IFERROR(VLOOKUP(ROWS($J$2:J52),$A$2:$B$996,2,FALSE),"") -> 
A53: =IF(ISNUMBER(SEARCH(Cover!$H$13,Table1[[#This Row],[School District]])),MAX($A$1:A52)+1,0) -> 0 | B53: Belleville SD 118 | C53: 50082118002 | D53: 2 | E53: =IF(OR(Table1[[#This Row],[Type]]=0,Table1[[#This Row],[Type]]>=40),"JA","SD") -> SD | F53: St. Clair | G53: 50-082-1180-02 | J53: =IFERROR(VLOOKUP(ROWS($J$2:J53),$A$2:$B$996,2,FALSE),"") -> 
A54: =IF(ISNUMBER(SEARCH(Cover!$H$13,Table1[[#This Row],[School District]])),MAX($A$1:A53)+1,0) -> 0 | B54: Belleville Twp HSD 201 | C54: 50082201017 | D54: 17 | E54: =IF(OR(Table1[[#This Row],[Type]]=0,Table1[[#This Row],[Type]]>=40),"JA","SD") -> SD | F54: St. Clair | G54: 50-082-2010-17 | J54: =IFERROR(VLOOKUP(ROWS($J$2:J54),$A$2:$B$996,2,FALSE),"") -> 
A55: =IF(ISNUMBER(SEARCH(Cover!$H$13,Table1[[#This Row],[School District]])),MAX($A$1:A54)+1,0) -> 0 | B55: Bellwood SD 88 | C55: 6016088002 | D55: 2 | E55: =IF(OR(Table1[[#This Row],[Type]]=0,Table1[[#This Row],[Type]]>=40),"JA","SD") -> SD | F55: Cook | G55: 06-016-0880-02 | J55: =IFERROR(VLOOKUP(ROWS($J$2:J55),$A$2:$B$996,2,FALSE),"") -> 
A56: =IF(ISNUMBER(SEARCH(Cover!$H$13,Table1[[#This Row],[School District]])),MAX($A$1:A55)+1,0) -> 0 | B56: Belvidere CUSD 100 | C56: 4004100026 | D56: 26 | E56: =IF(OR(Table1[[#This Row],[Type]]=0,Table1[[#This Row],[Type]]>=40),"JA","SD") -> SD | F56: Boone/McHenry/DeKalb | G56: 04-004-1000-26 | J56: =IFERROR(VLOOKUP(ROWS($J$2:J56),$A$2:$B$996,2,FALSE),"") -> 
A57: =IF(ISNUMBER(SEARCH(Cover!$H$13,Table1[[#This Row],[School District]])),MAX($A$1:A56)+1,0) -> 0 | B57: Bement CUSD 5 | C57: 39074005026 | D57: 26 | E57: =IF(OR(Table1[[#This Row],[Type]]=0,Table1[[#This Row],[Type]]>=40),"JA","SD") -> SD | F57: Piatt | G57: 39-074-0050-26 | J57: =IFERROR(VLOOKUP(ROWS($J$2:J57),$A$2:$B$996,2,FALSE),"") -> 
A58: =IF(ISNUMBER(SEARCH(Cover!$H$13,Table1[[#This Row],[School District]])),MAX($A$1:A57)+1,0) -> 0 | B58: Benjamin SD 25 | C58: 19022025002 | D58: 2 | E58: =IF(OR(Table1[[#This Row],[Type]]=0,Table1[[#This Row],[Type]]>=40),"JA","SD") -> SD | F58: DuPage | G58: 19-022-0250-02 | J58: =IFERROR(VLOOKUP(ROWS($J$2:J58),$A$2:$B$996,2,FALSE),"") -> 
A59: =IF(ISNUMBER(SEARCH(Cover!$H$13,Table1[[#This Row],[School District]])),MAX($A$1:A58)+1,0) -> 0 | B59: Bensenville SD 2 | C59: 19022002002 | D59: 2 | E59: =IF(OR(Table1[[#This Row],[Type]]=0,Table1[[#This Row],[Type]]>=40),"JA","SD") -> SD | F59: Dupage | G59: 19-022-0020-02 | J59: =IFERROR(VLOOKUP(ROWS($J$2:J59),$A$2:$B$996,2,FALSE),"") -> 
A60: =IF(ISNUMBER(SEARCH(Cover!$H$13,Table1[[#This Row],[School District]])),MAX($A$1:A59)+1,0) -> 0 | B60: Benton CCSD 47 | C60: 21028047004 | D60: 4 | E60: =IF(OR(Table1[[#This Row],[Type]]=0,Table1[[#This Row],[Type]]>=40),"JA","SD") -> SD | F60: Franklin | G60: 21-028-0470-04 | J60: =IFERROR(VLOOKUP(ROWS($J$2:J60),$A$2:$B$996,2,FALSE),"") -> 
A61: =IF(ISNUMBER(SEARCH(Cover!$H$13,Table1[[#This Row],[School District]])),MAX($A$1:A60)+1,0) -> 0 | B61: Benton Cons HSD 103 | C61: 21028103013 | D61: 13 | E61: =IF(OR(Table1[[#This Row],[Type]]=0,Table1[[#This Row],[Type]]>=40),"JA","SD") -> SD | F61: Franklin | G61: 21-028-1030-13 | J61: =IFERROR(VLOOKUP(ROWS($J$2:J61),$A$2:$B$996,2,FALSE),"") -> 
A62: =IF(ISNUMBER(SEARCH(Cover!$H$13,Table1[[#This Row],[School District]])),MAX($A$1:A61)+1,0) -> 0 | B62: Berkeley SD 87 | C62: 6016087002 | D62: 2 | E62: =IF(OR(Table1[[#This Row],[Type]]=0,Table1[[#This Row],[Type]]>=40),"JA","SD") -> SD | F62: Cook | G62: 06-016-0870-02 | J62: =IFERROR(VLOOKUP(ROWS($J$2:J62),$A$2:$B$996,2,FALSE),"") -> 
A63: =IF(ISNUMBER(SEARCH(Cover!$H$13,Table1[[#This Row],[School District]])),MAX($A$1:A62)+1,0) -> 0 | B63: Berwyn North SD 98 | C63: 6016098002 | D63: 2 | E63: =IF(OR(Table1[[#This Row],[Type]]=0,Table1[[#This Row],[Type]]>=40),"JA","SD") -> SD | F63: Cook | G63: 06-016-0980-02 | J63: =IFERROR(VLOOKUP(ROWS($J$2:J63),$A$2:$B$996,2,FALSE),"") -> 
A64: =IF(ISNUMBER(SEARCH(Cover!$H$13,Table1[[#This Row],[School District]])),MAX($A$1:A63)+1,0) -> 0 | B64: Berwyn South SD 100 | C64: 6016100002 | D64: 2 | E64: =IF(OR(Table1[[#This Row],[Type]]=0,Table1[[#This Row],[Type]]>=40),"JA","SD") -> SD | F64: Cook | G64: 06-016-1000-02 | J64: =IFERROR(VLOOKUP(ROWS($J$2:J64),$A$2:$B$996,2,FALSE),"") -> 
A65: =IF(ISNUMBER(SEARCH(Cover!$H$13,Table1[[#This Row],[School District]])),MAX($A$1:A64)+1,0) -> 0 | B65: Bethalto CUSD 8 | C65: 41057008026 | D65: 26 | E65: =IF(OR(Table1[[#This Row],[Type]]=0,Table1[[#This Row],[Type]]>=40),"JA","SD") -> SD | F65: Madison | G65: 41-057-0080-26 | J65: =IFERROR(VLOOKUP(ROWS($J$2:J65),$A$2:$B$996,2,FALSE),"") -> 
A66: =IF(ISNUMBER(SEARCH(Cover!$H$13,Table1[[#This Row],[School District]])),MAX($A$1:A65)+1,0) -> 0 | B66: Bethel SD 82 | C66: 13041082002 | D66: 2 | E66: =IF(OR(Table1[[#This Row],[Type]]=0,Table1[[#This Row],[Type]]>=40),"JA","SD") -> SD | F66: Jefferson | G66: 13-041-0820-02 | J66: =IFERROR(VLOOKUP(ROWS($J$2:J66),$A$2:$B$996,2,FALSE),"") -> 
A67: =IF(ISNUMBER(SEARCH(Cover!$H$13,Table1[[#This Row],[School District]])),MAX($A$1:A66)+1,0) -> 0 | B67: Bi-Cty Spec Ed Coop | C67: 47098000061 | D67: 61 | E67: =IF(OR(Table1[[#This Row],[Type]]=0,Table1[[#This Row],[Type]]>=40),"JA","SD") -> JA | F67: Whiteside | G67: 47-098-0000-61 | J67: =IFERROR(VLOOKUP(ROWS($J$2:J67),$A$2:$B$996,2,FALSE),"") -> 
A68: =IF(ISNUMBER(SEARCH(Cover!$H$13,Table1[[#This Row],[School District]])),MAX($A$1:A67)+1,0) -> 0 | B68: Big Hollow SD 38 | C68: 34049038002 | D68: 2 | E68: =IF(OR(Table1[[#This Row],[Type]]=0,Table1[[#This Row],[Type]]>=40),"JA","SD") -> SD | F68: Lake | G68: 34-049-0380-02 | J68: =IFERROR(VLOOKUP(ROWS($J$2:J68),$A$2:$B$996,2,FALSE),"") -> 
A69: =IF(ISNUMBER(SEARCH(Cover!$H$13,Table1[[#This Row],[School District]])),MAX($A$1:A68)+1,0) -> 0 | B69: Bismarck Henning CUSD | C69: 54092001026 | D69: 26 | E69: =IF(OR(Table1[[#This Row],[Type]]=0,Table1[[#This Row],[Type]]>=40),"JA","SD") -> SD | F69: Vermilion | G69: 54-092-0010-26 | J69: =IFERROR(VLOOKUP(ROWS($J$2:J69),$A$2:$B$996,2,FALSE),"") -> 
A70: =IF(ISNUMBER(SEARCH(Cover!$H$13,Table1[[#This Row],[School District]])),MAX($A$1:A69)+1,0) -> 0 | B70: Bismarck Henning Rossville Alvin Coop HS | C70: 54092800080 | D70: 80 | E70: =IF(OR(Table1[[#This Row],[Type]]=0,Table1[[#This Row],[Type]]>=40),"JA","SD") -> JA | F70: Vermilion | G70: 54-092-8000-80 | J70: =IFERROR(VLOOKUP(ROWS($J$2:J70),$A$2:$B$996,2,FALSE),"") -> 
A71: =IF(ISNUMBER(SEARCH(Cover!$H$13,Table1[[#This Row],[School District]])),MAX($A$1:A70)+1,0) -> 0 | B71: Black Hawk Area Spec Ed Dist | C71: 49081865060 | D71: 60 | E71: =IF(OR(Table1[[#This Row],[Type]]=0,Table1[[#This Row],[Type]]>=40),"JA","SD") -> JA | F71: Rock Island | G71: 49-081-8650-60 | J71: =IFERROR(VLOOKUP(ROWS($J$2:J71),$A$2:$B$996,2,FALSE),"") -> 
A72: =IF(ISNUMBER(SEARCH(Cover!$H$13,Table1[[#This Row],[School District]])),MAX($A$1:A71)+1,0) -> 0 | B72: Bloom Twp HSD 206 | C72: 7016206017 | D72: 17 | E72: =IF(OR(Table1[[#This Row],[Type]]=0,Table1[[#This Row],[Type]]>=40),"JA","SD") -> SD | F72: Cook/Will | G72: 07-016-2060-17 | J72: =IFERROR(VLOOKUP(ROWS($J$2:J72),$A$2:$B$996,2,FALSE),"") -> 
A73: =IF(ISNUMBER(SEARCH(Cover!$H$13,Table1[[#This Row],[School District]])),MAX($A$1:A72)+1,0) -> 0 | B73: Bloomingdale SD 13 | C73: 19022013002 | D73: 2 | E73: =IF(OR(Table1[[#This Row],[Type]]=0,Table1[[#This Row],[Type]]>=40),"JA","SD") -> SD | F73: DuPage | G73: 19-022-0130-02 | J73: =IFERROR(VLOOKUP(ROWS($J$2:J73),$A$2:$B$996,2,FALSE),"") -> 
A74: =IF(ISNUMBER(SEARCH(Cover!$H$13,Table1[[#This Row],[School District]])),MAX($A$1:A73)+1,0) -> 0 | B74: Bloomington Area Career Ctr | C74: 17064087041 | D74: 41 | E74: =IF(OR(Table1[[#This Row],[Type]]=0,Table1[[#This Row],[Type]]>=40),"JA","SD") -> JA | F74: McLean | G74: 17-064-0870-41 | J74: =IFERROR(VLOOKUP(ROWS($J$2:J74),$A$2:$B$996,2,FALSE),"") -> 
A75: =IF(ISNUMBER(SEARCH(Cover!$H$13,Table1[[#This Row],[School District]])),MAX($A$1:A74)+1,0) -> 0 | B75: Bloomington SD 87 | C75: 17064087025 | D75: 25 | E75: =IF(OR(Table1[[#This Row],[Type]]=0,Table1[[#This Row],[Type]]>=40),"JA","SD") -> SD | F75: McLean | G75: 17-064-0870-25 | J75: =IFERROR(VLOOKUP(ROWS($J$2:J75),$A$2:$B$996,2,FALSE),"") -> 
A76: =IF(ISNUMBER(SEARCH(Cover!$H$13,Table1[[#This Row],[School District]])),MAX($A$1:A75)+1,0) -> 0 | B76: Blue Ridge CUSD 18 | C76: 17020018026 | D76: 26 | E76: =IF(OR(Table1[[#This Row],[Type]]=0,Table1[[#This Row],[Type]]>=40),"JA","SD") -> SD | F76: DeWitt | G76: 17-020-0180-26 | J76: =IFERROR(VLOOKUP(ROWS($J$2:J76),$A$2:$B$996,2,FALSE),"") -> 
A77: =IF(ISNUMBER(SEARCH(Cover!$H$13,Table1[[#This Row],[School District]])),MAX($A$1:A76)+1,0) -> 0 | B77: Bluford Unit School District 318 | C77: 13041318027 | D77: 27 | E77: =IF(OR(Table1[[#This Row],[Type]]=0,Table1[[#This Row],[Type]]>=40),"JA","SD") -> SD | F77: Jefferson | G77: 13-041-3180-27 | J77: =IFERROR(VLOOKUP(ROWS($J$2:J77),$A$2:$B$996,2,FALSE),"") -> 
A78: =IF(ISNUMBER(SEARCH(Cover!$H$13,Table1[[#This Row],[School District]])),MAX($A$1:A77)+1,0) -> 0 | B78: BMP Tri Cty Spec Ed Coop | C78: 35059005061 | D78: 61 | E78: =IF(OR(Table1[[#This Row],[Type]]=0,Table1[[#This Row],[Type]]>=40),"JA","SD") -> JA | F78: Bureau | G78: 35-059-0050-61 | J78: =IFERROR(VLOOKUP(ROWS($J$2:J78),$A$2:$B$996,2,FALSE),"") -> 
A79: =IF(ISNUMBER(SEARCH(Cover!$H$13,Table1[[#This Row],[School District]])),MAX($A$1:A78)+1,0) -> 0 | B79: Bond County CUSD 2 | C79: 3003002026 | D79: 26 | E79: =IF(OR(Table1[[#This Row],[Type]]=0,Table1[[#This Row],[Type]]>=40),"JA","SD") -> SD | F79: Bond/Montgomery | G79: 03-003-0020-26 | J79: =IFERROR(VLOOKUP(ROWS($J$2:J79),$A$2:$B$996,2,FALSE),"") -> 
A80: =IF(ISNUMBER(SEARCH(Cover!$H$13,Table1[[#This Row],[School District]])),MAX($A$1:A79)+1,0) -> 0 | B80: Bond Fayette Effingham EFE 410 | C80: 3026741045 | D80: 45 | E80: =IF(OR(Table1[[#This Row],[Type]]=0,Table1[[#This Row],[Type]]>=40),"JA","SD") -> JA | F80: Bond/Christian/Effingham/Fayette/Montgomery | G80: 03-026-7410-45 | J80: =IFERROR(VLOOKUP(ROWS($J$2:J80),$A$2:$B$996,2,FALSE),"") -> 
A81: =IF(ISNUMBER(SEARCH(Cover!$H$13,Table1[[#This Row],[School District]])),MAX($A$1:A80)+1,0) -> 0 | B81: Bourbonnais SD 53 | C81: 32046053002 | D81: 2 | E81: =IF(OR(Table1[[#This Row],[Type]]=0,Table1[[#This Row],[Type]]>=40),"JA","SD") -> SD | F81: Kankakee | G81: 32-046-0530-02 | J81: =IFERROR(VLOOKUP(ROWS($J$2:J81),$A$2:$B$996,2,FALSE),"") -> 
A82: =IF(ISNUMBER(SEARCH(Cover!$H$13,Table1[[#This Row],[School District]])),MAX($A$1:A81)+1,0) -> 0 | B82: Braceville SD 75 | C82: 24032075002 | D82: 2 | E82: =IF(OR(Table1[[#This Row],[Type]]=0,Table1[[#This Row],[Type]]>=40),"JA","SD") -> SD | F82: Grundy | G82: 24-032-0750-02 | J82: =IFERROR(VLOOKUP(ROWS($J$2:J82),$A$2:$B$996,2,FALSE),"") -> 
A83: =IF(ISNUMBER(SEARCH(Cover!$H$13,Table1[[#This Row],[School District]])),MAX($A$1:A82)+1,0) -> 0 | B83: Bradford CUSD 1 | C83: 28088001026 | D83: 26 | E83: =IF(OR(Table1[[#This Row],[Type]]=0,Table1[[#This Row],[Type]]>=40),"JA","SD") -> SD | F83: Stark/Bureau/Marshall | G83: 28-088-0010-26 | J83: =IFERROR(VLOOKUP(ROWS($J$2:J83),$A$2:$B$996,2,FALSE),"") -> 
A84: =IF(ISNUMBER(SEARCH(Cover!$H$13,Table1[[#This Row],[School District]])),MAX($A$1:A83)+1,0) -> 0 | B84: Bradley Bourbonnais CHSD 307 | C84: 32046307016 | D84: 16 | E84: =IF(OR(Table1[[#This Row],[Type]]=0,Table1[[#This Row],[Type]]>=40),"JA","SD") -> SD | F84: Kankakee | G84: 32-046-3070-16 | J84: =IFERROR(VLOOKUP(ROWS($J$2:J84),$A$2:$B$996,2,FALSE),"") -> 
A85: =IF(ISNUMBER(SEARCH(Cover!$H$13,Table1[[#This Row],[School District]])),MAX($A$1:A84)+1,0) -> 0 | B85: Bradley SD 61 | C85: 32046061002 | D85: 2 | E85: =IF(OR(Table1[[#This Row],[Type]]=0,Table1[[#This Row],[Type]]>=40),"JA","SD") -> SD | F85: Kankakee | G85: 32-046-0610-02 | J85: =IFERROR(VLOOKUP(ROWS($J$2:J85),$A$2:$B$996,2,FALSE),"") -> 
A86: =IF(ISNUMBER(SEARCH(Cover!$H$13,Table1[[#This Row],[School District]])),MAX($A$1:A85)+1,0) -> 0 | B86: Breese ESD 12 | C86: 13014012004 | D86: 4 | E86: =IF(OR(Table1[[#This Row],[Type]]=0,Table1[[#This Row],[Type]]>=40),"JA","SD") -> SD | F86: Clinton | G86: 13-014-0120-04 | J86: =IFERROR(VLOOKUP(ROWS($J$2:J86),$A$2:$B$996,2,FALSE),"") -> 
A87: =IF(ISNUMBER(SEARCH(Cover!$H$13,Table1[[#This Row],[School District]])),MAX($A$1:A86)+1,0) -> 0 | B87: Bremen CHSD 228 | C87: 7016228016 | D87: 16 | E87: =IF(OR(Table1[[#This Row],[Type]]=0,Table1[[#This Row],[Type]]>=40),"JA","SD") -> SD | F87: Cook | G87: 07-016-2280-16 | J87: =IFERROR(VLOOKUP(ROWS($J$2:J87),$A$2:$B$996,2,FALSE),"") -> 
A88: =IF(ISNUMBER(SEARCH(Cover!$H$13,Table1[[#This Row],[School District]])),MAX($A$1:A87)+1,0) -> 0 | B88: Brimfield CUSD 309 | C88: 48072309026 | D88: 26 | E88: =IF(OR(Table1[[#This Row],[Type]]=0,Table1[[#This Row],[Type]]>=40),"JA","SD") -> SD | F88: Peoria | G88: 48-072-3090-26 | J88: =IFERROR(VLOOKUP(ROWS($J$2:J88),$A$2:$B$996,2,FALSE),"") -> 
A89: =IF(ISNUMBER(SEARCH(Cover!$H$13,Table1[[#This Row],[School District]])),MAX($A$1:A88)+1,0) -> 0 | B89: Brookfield Lagrange Park SD 95 | C89: 6016095002 | D89: 2 | E89: =IF(OR(Table1[[#This Row],[Type]]=0,Table1[[#This Row],[Type]]>=40),"JA","SD") -> SD | F89: Cook | G89: 06-016-0950-02 | J89: =IFERROR(VLOOKUP(ROWS($J$2:J89),$A$2:$B$996,2,FALSE),"") -> 
A90: =IF(ISNUMBER(SEARCH(Cover!$H$13,Table1[[#This Row],[School District]])),MAX($A$1:A89)+1,0) -> 0 | B90: Brooklyn UD 188 | C90: 50082188022 | D90: 22 | E90: =IF(OR(Table1[[#This Row],[Type]]=0,Table1[[#This Row],[Type]]>=40),"JA","SD") -> SD | F90: St. Clair | G90: 50-082-1880-22 | J90: =IFERROR(VLOOKUP(ROWS($J$2:J90),$A$2:$B$996,2,FALSE),"") -> 
A91: =IF(ISNUMBER(SEARCH(Cover!$H$13,Table1[[#This Row],[School District]])),MAX($A$1:A90)+1,0) -> 0 | B91: Brookwood SD 167 | C91: 7016167002 | D91: 2 | E91: =IF(OR(Table1[[#This Row],[Type]]=0,Table1[[#This Row],[Type]]>=40),"JA","SD") -> SD | F91: Cook | G91: 07-016-1670-02 | J91: =IFERROR(VLOOKUP(ROWS($J$2:J91),$A$2:$B$996,2,FALSE),"") -> 
A92: =IF(ISNUMBER(SEARCH(Cover!$H$13,Table1[[#This Row],[School District]])),MAX($A$1:A91)+1,0) -> 0 | B92: Brown County CUSD 1 | C92: 1005001026 | D92: 26 | E92: =IF(OR(Table1[[#This Row],[Type]]=0,Table1[[#This Row],[Type]]>=40),"JA","SD") -> SD | F92: Brown | G92: 01-005-0010-26 | J92: =IFERROR(VLOOKUP(ROWS($J$2:J92),$A$2:$B$996,2,FALSE),"") -> 
A93: =IF(ISNUMBER(SEARCH(Cover!$H$13,Table1[[#This Row],[School District]])),MAX($A$1:A92)+1,0) -> 0 | B93: Brownstown CUSD 201 | C93: 3026201026 | D93: 26 | E93: =IF(OR(Table1[[#This Row],[Type]]=0,Table1[[#This Row],[Type]]>=40),"JA","SD") -> SD | F93: Fayette | G93: 03-026-2010-26 | J93: =IFERROR(VLOOKUP(ROWS($J$2:J93),$A$2:$B$996,2,FALSE),"") -> 
A94: =IF(ISNUMBER(SEARCH(Cover!$H$13,Table1[[#This Row],[School District]])),MAX($A$1:A93)+1,0) -> 0 | B94: Brussels CUSD 42 | C94: 40007042026 | D94: 26 | E94: =IF(OR(Table1[[#This Row],[Type]]=0,Table1[[#This Row],[Type]]>=40),"JA","SD") -> SD | F94: Calhoun | G94: 40-007-0420-26 | J94: =IFERROR(VLOOKUP(ROWS($J$2:J94),$A$2:$B$996,2,FALSE),"") -> 
A95: =IF(ISNUMBER(SEARCH(Cover!$H$13,Table1[[#This Row],[School District]])),MAX($A$1:A94)+1,0) -> 0 | B95: Buncombe Cons SD 43 | C95: 21044043003 | D95: 3 | E95: =IF(OR(Table1[[#This Row],[Type]]=0,Table1[[#This Row],[Type]]>=40),"JA","SD") -> SD | F95: Johnson | G95: 21-044-0430-03 | J95: =IFERROR(VLOOKUP(ROWS($J$2:J95),$A$2:$B$996,2,FALSE),"") -> 
A96: =IF(ISNUMBER(SEARCH(Cover!$H$13,Table1[[#This Row],[School District]])),MAX($A$1:A95)+1,0) -> 0 | B96: Bunker Hill CUSD 8 | C96: 40056008026 | D96: 26 | E96: =IF(OR(Table1[[#This Row],[Type]]=0,Table1[[#This Row],[Type]]>=40),"JA","SD") -> SD | F96: Macoupin/Madison | G96: 40-056-0080-26 | J96: =IFERROR(VLOOKUP(ROWS($J$2:J96),$A$2:$B$996,2,FALSE),"") -> 
A97: =IF(ISNUMBER(SEARCH(Cover!$H$13,Table1[[#This Row],[School District]])),MAX($A$1:A96)+1,0) -> 0 | B97: Burbank SD 111 | C97: 7016111002 | D97: 2 | E97: =IF(OR(Table1[[#This Row],[Type]]=0,Table1[[#This Row],[Type]]>=40),"JA","SD") -> SD | F97: Cook | G97: 07-016-1110-02 | J97: =IFERROR(VLOOKUP(ROWS($J$2:J97),$A$2:$B$996,2,FALSE),"") -> 
A98: =IF(ISNUMBER(SEARCH(Cover!$H$13,Table1[[#This Row],[School District]])),MAX($A$1:A97)+1,0) -> 0 | B98: Bureau Valley CUSD 340 | C98: 28006340026 | D98: 26 | E98: =IF(OR(Table1[[#This Row],[Type]]=0,Table1[[#This Row],[Type]]>=40),"JA","SD") -> SD | F98: Bureau | G98: 28-006-3400-26 | J98: =IFERROR(VLOOKUP(ROWS($J$2:J98),$A$2:$B$996,2,FALSE),"") -> 
A99: =IF(ISNUMBER(SEARCH(Cover!$H$13,Table1[[#This Row],[School District]])),MAX($A$1:A98)+1,0) -> 0 | B99: Burnham SD 154-5 | C99: 7016154502 | D99: 2 | E99: =IF(OR(Table1[[#This Row],[Type]]=0,Table1[[#This Row],[Type]]>=40),"JA","SD") -> SD | F99: Cook | G99: 07-016-1545-02 | J99: =IFERROR(VLOOKUP(ROWS($J$2:J99),$A$2:$B$996,2,FALSE),"") -> 
A100: =IF(ISNUMBER(SEARCH(Cover!$H$13,Table1[[#This Row],[School District]])),MAX($A$1:A99)+1,0) -> 0 | B100: Bushnell Prairie City CUSD 170 | C100: 26062170026 | D100: 26 | E100: =IF(OR(Table1[[#This Row],[Type]]=0,Table1[[#This Row],[Type]]>=40),"JA","SD") -> SD | F100: McDonough | G100: 26-062-1700-26 | J100: =IFERROR(VLOOKUP(ROWS($J$2:J100),$A$2:$B$996,2,FALSE),"") -> 
A101: =IF(ISNUMBER(SEARCH(Cover!$H$13,Table1[[#This Row],[School District]])),MAX($A$1:A100)+1,0) -> 0 | B101: Butler SD 53 | C101: 19022053002 | D101: 2 | E101: =IF(OR(Table1[[#This Row],[Type]]=0,Table1[[#This Row],[Type]]>=40),"JA","SD") -> SD | F101: DuPage | G101: 19-022-0530-02 | J101: =IFERROR(VLOOKUP(ROWS($J$2:J101),$A$2:$B$996,2,FALSE),"") -> 
A102: =IF(ISNUMBER(SEARCH(Cover!$H$13,Table1[[#This Row],[School District]])),MAX($A$1:A101)+1,0) -> 0 | B102: Byron CUSD 226 | C102: 47071226026 | D102: 26 | E102: =IF(OR(Table1[[#This Row],[Type]]=0,Table1[[#This Row],[Type]]>=40),"JA","SD") -> SD | F102: Ogle | G102: 47-071-2260-26 | J102: =IFERROR(VLOOKUP(ROWS($J$2:J102),$A$2:$B$996,2,FALSE),"") -> 
A103: =IF(ISNUMBER(SEARCH(Cover!$H$13,Table1[[#This Row],[School District]])),MAX($A$1:A102)+1,0) -> 0 | B103: Cahokia CUSD 187 | C103: 50082187026 | D103: 26 | E103: =IF(OR(Table1[[#This Row],[Type]]=0,Table1[[#This Row],[Type]]>=40),"JA","SD") -> SD | F103: Saint Clair | G103: 50-082-1870-26 | J103: =IFERROR(VLOOKUP(ROWS($J$2:J103),$A$2:$B$996,2,FALSE),"") -> 
A104: =IF(ISNUMBER(SEARCH(Cover!$H$13,Table1[[#This Row],[School District]])),MAX($A$1:A103)+1,0) -> 0 | B104: Cairo USD 1 | C104: 30002001022 | D104: 22 | E104: =IF(OR(Table1[[#This Row],[Type]]=0,Table1[[#This Row],[Type]]>=40),"JA","SD") -> SD | F104: Alexander | G104: 30-002-0010-22 | J104: =IFERROR(VLOOKUP(ROWS($J$2:J104),$A$2:$B$996,2,FALSE),"") -> 
A105: =IF(ISNUMBER(SEARCH(Cover!$H$13,Table1[[#This Row],[School District]])),MAX($A$1:A104)+1,0) -> 0 | B105: Calhoun CUSD 40 | C105: 40007040026 | D105: 26 | E105: =IF(OR(Table1[[#This Row],[Type]]=0,Table1[[#This Row],[Type]]>=40),"JA","SD") -> SD | F105: Calhoun/Greene | G105: 40-007-0400-26 | J105: =IFERROR(VLOOKUP(ROWS($J$2:J105),$A$2:$B$996,2,FALSE),"") -> 
A106: =IF(ISNUMBER(SEARCH(Cover!$H$13,Table1[[#This Row],[School District]])),MAX($A$1:A105)+1,0) -> 0 | B106: Calumet City SD 155 | C106: 7016155002 | D106: 2 | E106: =IF(OR(Table1[[#This Row],[Type]]=0,Table1[[#This Row],[Type]]>=40),"JA","SD") -> SD | F106: Cook | G106: 07-016-1550-02 | J106: =IFERROR(VLOOKUP(ROWS($J$2:J106),$A$2:$B$996,2,FALSE),"") -> 
A107: =IF(ISNUMBER(SEARCH(Cover!$H$13,Table1[[#This Row],[School District]])),MAX($A$1:A106)+1,0) -> 0 | B107: Calumet Public SD 132 | C107: 7016132002 | D107: 2 | E107: =IF(OR(Table1[[#This Row],[Type]]=0,Table1[[#This Row],[Type]]>=40),"JA","SD") -> SD | F107: Cook | G107: 07-016-1320-02 | J107: =IFERROR(VLOOKUP(ROWS($J$2:J107),$A$2:$B$996,2,FALSE),"") -> 
A108: =IF(ISNUMBER(SEARCH(Cover!$H$13,Table1[[#This Row],[School District]])),MAX($A$1:A107)+1,0) -> 0 | B108: Cambridge CUSD 227 | C108: 28037227026 | D108: 26 | E108: =IF(OR(Table1[[#This Row],[Type]]=0,Table1[[#This Row],[Type]]>=40),"JA","SD") -> SD | F108: Henry | G108: 28-037-2270-26 | J108: =IFERROR(VLOOKUP(ROWS($J$2:J108),$A$2:$B$996,2,FALSE),"") -> 
A109: =IF(ISNUMBER(SEARCH(Cover!$H$13,Table1[[#This Row],[School District]])),MAX($A$1:A108)+1,0) -> 0 | B109: Canton Union SD 66 | C109: 26029066025 | D109: 25 | E109: =IF(OR(Table1[[#This Row],[Type]]=0,Table1[[#This Row],[Type]]>=40),"JA","SD") -> SD | F109: Fulton | G109: 26-029-0660-25 | J109: =IFERROR(VLOOKUP(ROWS($J$2:J109),$A$2:$B$996,2,FALSE),"") -> 
A110: =IF(ISNUMBER(SEARCH(Cover!$H$13,Table1[[#This Row],[School District]])),MAX($A$1:A109)+1,0) -> 0 | B110: Capital Area Career Ctr | C110: 51084790040 | D110: 40 | E110: =IF(OR(Table1[[#This Row],[Type]]=0,Table1[[#This Row],[Type]]>=40),"JA","SD") -> JA | F110: Sangamon | G110: 51-084-7900-40 | J110: =IFERROR(VLOOKUP(ROWS($J$2:J110),$A$2:$B$996,2,FALSE),"") -> 
A111: =IF(ISNUMBER(SEARCH(Cover!$H$13,Table1[[#This Row],[School District]])),MAX($A$1:A110)+1,0) -> 0 | B111: Carbon Cliff-Barstow SD 36 | C111: 49081036002 | D111: 2 | E111: =IF(OR(Table1[[#This Row],[Type]]=0,Table1[[#This Row],[Type]]>=40),"JA","SD") -> SD | F111: Rock Island | G111: 49-081-0360-02 | J111: =IFERROR(VLOOKUP(ROWS($J$2:J111),$A$2:$B$996,2,FALSE),"") -> 
A112: =IF(ISNUMBER(SEARCH(Cover!$H$13,Table1[[#This Row],[School District]])),MAX($A$1:A111)+1,0) -> 0 | B112: Carbondale CHSD 165 | C112: 30039165016 | D112: 16 | E112: =IF(OR(Table1[[#This Row],[Type]]=0,Table1[[#This Row],[Type]]>=40),"JA","SD") -> SD | F112: Jackson/Williamson | G112: 30-039-1650-16 | J112: =IFERROR(VLOOKUP(ROWS($J$2:J112),$A$2:$B$996,2,FALSE),"") -> 
A113: =IF(ISNUMBER(SEARCH(Cover!$H$13,Table1[[#This Row],[School District]])),MAX($A$1:A112)+1,0) -> 0 | B113: Carbondale ESD 95 | C113: 30039095002 | D113: 2 | E113: =IF(OR(Table1[[#This Row],[Type]]=0,Table1[[#This Row],[Type]]>=40),"JA","SD") -> SD | F113: Jackson | G113: 30-039-0950-02 | J113: =IFERROR(VLOOKUP(ROWS($J$2:J113),$A$2:$B$996,2,FALSE),"") -> 
A114: =IF(ISNUMBER(SEARCH(Cover!$H$13,Table1[[#This Row],[School District]])),MAX($A$1:A113)+1,0) -> 0 | B114: Career Ctr of Southern IL | C114: 45000000040 | D114: 40 | E114: =IF(OR(Table1[[#This Row],[Type]]=0,Table1[[#This Row],[Type]]>=40),"JA","SD") -> JA | F114: Monroe | G114: 45-000-0000-40 | J114: =IFERROR(VLOOKUP(ROWS($J$2:J114),$A$2:$B$996,2,FALSE),"") -> 
A115: =IF(ISNUMBER(SEARCH(Cover!$H$13,Table1[[#This Row],[School District]])),MAX($A$1:A114)+1,0) -> 0 | B115: Career Development System | C115: 7016228046 | D115: 46 | E115: =IF(OR(Table1[[#This Row],[Type]]=0,Table1[[#This Row],[Type]]>=40),"JA","SD") -> JA | F115: Cook | G115: 07-016-2280-46 | J115: =IFERROR(VLOOKUP(ROWS($J$2:J115),$A$2:$B$996,2,FALSE),"") -> 
A116: =IF(ISNUMBER(SEARCH(Cover!$H$13,Table1[[#This Row],[School District]])),MAX($A$1:A115)+1,0) -> 0 | B116: Career Ed Associates of North Central IL (CEANCI) | C116: 4000000046 | D116: 46 | E116: =IF(OR(Table1[[#This Row],[Type]]=0,Table1[[#This Row],[Type]]>=40),"JA","SD") -> JA | F116: Winnebago/Boone/Ogle | G116: 04-000-0000-46 | J116: =IFERROR(VLOOKUP(ROWS($J$2:J116),$A$2:$B$996,2,FALSE),"") -> 
A117: =IF(ISNUMBER(SEARCH(Cover!$H$13,Table1[[#This Row],[School District]])),MAX($A$1:A116)+1,0) -> 0 | B117: Career Preparation Network | C117: 7016790045 | D117: 45 | E117: =IF(OR(Table1[[#This Row],[Type]]=0,Table1[[#This Row],[Type]]>=40),"JA","SD") -> JA | F117: Cook | G117: 07-016-7900-45 | J117: =IFERROR(VLOOKUP(ROWS($J$2:J117),$A$2:$B$996,2,FALSE),"") -> 
A118: =IF(ISNUMBER(SEARCH(Cover!$H$13,Table1[[#This Row],[School District]])),MAX($A$1:A117)+1,0) -> 0 | B118: Carlinville CUSD 1 | C118: 40056001026 | D118: 26 | E118: =IF(OR(Table1[[#This Row],[Type]]=0,Table1[[#This Row],[Type]]>=40),"JA","SD") -> SD | F118: Macoupin | G118: 40-056-0010-26 | J118: =IFERROR(VLOOKUP(ROWS($J$2:J118),$A$2:$B$996,2,FALSE),"") -> 
A119: =IF(ISNUMBER(SEARCH(Cover!$H$13,Table1[[#This Row],[School District]])),MAX($A$1:A118)+1,0) -> 0 | B119: Carlyle CUSD 1 | C119: 13014001026 | D119: 26 | E119: =IF(OR(Table1[[#This Row],[Type]]=0,Table1[[#This Row],[Type]]>=40),"JA","SD") -> SD | F119: Clinton | G119: 13-014-0010-26 | J119: =IFERROR(VLOOKUP(ROWS($J$2:J119),$A$2:$B$996,2,FALSE),"") -> 
A120: =IF(ISNUMBER(SEARCH(Cover!$H$13,Table1[[#This Row],[School District]])),MAX($A$1:A119)+1,0) -> 0 | B120: Carmi-White County CUSD 5 | C120: 20097005026 | D120: 26 | E120: =IF(OR(Table1[[#This Row],[Type]]=0,Table1[[#This Row],[Type]]>=40),"JA","SD") -> SD | F120: White | G120: 20-097-0050-26 | J120: =IFERROR(VLOOKUP(ROWS($J$2:J120),$A$2:$B$996,2,FALSE),"") -> 
A121: =IF(ISNUMBER(SEARCH(Cover!$H$13,Table1[[#This Row],[School District]])),MAX($A$1:A120)+1,0) -> 0 | B121: Carrier Mills-Stonefort CUSD 2 | C121: 20083002026 | D121: 26 | E121: =IF(OR(Table1[[#This Row],[Type]]=0,Table1[[#This Row],[Type]]>=40),"JA","SD") -> SD | F121: Saline | G121: 20-083-0020-26 | J121: =IFERROR(VLOOKUP(ROWS($J$2:J121),$A$2:$B$996,2,FALSE),"") -> 
A122: =IF(ISNUMBER(SEARCH(Cover!$H$13,Table1[[#This Row],[School District]])),MAX($A$1:A121)+1,0) -> 0 | B122: Carrollton CUSD 1 | C122: 40031001026 | D122: 26 | E122: =IF(OR(Table1[[#This Row],[Type]]=0,Table1[[#This Row],[Type]]>=40),"JA","SD") -> SD | F122: Greene | G122: 40-031-0010-26 | J122: =IFERROR(VLOOKUP(ROWS($J$2:J122),$A$2:$B$996,2,FALSE),"") -> 
A123: =IF(ISNUMBER(SEARCH(Cover!$H$13,Table1[[#This Row],[School District]])),MAX($A$1:A122)+1,0) -> 0 | B123: Carterville CUSD 5 | C123: 21100005026 | D123: 26 | E123: =IF(OR(Table1[[#This Row],[Type]]=0,Table1[[#This Row],[Type]]>=40),"JA","SD") -> SD | F123: Williamson | G123: 21-100-0050-26 | J123: =IFERROR(VLOOKUP(ROWS($J$2:J123),$A$2:$B$996,2,FALSE),"") -> 
A124: =IF(ISNUMBER(SEARCH(Cover!$H$13,Table1[[#This Row],[School District]])),MAX($A$1:A123)+1,0) -> 0 | B124: Carthage ESD 317 | C124: 26034317004 | D124: 4 | E124: =IF(OR(Table1[[#This Row],[Type]]=0,Table1[[#This Row],[Type]]>=40),"JA","SD") -> SD | F124: Hancock | G124: 26-034-3170-04 | J124: =IFERROR(VLOOKUP(ROWS($J$2:J124),$A$2:$B$996,2,FALSE),"") -> 
A125: =IF(ISNUMBER(SEARCH(Cover!$H$13,Table1[[#This Row],[School District]])),MAX($A$1:A124)+1,0) -> 0 | B125: Cary CCSD 26 | C125: 44063026004 | D125: 4 | E125: =IF(OR(Table1[[#This Row],[Type]]=0,Table1[[#This Row],[Type]]>=40),"JA","SD") -> SD | F125: McHenry/Lake | G125: 44-063-0260-04 | J125: =IFERROR(VLOOKUP(ROWS($J$2:J125),$A$2:$B$996,2,FALSE),"") -> 
A126: =IF(ISNUMBER(SEARCH(Cover!$H$13,Table1[[#This Row],[School District]])),MAX($A$1:A125)+1,0) -> 0 | B126: Casey-Westfield CUSD 4C | C126: 11012004C26 | D126: 26 | E126: =IF(OR(Table1[[#This Row],[Type]]=0,Table1[[#This Row],[Type]]>=40),"JA","SD") -> SD | F126: Clark | G126: 11-012-004C-26 | J126: =IFERROR(VLOOKUP(ROWS($J$2:J126),$A$2:$B$996,2,FALSE),"") -> 
A127: =IF(ISNUMBER(SEARCH(Cover!$H$13,Table1[[#This Row],[School District]])),MAX($A$1:A126)+1,0) -> 0 | B127: Cass SD 63 | C127: 19022063002 | D127: 2 | E127: =IF(OR(Table1[[#This Row],[Type]]=0,Table1[[#This Row],[Type]]>=40),"JA","SD") -> SD | F127: DuPage | G127: 19-022-0630-02 | J127: =IFERROR(VLOOKUP(ROWS($J$2:J127),$A$2:$B$996,2,FALSE),"") -> 
A128: =IF(ISNUMBER(SEARCH(Cover!$H$13,Table1[[#This Row],[School District]])),MAX($A$1:A127)+1,0) -> 0 | B128: CCSD 146 | C128: 7016146004 | D128: 4 | E128: =IF(OR(Table1[[#This Row],[Type]]=0,Table1[[#This Row],[Type]]>=40),"JA","SD") -> SD | F128: Cook | G128: 07-016-1460-04 | J128: =IFERROR(VLOOKUP(ROWS($J$2:J128),$A$2:$B$996,2,FALSE),"") -> 
A129: =IF(ISNUMBER(SEARCH(Cover!$H$13,Table1[[#This Row],[School District]])),MAX($A$1:A128)+1,0) -> 0 | B129: CCSD 168 | C129: 7016168004 | D129: 4 | E129: =IF(OR(Table1[[#This Row],[Type]]=0,Table1[[#This Row],[Type]]>=40),"JA","SD") -> SD | F129: Cook | G129: 07-016-1680-04 | J129: =IFERROR(VLOOKUP(ROWS($J$2:J129),$A$2:$B$996,2,FALSE),"") -> 
A130: =IF(ISNUMBER(SEARCH(Cover!$H$13,Table1[[#This Row],[School District]])),MAX($A$1:A129)+1,0) -> 0 | B130: CCSD 180 | C130: 19022180004 | D130: 4 | E130: =IF(OR(Table1[[#This Row],[Type]]=0,Table1[[#This Row],[Type]]>=40),"JA","SD") -> SD | F130: DuPage | G130: 19-022-1800-04 | J130: =IFERROR(VLOOKUP(ROWS($J$2:J130),$A$2:$B$996,2,FALSE),"") -> 
A131: =IF(ISNUMBER(SEARCH(Cover!$H$13,Table1[[#This Row],[School District]])),MAX($A$1:A130)+1,0) -> 0 | B131: CCSD 204 | C131: 30073204004 | D131: 4 | E131: =IF(OR(Table1[[#This Row],[Type]]=0,Table1[[#This Row],[Type]]>=40),"JA","SD") -> SD | F131: Perry | G131: 30-073-2040-04 | J131: =IFERROR(VLOOKUP(ROWS($J$2:J131),$A$2:$B$996,2,FALSE),"") -> 
A132: =IF(ISNUMBER(SEARCH(Cover!$H$13,Table1[[#This Row],[School District]])),MAX($A$1:A131)+1,0) -> 0 | B132: CCSD 62 | C132: 5016062004 | D132: 4 | E132: =IF(OR(Table1[[#This Row],[Type]]=0,Table1[[#This Row],[Type]]>=40),"JA","SD") -> SD | F132: Cook | G132: 05-016-0620-04 | J132: =IFERROR(VLOOKUP(ROWS($J$2:J132),$A$2:$B$996,2,FALSE),"") -> 
A133: =IF(ISNUMBER(SEARCH(Cover!$H$13,Table1[[#This Row],[School District]])),MAX($A$1:A132)+1,0) -> 0 | B133: CCSD 89 | C133: 19022089004 | D133: 4 | E133: =IF(OR(Table1[[#This Row],[Type]]=0,Table1[[#This Row],[Type]]>=40),"JA","SD") -> SD | F133: DuPage | G133: 19-022-0890-04 | J133: =IFERROR(VLOOKUP(ROWS($J$2:J133),$A$2:$B$996,2,FALSE),"") -> 
A134: =IF(ISNUMBER(SEARCH(Cover!$H$13,Table1[[#This Row],[School District]])),MAX($A$1:A133)+1,0) -> 0 | B134: CCSD 93 | C134: 19022093004 | D134: 4 | E134: =IF(OR(Table1[[#This Row],[Type]]=0,Table1[[#This Row],[Type]]>=40),"JA","SD") -> SD | F134: DuPage | G134: 19-022-0930-04 | J134: =IFERROR(VLOOKUP(ROWS($J$2:J134),$A$2:$B$996,2,FALSE),"") -> 
A135: =IF(ISNUMBER(SEARCH(Cover!$H$13,Table1[[#This Row],[School District]])),MAX($A$1:A134)+1,0) -> 0 | B135: Center Cass SD 66 | C135: 19022066002 | D135: 2 | E135: =IF(OR(Table1[[#This Row],[Type]]=0,Table1[[#This Row],[Type]]>=40),"JA","SD") -> SD | F135: DuPage | G135: 19-022-0660-02 | J135: =IFERROR(VLOOKUP(ROWS($J$2:J135),$A$2:$B$996,2,FALSE),"") -> 
A136: =IF(ISNUMBER(SEARCH(Cover!$H$13,Table1[[#This Row],[School District]])),MAX($A$1:A135)+1,0) -> 0 | B136: Central A & M CUD 21 | C136: 11087021026 | D136: 26 | E136: =IF(OR(Table1[[#This Row],[Type]]=0,Table1[[#This Row],[Type]]>=40),"JA","SD") -> SD | F136: Shelby/Christian/Macon | G136: 11-087-0210-26 | J136: =IFERROR(VLOOKUP(ROWS($J$2:J136),$A$2:$B$996,2,FALSE),"") -> 
A137: =IF(ISNUMBER(SEARCH(Cover!$H$13,Table1[[#This Row],[School District]])),MAX($A$1:A136)+1,0) -> 0 | B137: Central CHSD 71 | C137: 13014071016 | D137: 16 | E137: =IF(OR(Table1[[#This Row],[Type]]=0,Table1[[#This Row],[Type]]>=40),"JA","SD") -> SD | F137: Clinton | G137: 13-014-0710-16 | J137: =IFERROR(VLOOKUP(ROWS($J$2:J137),$A$2:$B$996,2,FALSE),"") -> 
A138: =IF(ISNUMBER(SEARCH(Cover!$H$13,Table1[[#This Row],[School District]])),MAX($A$1:A137)+1,0) -> 0 | B138: Central City SD 133 | C138: 13058133002 | D138: 2 | E138: =IF(OR(Table1[[#This Row],[Type]]=0,Table1[[#This Row],[Type]]>=40),"JA","SD") -> SD | F138: Marion | G138: 13-058-1330-02 | J138: =IFERROR(VLOOKUP(ROWS($J$2:J138),$A$2:$B$996,2,FALSE),"") -> 
A139: =IF(ISNUMBER(SEARCH(Cover!$H$13,Table1[[#This Row],[School District]])),MAX($A$1:A138)+1,0) -> 0 | B139: Central CUSD 3 | C139: 1001003026 | D139: 26 | E139: =IF(OR(Table1[[#This Row],[Type]]=0,Table1[[#This Row],[Type]]>=40),"JA","SD") -> SD | F139: Adams | G139: 01-001-0030-26 | J139: =IFERROR(VLOOKUP(ROWS($J$2:J139),$A$2:$B$996,2,FALSE),"") -> 
A140: =IF(ISNUMBER(SEARCH(Cover!$H$13,Table1[[#This Row],[School District]])),MAX($A$1:A139)+1,0) -> 0 | B140: Central CUSD 301 | C140: 31045301026 | D140: 26 | E140: =IF(OR(Table1[[#This Row],[Type]]=0,Table1[[#This Row],[Type]]>=40),"JA","SD") -> SD | F140: Kane/DeKalb | G140: 31-045-3010-26 | J140: =IFERROR(VLOOKUP(ROWS($J$2:J140),$A$2:$B$996,2,FALSE),"") -> 
A141: =IF(ISNUMBER(SEARCH(Cover!$H$13,Table1[[#This Row],[School District]])),MAX($A$1:A140)+1,0) -> 0 | B141: Central CUSD 4 | C141: 32038004026 | D141: 26 | E141: =IF(OR(Table1[[#This Row],[Type]]=0,Table1[[#This Row],[Type]]>=40),"JA","SD") -> SD | F141: Iroquois/Kankakee | G141: 32-038-0040-26 | J141: =IFERROR(VLOOKUP(ROWS($J$2:J141),$A$2:$B$996,2,FALSE),"") -> 
A142: =IF(ISNUMBER(SEARCH(Cover!$H$13,Table1[[#This Row],[School District]])),MAX($A$1:A141)+1,0) -> 0 | B142: Central IL Rural Region | C142: 40000000046 | D142: 46 | E142: =IF(OR(Table1[[#This Row],[Type]]=0,Table1[[#This Row],[Type]]>=40),"JA","SD") -> JA | F142: Calhoun/Greene/Jersey/Macoupin | G142: 40-000-0000-46 | J142: =IFERROR(VLOOKUP(ROWS($J$2:J142),$A$2:$B$996,2,FALSE),"") -> 
A143: =IF(ISNUMBER(SEARCH(Cover!$H$13,Table1[[#This Row],[School District]])),MAX($A$1:A142)+1,0) -> 0 | B143: Central IL Voc Ed Coop | C143: 53102721045 | D143: 45 | E143: =IF(OR(Table1[[#This Row],[Type]]=0,Table1[[#This Row],[Type]]>=40),"JA","SD") -> JA | F143: Woodford/Marshall | G143: 53-102-7210-45 | J143: =IFERROR(VLOOKUP(ROWS($J$2:J143),$A$2:$B$996,2,FALSE),"") -> 
A144: =IF(ISNUMBER(SEARCH(Cover!$H$13,Table1[[#This Row],[School District]])),MAX($A$1:A143)+1,0) -> 0 | B144: Central SD 104 | C144: 50082104002 | D144: 2 | E144: =IF(OR(Table1[[#This Row],[Type]]=0,Table1[[#This Row],[Type]]>=40),"JA","SD") -> SD | F144: St. Clair | G144: 50-082-1040-02 | J144: =IFERROR(VLOOKUP(ROWS($J$2:J144),$A$2:$B$996,2,FALSE),"") -> 
A145: =IF(ISNUMBER(SEARCH(Cover!$H$13,Table1[[#This Row],[School District]])),MAX($A$1:A144)+1,0) -> 0 | B145: Central SD 51 | C145: 53090051002 | D145: 2 | E145: =IF(OR(Table1[[#This Row],[Type]]=0,Table1[[#This Row],[Type]]>=40),"JA","SD") -> SD | F145: Tazewell | G145: 53-090-0510-02 | J145: =IFERROR(VLOOKUP(ROWS($J$2:J145),$A$2:$B$996,2,FALSE),"") -> 
A146: =IF(ISNUMBER(SEARCH(Cover!$H$13,Table1[[#This Row],[School District]])),MAX($A$1:A145)+1,0) -> 0 | B146: Central Stickney SD 110 | C146: 7016110002 | D146: 2 | E146: =IF(OR(Table1[[#This Row],[Type]]=0,Table1[[#This Row],[Type]]>=40),"JA","SD") -> SD | F146: Cook | G146: 07-016-1100-02 | J146: =IFERROR(VLOOKUP(ROWS($J$2:J146),$A$2:$B$996,2,FALSE),"") -> 
A147: =IF(ISNUMBER(SEARCH(Cover!$H$13,Table1[[#This Row],[School District]])),MAX($A$1:A146)+1,0) -> 0 | B147: Centralia HSD 200 | C147: 13058200017 | D147: 17 | E147: =IF(OR(Table1[[#This Row],[Type]]=0,Table1[[#This Row],[Type]]>=40),"JA","SD") -> SD | F147: Marion | G147: 13-058-2000-17 | J147: =IFERROR(VLOOKUP(ROWS($J$2:J147),$A$2:$B$996,2,FALSE),"") -> 
A148: =IF(ISNUMBER(SEARCH(Cover!$H$13,Table1[[#This Row],[School District]])),MAX($A$1:A147)+1,0) -> 0 | B148: Centralia SD 135 | C148: 13058135002 | D148: 2 | E148: =IF(OR(Table1[[#This Row],[Type]]=0,Table1[[#This Row],[Type]]>=40),"JA","SD") -> SD | F148: Marion | G148: 13-058-1350-02 | J148: =IFERROR(VLOOKUP(ROWS($J$2:J148),$A$2:$B$996,2,FALSE),"") -> 
A149: =IF(ISNUMBER(SEARCH(Cover!$H$13,Table1[[#This Row],[School District]])),MAX($A$1:A148)+1,0) -> 0 | B149: Century CUSD 100 | C149: 30077100026 | D149: 26 | E149: =IF(OR(Table1[[#This Row],[Type]]=0,Table1[[#This Row],[Type]]>=40),"JA","SD") -> SD | F149: Pulaski | G149: 30-077-1000-26 | J149: =IFERROR(VLOOKUP(ROWS($J$2:J149),$A$2:$B$996,2,FALSE),"") -> 
A150: =IF(ISNUMBER(SEARCH(Cover!$H$13,Table1[[#This Row],[School District]])),MAX($A$1:A149)+1,0) -> 0 | B150: Cerro Gordo CUSD 100 | C150: 39074100026 | D150: 26 | E150: =IF(OR(Table1[[#This Row],[Type]]=0,Table1[[#This Row],[Type]]>=40),"JA","SD") -> SD | F150: Piatt/Macon/Moultrie | G150: 39-074-1000-26 | J150: =IFERROR(VLOOKUP(ROWS($J$2:J150),$A$2:$B$996,2,FALSE),"") -> 
A151: =IF(ISNUMBER(SEARCH(Cover!$H$13,Table1[[#This Row],[School District]])),MAX($A$1:A150)+1,0) -> 0 | B151: Chadwick-Milledgeville CUSD 399 | C151: 8008399026 | D151: 26 | E151: =IF(OR(Table1[[#This Row],[Type]]=0,Table1[[#This Row],[Type]]>=40),"JA","SD") -> SD | F151: Carroll | G151: 08-008-3990-26 | J151: =IFERROR(VLOOKUP(ROWS($J$2:J151),$A$2:$B$996,2,FALSE),"") -> 
A152: =IF(ISNUMBER(SEARCH(Cover!$H$13,Table1[[#This Row],[School District]])),MAX($A$1:A151)+1,0) -> 0 | B152: Champaign CUSD 4 | C152: 9010004026 | D152: 26 | E152: =IF(OR(Table1[[#This Row],[Type]]=0,Table1[[#This Row],[Type]]>=40),"JA","SD") -> SD | F152: Champaign | G152: 09-010-0040-26 | J152: =IFERROR(VLOOKUP(ROWS($J$2:J152),$A$2:$B$996,2,FALSE),"") -> 
A153: =IF(ISNUMBER(SEARCH(Cover!$H$13,Table1[[#This Row],[School District]])),MAX($A$1:A152)+1,0) -> 0 | B153: Chaney-Monge SD 88 | C153: 56099088002 | D153: 2 | E153: =IF(OR(Table1[[#This Row],[Type]]=0,Table1[[#This Row],[Type]]>=40),"JA","SD") -> SD | F153: Will | G153: 56-099-0880-02 | J153: =IFERROR(VLOOKUP(ROWS($J$2:J153),$A$2:$B$996,2,FALSE),"") -> 
A154: =IF(ISNUMBER(SEARCH(Cover!$H$13,Table1[[#This Row],[School District]])),MAX($A$1:A153)+1,0) -> 0 | B154: Channahon SD 17 | C154: 56099017002 | D154: 2 | E154: =IF(OR(Table1[[#This Row],[Type]]=0,Table1[[#This Row],[Type]]>=40),"JA","SD") -> SD | F154: Will | G154: 56-099-0170-02 | J154: =IFERROR(VLOOKUP(ROWS($J$2:J154),$A$2:$B$996,2,FALSE),"") -> 
A155: =IF(ISNUMBER(SEARCH(Cover!$H$13,Table1[[#This Row],[School District]])),MAX($A$1:A154)+1,0) -> 0 | B155: Charleston CUSD 1 | C155: 11015001026 | D155: 26 | E155: =IF(OR(Table1[[#This Row],[Type]]=0,Table1[[#This Row],[Type]]>=40),"JA","SD") -> SD | F155: Coles | G155: 11-015-0010-26 | J155: =IFERROR(VLOOKUP(ROWS($J$2:J155),$A$2:$B$996,2,FALSE),"") -> 
A156: =IF(ISNUMBER(SEARCH(Cover!$H$13,Table1[[#This Row],[School District]])),MAX($A$1:A155)+1,0) -> 0 | B156: Chester CUSD 139 | C156: 45079139026 | D156: 26 | E156: =IF(OR(Table1[[#This Row],[Type]]=0,Table1[[#This Row],[Type]]>=40),"JA","SD") -> SD | F156: Randolph | G156: 45-079-1390-26 | J156: =IFERROR(VLOOKUP(ROWS($J$2:J156),$A$2:$B$996,2,FALSE),"") -> 
A157: =IF(ISNUMBER(SEARCH(Cover!$H$13,Table1[[#This Row],[School District]])),MAX($A$1:A156)+1,0) -> 0 | B157: Chester N HSD 122 | C157: 45079122019 | D157: 19 | E157: =IF(OR(Table1[[#This Row],[Type]]=0,Table1[[#This Row],[Type]]>=40),"JA","SD") -> SD | F157: Randolph | G157: 45-079-1220-19 | J157: =IFERROR(VLOOKUP(ROWS($J$2:J157),$A$2:$B$996,2,FALSE),"") -> 
A158: =IF(ISNUMBER(SEARCH(Cover!$H$13,Table1[[#This Row],[School District]])),MAX($A$1:A157)+1,0) -> 0 | B158: Chester-East Lincoln CCSD 61 | C158: 17054061004 | D158: 4 | E158: =IF(OR(Table1[[#This Row],[Type]]=0,Table1[[#This Row],[Type]]>=40),"JA","SD") -> SD | F158: Logan | G158: 17-054-0610-04 | J158: =IFERROR(VLOOKUP(ROWS($J$2:J158),$A$2:$B$996,2,FALSE),"") -> 
A159: =IF(ISNUMBER(SEARCH(Cover!$H$13,Table1[[#This Row],[School District]])),MAX($A$1:A158)+1,0) -> 0 | B159: Chicago Heights SD 170 | C159: 7016170002 | D159: 2 | E159: =IF(OR(Table1[[#This Row],[Type]]=0,Table1[[#This Row],[Type]]>=40),"JA","SD") -> SD | F159: Cook | G159: 07-016-1700-02 | J159: =IFERROR(VLOOKUP(ROWS($J$2:J159),$A$2:$B$996,2,FALSE),"") -> 
A160: =IF(ISNUMBER(SEARCH(Cover!$H$13,Table1[[#This Row],[School District]])),MAX($A$1:A159)+1,0) -> 0 | B160: Chicago Ridge SD 127-5 | C160: 7016127502 | D160: 2 | E160: =IF(OR(Table1[[#This Row],[Type]]=0,Table1[[#This Row],[Type]]>=40),"JA","SD") -> SD | F160: Cook | G160: 07-016-1275-02 | J160: =IFERROR(VLOOKUP(ROWS($J$2:J160),$A$2:$B$996,2,FALSE),"") -> 
A161: =IF(ISNUMBER(SEARCH(Cover!$H$13,Table1[[#This Row],[School District]])),MAX($A$1:A160)+1,0) -> 0 | B161: Christopher USD 99 | C161: 21028099026 | D161: 26 | E161: =IF(OR(Table1[[#This Row],[Type]]=0,Table1[[#This Row],[Type]]>=40),"JA","SD") -> SD | F161: Franklin | G161: 21-028-0990-26 | J161: =IFERROR(VLOOKUP(ROWS($J$2:J161),$A$2:$B$996,2,FALSE),"") -> 
A162: =IF(ISNUMBER(SEARCH(Cover!$H$13,Table1[[#This Row],[School District]])),MAX($A$1:A161)+1,0) -> 0 | B162: CHSD 117 | C162: 34049117016 | D162: 16 | E162: =IF(OR(Table1[[#This Row],[Type]]=0,Table1[[#This Row],[Type]]>=40),"JA","SD") -> SD | F162: Lake | G162: 34-049-1170-16 | J162: =IFERROR(VLOOKUP(ROWS($J$2:J162),$A$2:$B$996,2,FALSE),"") -> 
A163: =IF(ISNUMBER(SEARCH(Cover!$H$13,Table1[[#This Row],[School District]])),MAX($A$1:A162)+1,0) -> 0 | B163: CHSD 128 | C163: 34049128016 | D163: 16 | E163: =IF(OR(Table1[[#This Row],[Type]]=0,Table1[[#This Row],[Type]]>=40),"JA","SD") -> SD | F163: Lake | G163: 34-049-1280-16 | J163: =IFERROR(VLOOKUP(ROWS($J$2:J163),$A$2:$B$996,2,FALSE),"") -> 
A164: =IF(ISNUMBER(SEARCH(Cover!$H$13,Table1[[#This Row],[School District]])),MAX($A$1:A163)+1,0) -> 0 | B164: CHSD 155 | C164: 44063155016 | D164: 16 | E164: =IF(OR(Table1[[#This Row],[Type]]=0,Table1[[#This Row],[Type]]>=40),"JA","SD") -> SD | F164: McHenry/Lake | G164: 44-063-1550-16 | J164: =IFERROR(VLOOKUP(ROWS($J$2:J164),$A$2:$B$996,2,FALSE),"") -> 
A165: =IF(ISNUMBER(SEARCH(Cover!$H$13,Table1[[#This Row],[School District]])),MAX($A$1:A164)+1,0) -> 0 | B165: CHSD 218 | C165: 7016218016 | D165: 16 | E165: =IF(OR(Table1[[#This Row],[Type]]=0,Table1[[#This Row],[Type]]>=40),"JA","SD") -> SD | F165: Cook | G165: 07-016-2180-16 | J165: =IFERROR(VLOOKUP(ROWS($J$2:J165),$A$2:$B$996,2,FALSE),"") -> 
A166: =IF(ISNUMBER(SEARCH(Cover!$H$13,Table1[[#This Row],[School District]])),MAX($A$1:A165)+1,0) -> 0 | B166: CHSD 94 | C166: 19022094016 | D166: 16 | E166: =IF(OR(Table1[[#This Row],[Type]]=0,Table1[[#This Row],[Type]]>=40),"JA","SD") -> SD | F166: DuPage | G166: 19-022-0940-16 | J166: =IFERROR(VLOOKUP(ROWS($J$2:J166),$A$2:$B$996,2,FALSE),"") -> 
A167: =IF(ISNUMBER(SEARCH(Cover!$H$13,Table1[[#This Row],[School District]])),MAX($A$1:A166)+1,0) -> 0 | B167: CHSD 99 | C167: 19022099016 | D167: 16 | E167: =IF(OR(Table1[[#This Row],[Type]]=0,Table1[[#This Row],[Type]]>=40),"JA","SD") -> SD | F167: DuPage | G167: 19-022-0990-16 | J167: =IFERROR(VLOOKUP(ROWS($J$2:J167),$A$2:$B$996,2,FALSE),"") -> 
A168: =IF(ISNUMBER(SEARCH(Cover!$H$13,Table1[[#This Row],[School District]])),MAX($A$1:A167)+1,0) -> 0 | B168: Cicero SD 99 | C168: 6016099002 | D168: 2 | E168: =IF(OR(Table1[[#This Row],[Type]]=0,Table1[[#This Row],[Type]]>=40),"JA","SD") -> SD | F168: Cook | G168: 06-016-0990-02 | J168: =IFERROR(VLOOKUP(ROWS($J$2:J168),$A$2:$B$996,2,FALSE),"") -> 
A169: =IF(ISNUMBER(SEARCH(Cover!$H$13,Table1[[#This Row],[School District]])),MAX($A$1:A168)+1,0) -> 0 | B169: Cissna Park CUSD 6 | C169: 32038006026 | D169: 26 | E169: =IF(OR(Table1[[#This Row],[Type]]=0,Table1[[#This Row],[Type]]>=40),"JA","SD") -> SD | F169: Iroquois | G169: 32-038-0060-26 | J169: =IFERROR(VLOOKUP(ROWS($J$2:J169),$A$2:$B$996,2,FALSE),"") -> 
A170: =IF(ISNUMBER(SEARCH(Cover!$H$13,Table1[[#This Row],[School District]])),MAX($A$1:A169)+1,0) -> 0 | B170: City of Chicago SD 299 | C170: 15016299025 | D170: 25 | E170: =IF(OR(Table1[[#This Row],[Type]]=0,Table1[[#This Row],[Type]]>=40),"JA","SD") -> SD | F170: Cook | G170: 15-016-2990-25 | J170: =IFERROR(VLOOKUP(ROWS($J$2:J170),$A$2:$B$996,2,FALSE),"") -> 
A171: =IF(ISNUMBER(SEARCH(Cover!$H$13,Table1[[#This Row],[School District]])),MAX($A$1:A170)+1,0) -> 0 | B171: Clay City CUSD 10 | C171: 12013010026 | D171: 26 | E171: =IF(OR(Table1[[#This Row],[Type]]=0,Table1[[#This Row],[Type]]>=40),"JA","SD") -> SD | F171: Clay/Wayne/Richland | G171: 12-013-0100-26 | J171: =IFERROR(VLOOKUP(ROWS($J$2:J171),$A$2:$B$996,2,FALSE),"") -> 
A172: =IF(ISNUMBER(SEARCH(Cover!$H$13,Table1[[#This Row],[School District]])),MAX($A$1:A171)+1,0) -> 0 | B172: Clay-Jasper-Richland-North Wayne-RDS | C172: 12013035046 | D172: 46 | E172: =IF(OR(Table1[[#This Row],[Type]]=0,Table1[[#This Row],[Type]]>=40),"JA","SD") -> JA | F172: Clay/Jasper/Richland/Wayne | G172: 12-013-0350-46 | J172: =IFERROR(VLOOKUP(ROWS($J$2:J172),$A$2:$B$996,2,FALSE),"") -> 
A173: =IF(ISNUMBER(SEARCH(Cover!$H$13,Table1[[#This Row],[School District]])),MAX($A$1:A172)+1,0) -> 0 | B173: Clinton CUSD 15 | C173: 17020015026 | D173: 26 | E173: =IF(OR(Table1[[#This Row],[Type]]=0,Table1[[#This Row],[Type]]>=40),"JA","SD") -> SD | F173: Dewitt | G173: 17-020-0150-26 | J173: =IFERROR(VLOOKUP(ROWS($J$2:J173),$A$2:$B$996,2,FALSE),"") -> 
A174: =IF(ISNUMBER(SEARCH(Cover!$H$13,Table1[[#This Row],[School District]])),MAX($A$1:A173)+1,0) -> 0 | B174: Coal City CUSD 1 | C174: 24032001026 | D174: 26 | E174: =IF(OR(Table1[[#This Row],[Type]]=0,Table1[[#This Row],[Type]]>=40),"JA","SD") -> SD | F174: Grundy/Will | G174: 24-032-0010-26 | J174: =IFERROR(VLOOKUP(ROWS($J$2:J174),$A$2:$B$996,2,FALSE),"") -> 
A175: =IF(ISNUMBER(SEARCH(Cover!$H$13,Table1[[#This Row],[School District]])),MAX($A$1:A174)+1,0) -> 0 | B175: Cobden SUD 17 | C175: 30091017022 | D175: 22 | E175: =IF(OR(Table1[[#This Row],[Type]]=0,Table1[[#This Row],[Type]]>=40),"JA","SD") -> SD | F175: Union | G175: 30-091-0170-22 | J175: =IFERROR(VLOOKUP(ROWS($J$2:J175),$A$2:$B$996,2,FALSE),"") -> 
A176: =IF(ISNUMBER(SEARCH(Cover!$H$13,Table1[[#This Row],[School District]])),MAX($A$1:A175)+1,0) -> 0 | B176: Collinsville Area Career Ctr | C176: 41057010041 | D176: 41 | E176: =IF(OR(Table1[[#This Row],[Type]]=0,Table1[[#This Row],[Type]]>=40),"JA","SD") -> JA | F176: Madison/St. Clair | G176: 41-057-0100-41 | J176: =IFERROR(VLOOKUP(ROWS($J$2:J176),$A$2:$B$996,2,FALSE),"") -> 
A177: =IF(ISNUMBER(SEARCH(Cover!$H$13,Table1[[#This Row],[School District]])),MAX($A$1:A176)+1,0) -> 0 | B177: Collinsville CUSD 10 | C177: 41057010026 | D177: 26 | E177: =IF(OR(Table1[[#This Row],[Type]]=0,Table1[[#This Row],[Type]]>=40),"JA","SD") -> SD | F177: Maditon/St. Clair | G177: 41-057-0100-26 | J177: =IFERROR(VLOOKUP(ROWS($J$2:J177),$A$2:$B$996,2,FALSE),"") -> 
A178: =IF(ISNUMBER(SEARCH(Cover!$H$13,Table1[[#This Row],[School District]])),MAX($A$1:A177)+1,0) -> 0 | B178: Colona SD 190 | C178: 28037190002 | D178: 2 | E178: =IF(OR(Table1[[#This Row],[Type]]=0,Table1[[#This Row],[Type]]>=40),"JA","SD") -> SD | F178: Henry | G178: 28-037-1900-02 | J178: =IFERROR(VLOOKUP(ROWS($J$2:J178),$A$2:$B$996,2,FALSE),"") -> 
A179: =IF(ISNUMBER(SEARCH(Cover!$H$13,Table1[[#This Row],[School District]])),MAX($A$1:A178)+1,0) -> 0 | B179: Columbia CUSD 4 | C179: 45067004026 | D179: 26 | E179: =IF(OR(Table1[[#This Row],[Type]]=0,Table1[[#This Row],[Type]]>=40),"JA","SD") -> SD | F179: Monroe/St. Clair | G179: 45-067-0040-26 | J179: =IFERROR(VLOOKUP(ROWS($J$2:J179),$A$2:$B$996,2,FALSE),"") -> 
A180: =IF(ISNUMBER(SEARCH(Cover!$H$13,Table1[[#This Row],[School District]])),MAX($A$1:A179)+1,0) -> 0 | B180: Comm Cons SD 59 | C180: 5016059004 | D180: 4 | E180: =IF(OR(Table1[[#This Row],[Type]]=0,Table1[[#This Row],[Type]]>=40),"JA","SD") -> SD | F180: Cook | G180: 05-016-0590-04 | J180: =IFERROR(VLOOKUP(ROWS($J$2:J180),$A$2:$B$996,2,FALSE),"") -> 
A181: =IF(ISNUMBER(SEARCH(Cover!$H$13,Table1[[#This Row],[School District]])),MAX($A$1:A180)+1,0) -> 0 | B181: Cons HSD 230 | C181: 7016230013 | D181: 13 | E181: =IF(OR(Table1[[#This Row],[Type]]=0,Table1[[#This Row],[Type]]>=40),"JA","SD") -> SD | F181: Will | G181: 07-016-2300-13 | J181: =IFERROR(VLOOKUP(ROWS($J$2:J181),$A$2:$B$996,2,FALSE),"") -> 
A182: =IF(ISNUMBER(SEARCH(Cover!$H$13,Table1[[#This Row],[School District]])),MAX($A$1:A181)+1,0) -> 0 | B182: Cook County SD 130 | C182: 7016130002 | D182: 2 | E182: =IF(OR(Table1[[#This Row],[Type]]=0,Table1[[#This Row],[Type]]>=40),"JA","SD") -> SD | F182: Cook | G182: 07-016-1300-02 | J182: =IFERROR(VLOOKUP(ROWS($J$2:J182),$A$2:$B$996,2,FALSE),"") -> 
A183: =IF(ISNUMBER(SEARCH(Cover!$H$13,Table1[[#This Row],[School District]])),MAX($A$1:A182)+1,0) -> 0 | B183: Coop Assoc for Spec Ed | C183: 19022015061 | D183: 61 | E183: =IF(OR(Table1[[#This Row],[Type]]=0,Table1[[#This Row],[Type]]>=40),"JA","SD") -> JA | F183: DuPage | G183: 19-022-0150-61 | J183: =IFERROR(VLOOKUP(ROWS($J$2:J183),$A$2:$B$996,2,FALSE),"") -> 
A184: =IF(ISNUMBER(SEARCH(Cover!$H$13,Table1[[#This Row],[School District]])),MAX($A$1:A183)+1,0) -> 0 | B184: Cornell CCSD 426 | C184: 17053426004 | D184: 4 | E184: =IF(OR(Table1[[#This Row],[Type]]=0,Table1[[#This Row],[Type]]>=40),"JA","SD") -> SD | F184: Livingston | G184: 17-053-4260-04 | J184: =IFERROR(VLOOKUP(ROWS($J$2:J184),$A$2:$B$996,2,FALSE),"") -> 
A185: =IF(ISNUMBER(SEARCH(Cover!$H$13,Table1[[#This Row],[School District]])),MAX($A$1:A184)+1,0) -> 0 | B185: Coulterville USD 1 | C185: 45079001022 | D185: 22 | E185: =IF(OR(Table1[[#This Row],[Type]]=0,Table1[[#This Row],[Type]]>=40),"JA","SD") -> SD | F185: Randolph | G185: 45-079-0010-22 | J185: =IFERROR(VLOOKUP(ROWS($J$2:J185),$A$2:$B$996,2,FALSE),"") -> 
A186: =IF(ISNUMBER(SEARCH(Cover!$H$13,Table1[[#This Row],[School District]])),MAX($A$1:A185)+1,0) -> 0 | B186: Country Club Hills SD 160 | C186: 7016160002 | D186: 2 | E186: =IF(OR(Table1[[#This Row],[Type]]=0,Table1[[#This Row],[Type]]>=40),"JA","SD") -> SD | F186: Cook | G186: 07-016-1600-02 | J186: =IFERROR(VLOOKUP(ROWS($J$2:J186),$A$2:$B$996,2,FALSE),"") -> 
A187: =IF(ISNUMBER(SEARCH(Cover!$H$13,Table1[[#This Row],[School District]])),MAX($A$1:A186)+1,0) -> 0 | B187: County of Union Sch Dist No43 | C187: 30091043004 | D187: 4 | E187: =IF(OR(Table1[[#This Row],[Type]]=0,Table1[[#This Row],[Type]]>=40),"JA","SD") -> SD | F187: Union | G187: 30-091-0430-04 | J187: =IFERROR(VLOOKUP(ROWS($J$2:J187),$A$2:$B$996,2,FALSE),"") -> 
A188: =IF(ISNUMBER(SEARCH(Cover!$H$13,Table1[[#This Row],[School District]])),MAX($A$1:A187)+1,0) -> 0 | B188: County of Winnebago SD 320 | C188: 4101320026 | D188: 26 | E188: =IF(OR(Table1[[#This Row],[Type]]=0,Table1[[#This Row],[Type]]>=40),"JA","SD") -> SD | F188: Winnebago | G188: 04-101-3200-26 | J188: =IFERROR(VLOOKUP(ROWS($J$2:J188),$A$2:$B$996,2,FALSE),"") -> 
A189: =IF(ISNUMBER(SEARCH(Cover!$H$13,Table1[[#This Row],[School District]])),MAX($A$1:A188)+1,0) -> 0 | B189: County of Woodford School | C189: 53102122017 | D189: 17 | E189: =IF(OR(Table1[[#This Row],[Type]]=0,Table1[[#This Row],[Type]]>=40),"JA","SD") -> SD | F189: Woodford | G189: 53-102-1220-17 | J189: =IFERROR(VLOOKUP(ROWS($J$2:J189),$A$2:$B$996,2,FALSE),"") -> 
A190: =IF(ISNUMBER(SEARCH(Cover!$H$13,Table1[[#This Row],[School District]])),MAX($A$1:A189)+1,0) -> 0 | B190: Cowden-Herrick CUSD 3A | C190: 11087003A26 | D190: 26 | E190: =IF(OR(Table1[[#This Row],[Type]]=0,Table1[[#This Row],[Type]]>=40),"JA","SD") -> SD | F190: Shelby | G190: 11-087-003A-26 | J190: =IFERROR(VLOOKUP(ROWS($J$2:J190),$A$2:$B$996,2,FALSE),"") -> 
A191: =IF(ISNUMBER(SEARCH(Cover!$H$13,Table1[[#This Row],[School District]])),MAX($A$1:A190)+1,0) -> 0 | B191: Crab Orchard CUSD 3 | C191: 21100003026 | D191: 26 | E191: =IF(OR(Table1[[#This Row],[Type]]=0,Table1[[#This Row],[Type]]>=40),"JA","SD") -> SD | F191: Williamson | G191: 21-100-0030-26 | J191: =IFERROR(VLOOKUP(ROWS($J$2:J191),$A$2:$B$996,2,FALSE),"") -> 
A192: =IF(ISNUMBER(SEARCH(Cover!$H$13,Table1[[#This Row],[School District]])),MAX($A$1:A191)+1,0) -> 0 | B192: Crescent Iroquois CUSD 249 | C192: 32038249026 | D192: 26 | E192: =IF(OR(Table1[[#This Row],[Type]]=0,Table1[[#This Row],[Type]]>=40),"JA","SD") -> SD | F192: Iroquois | G192: 32-038-2490-26 | J192: =IFERROR(VLOOKUP(ROWS($J$2:J192),$A$2:$B$996,2,FALSE),"") -> 
A193: =IF(ISNUMBER(SEARCH(Cover!$H$13,Table1[[#This Row],[School District]])),MAX($A$1:A192)+1,0) -> 0 | B193: Creston CCSD 161 | C193: 47071161004 | D193: 4 | E193: =IF(OR(Table1[[#This Row],[Type]]=0,Table1[[#This Row],[Type]]>=40),"JA","SD") -> SD | F193: Ogle | G193: 47-071-1610-04 | J193: =IFERROR(VLOOKUP(ROWS($J$2:J193),$A$2:$B$996,2,FALSE),"") -> 
A194: =IF(ISNUMBER(SEARCH(Cover!$H$13,Table1[[#This Row],[School District]])),MAX($A$1:A193)+1,0) -> 0 | B194: Crete Monee CUSD 201U | C194: 56099201U26 | D194: 26 | E194: =IF(OR(Table1[[#This Row],[Type]]=0,Table1[[#This Row],[Type]]>=40),"JA","SD") -> SD | F194: Will | G194: 56-099-201U-26 | J194: =IFERROR(VLOOKUP(ROWS($J$2:J194),$A$2:$B$996,2,FALSE),"") -> 
A195: =IF(ISNUMBER(SEARCH(Cover!$H$13,Table1[[#This Row],[School District]])),MAX($A$1:A194)+1,0) -> 0 | B195: Creve Coeur SD 76 | C195: 53090076002 | D195: 2 | E195: =IF(OR(Table1[[#This Row],[Type]]=0,Table1[[#This Row],[Type]]>=40),"JA","SD") -> SD | F195: Tazewell | G195: 53-090-0760-02 | J195: =IFERROR(VLOOKUP(ROWS($J$2:J195),$A$2:$B$996,2,FALSE),"") -> 
A196: =IF(ISNUMBER(SEARCH(Cover!$H$13,Table1[[#This Row],[School District]])),MAX($A$1:A195)+1,0) -> 0 | B196: Crystal Lake CCSD 47 | C196: 44063047004 | D196: 4 | E196: =IF(OR(Table1[[#This Row],[Type]]=0,Table1[[#This Row],[Type]]>=40),"JA","SD") -> SD | F196: McHenry | G196: 44-063-0470-04 | J196: =IFERROR(VLOOKUP(ROWS($J$2:J196),$A$2:$B$996,2,FALSE),"") -> 
A197: =IF(ISNUMBER(SEARCH(Cover!$H$13,Table1[[#This Row],[School District]])),MAX($A$1:A196)+1,0) -> 0 | B197: CTE Consortium | C197: 8089723045 | D197: 45 | E197: =IF(OR(Table1[[#This Row],[Type]]=0,Table1[[#This Row],[Type]]>=40),"JA","SD") -> JA | F197: Stephenson | G197: 08-089-7230-45 | J197: =IFERROR(VLOOKUP(ROWS($J$2:J197),$A$2:$B$996,2,FALSE),"") -> 
A198: =IF(ISNUMBER(SEARCH(Cover!$H$13,Table1[[#This Row],[School District]])),MAX($A$1:A197)+1,0) -> 0 | B198: Cumberland CUSD 77 | C198: 11018077026 | D198: 26 | E198: =IF(OR(Table1[[#This Row],[Type]]=0,Table1[[#This Row],[Type]]>=40),"JA","SD") -> SD | F198: Cumberland/Jasper | G198: 11-018-0770-26 | J198: =IFERROR(VLOOKUP(ROWS($J$2:J198),$A$2:$B$996,2,FALSE),"") -> 
A199: =IF(ISNUMBER(SEARCH(Cover!$H$13,Table1[[#This Row],[School District]])),MAX($A$1:A198)+1,0) -> 0 | B199: CUSD 200 | C199: 19022200026 | D199: 26 | E199: =IF(OR(Table1[[#This Row],[Type]]=0,Table1[[#This Row],[Type]]>=40),"JA","SD") -> SD | F199: DuPage | G199: 19-022-2000-26 | J199: =IFERROR(VLOOKUP(ROWS($J$2:J199),$A$2:$B$996,2,FALSE),"") -> 
A200: =IF(ISNUMBER(SEARCH(Cover!$H$13,Table1[[#This Row],[School District]])),MAX($A$1:A199)+1,0) -> 0 | B200: CUSD 201 | C200: 19022201026 | D200: 26 | E200: =IF(OR(Table1[[#This Row],[Type]]=0,Table1[[#This Row],[Type]]>=40),"JA","SD") -> SD | F200: DuPage | G200: 19-022-2010-26 | J200: =IFERROR(VLOOKUP(ROWS($J$2:J200),$A$2:$B$996,2,FALSE),"") -> 
... 796 more rows

Sheet BudgetSum 2-4
A1: Begin entering data on EstRev 6-11 and EstExp 12-20 tabs. | C1: (10) | D1: (20) | E1: (30) | F1: (40) | G1: (50) | H1: (60) | I1: (70) | J1: (80) | K1: (90)
A2: Description: Enter Whole Numbers Only | B2: Acct # | C2: Educational | D2: Operations & Maintenance | E2: Debt Service | F2: Transportation | G2: Municipal Retirement/ Social Security | H2: Capital Projects | I2: Working Cash | J2: Tort | K2: Fire Prevention & Safety
A3: ESTIMATED BEGINNING FUND BALANCE (without Student Activity Funds)1 as of July 1, 2022 | C3: 1428677 | D3: 516691 | E3: 25082 | F3: 74352 | G3: 31103 | H3: 93065 | I3: 129929 | J3: 39002 | K3: 86120
A4: RECEIPTS/REVENUES (without Student Activity Funds)
A5: LOCAL SOURCES | B5: 1000 | C5: ='EstRev 6-11'!D111 -> 1061251 | D5: ='EstRev 6-11'!E111 -> 226077 | E5: ='EstRev 6-11'!F111 -> 342181 | F5: ='EstRev 6-11'!G111 -> 139769 | G5: ='EstRev 6-11'!H111 -> 136290 | H5: ='EstRev 6-11'!I111 -> 14450 | I5: ='EstRev 6-11'!J111 -> 15039 | J5: ='EstRev 6-11'!K111 -> 130200 | K5: ='EstRev 6-11'!L111 -> 2114839
A6: FLOW-THROUGH RECEIPTS/REVENUES FROM ONE DISTRICT TO ANOTHER DISTRICT | B6: 2000 | C6: ='EstRev 6-11'!D117 -> 0 | D6: ='EstRev 6-11'!E117 -> 0 | F6: ='EstRev 6-11'!G117 -> 0 | G6: ='EstRev 6-11'!H117 -> 0
A7: STATE SOURCES | B7: 3000 | C7: ='EstRev 6-11'!D172 -> 1095600 | D7: ='EstRev 6-11'!E172 -> 50000 | E7: ='EstRev 6-11'!F172 -> 0 | F7: ='EstRev 6-11'!G172 -> 129000 | G7: ='EstRev 6-11'!H172 -> 0 | H7: ='EstRev 6-11'!I172 -> 0 | I7: ='EstRev 6-11'!J172 -> 0 | J7: ='EstRev 6-11'!K172 -> 0 | K7: ='EstRev 6-11'!L172 -> 0
A8: FEDERAL SOURCES | B8: 4000 | C8: ='EstRev 6-11'!D269 -> 425155 | D8: ='EstRev 6-11'!E269 -> 276000 | E8: ='EstRev 6-11'!F269 -> 0 | F8: ='EstRev 6-11'!G269 -> 0 | G8: ='EstRev 6-11'!H269 -> 0 | H8: ='EstRev 6-11'!I269 -> 0 | I8: ='EstRev 6-11'!J269 -> 0 | J8: ='EstRev 6-11'!K269 -> 0 | K8: ='EstRev 6-11'!L269 -> 0
A9: Total Direct Receipts/Revenues 8 | C9: =SUM(C5:C8) -> 2582006 | D9: =SUM(D5:D8) -> 552077 | E9: 342181 | F9: 268769 | G9: 136290 | H9: 14450 | I9: 15039 | J9: 130200 | K9: 2114839
A10: Receipts/Revenues for "On Behalf" Payments 2 | B10: 3998
A11: Total Receipts/Revenues | C11: =SUM(C9:C10) -> 2582006 | D11: =SUM(D9:D10) -> 552077 | E11: 342181 | F11: 268769 | G11: 136290 | H11: 14450 | I11: 15039 | J11: 130200 | K11: 2114839
A12: DISBURSEMENTS/EXPENDITURES (without Student Activity Funds)
A13: INSTRUCTION | B13: 1000 | C13: ='EstExp 12-20'!L34 -> 1592100 | G13: ='EstExp 12-20'!L233 -> 24600 | J13: ='EstExp 12-20'!L344 -> 6500
A14: SUPPORT SERVICES | B14: 2000 | C14: ='EstExp 12-20'!L76 -> 791465 | D14: ='EstExp 12-20'!L133 -> 922000 | F14: ='EstExp 12-20'!L188 -> 268500 | G14: ='EstExp 12-20'!L276 -> 61450 | H14: ='EstExp 12-20'!L300 -> 0 | J14: ='EstExp 12-20'!L387 -> 156750 | K14: ='EstExp 12-20'!L438 -> 1000
A15: COMMUNITY SERVICES | B15: 3000 | C15: ='EstExp 12-20'!L77 -> 0 | D15: ='EstExp 12-20'!L134 -> 0 | F15: ='EstExp 12-20'!L189 -> 0 | G15: ='EstExp 12-20'!L277 -> 0 | J15: ='EstExp 12-20'!L388 -> 0
A16: PAYMENTS TO OTHER DISTRICTS & GOVT UNITS | B16: 4000 | C16: ='EstExp 12-20'!L104 -> 120000 | D16: ='EstExp 12-20'!L143 -> 0 | E16: ='EstExp 12-20'!L164 -> 0 | F16: ='EstExp 12-20'!L200 -> 0 | G16: ='EstExp 12-20'!L282 -> 0 | H16: ='EstExp 12-20'!L307 -> 0 | J16: ='EstExp 12-20'!L415 -> 0 | K16: ='EstExp 12-20'!L443 -> 0
A17: DEBT SERVICES | B17: 5000 | C17: ='EstExp 12-20'!L114 -> 0 | D17: ='EstExp 12-20'!L153 -> 0 | E17: ='EstExp 12-20'!L176 -> 336814 | F17: ='EstExp 12-20'!L212 -> 0 | G17: ='EstExp 12-20'!L290 -> 0 | J17: ='EstExp 12-20'!L426 -> 0 | K17: ='EstExp 12-20'!L451 -> 0
A18: PROVISION FOR CONTINGENCIES | B18: 6000 | C18: ='EstExp 12-20'!L115 -> 0 | D18: ='EstExp 12-20'!L154 -> 0 | E18: ='EstExp 12-20'!L177 -> 0 | F18: ='EstExp 12-20'!L213 -> 0 | G18: ='EstExp 12-20'!L291 -> 0 | H18: ='EstExp 12-20'!L308 -> 0 | J18: ='EstExp 12-20'!L427 -> 0 | K18: ='EstExp 12-20'!L452 -> 0
A19: Total Direct Disbursements/Expenditures 9 | C19: =SUM(C13:C18) -> 2503565 | D19: 922000 | E19: 336814 | F19: 268500 | G19: =SUM(G13:G18) -> 86050 | H19: =SUM(H13:H18) -> 0 | J19: =SUM(J13:J18) -> 163250 | K19: =SUM(K13:K18) -> 1000
A20: Disbursements/Expenditures for "On Behalf" Payments 2 | B20: 4180 | C20: =C10 -> 0 | D20: 0 | E20: 0 | F20: 0 | G20: 0 | H20: 0 | J20: =J10 -> 0 | K20: =K10 -> 0
A21: Total Disbursements/Expenditures | C21: =SUM(C19:C20) -> 2503565 | D21: 922000 | E21: 336814 | F21: 268500 | G21: 86050 | H21: 0 | J21: =SUM(J19:J20) -> 163250 | K21: =SUM(K19:K20) -> 1000
A22: Excess of Direct Receipts/Revenues Over (Under) Direct Disbursements/Expenditures | C22: =C9-C19 -> 78441 | D22: =D9-D19 -> -369923 | E22: 5367 | F22: 269 | G22: 50240 | H22: 14450 | I22: 15039 | J22: -33050 | K22: 2113839
A23: OTHER SOURCES/USES OF FUNDS
A24: OTHER SOURCES OF FUNDS (7000)
A25: PERMANENT TRANSFER FROM VARIOUS FUNDS
A26: Abolishment the Working Cash Fund 16 | B26: 7110
A27: Abatement of the Working Cash Fund 16 | B27: 7110
A28: Transfer of Working Cash Fund Interest | B28: 7120
A29: Transfer Among Funds | B29: 7130
A30: Transfer of Interest | B30: 7140
A31: Transfer from Capital Projects Fund to O&M Fund | B31: 7150 | D31: =H54 -> 0
A32: Transfer of Excess Fire Prev & Safety Tax & Interest 3 Proceeds to O&M Fund | B32: 7160 | D32: =K55 -> 0
A33: Transfer of Excess Accumulated Fire Prev & Safety Bond and Int 3a Proceeds to Debt Service Fund | B33: 7170 | E33: =K56 -> 0
A34: SALE OF BONDS (7200)
A35: Principal on Bonds Sold 4 | B35: 7210
A36: Premium on Bonds Sold | B36: 7220
A37: Accrued Interest on Bonds Sold | B37: 7230
A38: Sale or Compensation for Fixed Assets 5 | B38: 7300
A39: Transfer to Debt Service to Pay Principal on GASB 87 Leases | B39: 7400 | E39: =SUM(C57:H60) -> 0
A40: Transfer to Debt Service to Pay Interest on GASB 87 Leases | B40: 7500 | E40: =SUM(C61:H64) -> 0
A41: Transfer to Debt Service Fund to Pay Principal on Revenue Bonds | B41: 7600 | E41: =SUM(C65:D68) -> 0
A42: Transfer to Debt Service Fund to Pay Interest on Revenue Bonds | B42: 7700 | E42: =SUM(C69:D72) -> 0
A43: Transfer to Capital Projects Fund | B43: 7800 | H43: =SUM(C73:D76) -> 0
A44: ISBE Loan Proceeds | B44: 7900
A45: Other Sources Not Classified Elsewhere | B45: 7990
A46: Total Other Sources of Funds 8 | C46: =SUM(C26:C45) -> 0 | D46: =SUM(D26:D45) -> 0 | E46: 0 | F46: 0 | G46: 0 | H46: 0 | I46: 0 | J46: 0 | K46: 0
A47: OTHER USES OF FUNDS (8000)
A49: TRANSFER TO VARIOUS OTHER FUNDS (8100)
A50: Abolishment or Abatement of the Working Cash Fund 16 | B50: 8110 | I50: =SUM(C26,C27,D27,E27,F27,G27,H27,J27,K27) -> 0
A51: Transfer of Working Cash Fund Interest | B51: 8120 | I51: =SUM(C28:K28) -> 0
A52: Transfer Among Funds | B52: 8130
A53: Transfer of Interest 6 | B53: 8140
A54: Transfer from Capital Projects Fund to O&M Fund | B54: 8150
A55: Transfer of Excess Fire Prev & Safety Tax & Interest 3 Proceeds to O&M Fund | B55: 8160
A56: Transfer of Excess Accumulated Fire Prev & Safety Bond 3a and Int Proceeds to Debt Service Fund | B56: 8170
A57: Taxes Pledged to Pay Principal on GASB 87 Leases | B57: 8410
A58: Grants/Reimbursements Pledged to Pay Principal on GASB 87 Leases | B58: 8420
A59: Other Revenues Pledged to Pay Principal on GASB 87 Leases | B59: 8430
A60: Fund Balance Transfers Pledged to Pay Principal on GASB 87 Leases | B60: 8440
A61: Taxes Pledged to Pay Interest on GASB 87 Leases | B61: 8510
A62: Grants/Reimbursements Pledged to Pay Interest on GASB 87 Leases | B62: 8520
A63: Other Revenues Pledged to Pay Interest on GASB 87 Leases | B63: 8530
A64: Fund Balance Transfers Pledged to Pay Interest on GASB 87 Leases | B64: 8540
A65: Taxes Pledged to Pay Principal on Revenue Bonds | B65: 8610
A66: Grants/Reimbursements Pledged to Pay Principal on Revenue Bonds | B66: 8620
A67: Other Revenues Pledged to Pay Principal on Revenue Bonds | B67: 8630
A68: Fund Balance Transfers Pledged to Pay Principal on Revenue Bonds | B68: 8640
A69: Taxes Pledged to Pay Interest on Revenue Bonds | B69: 8710
A70: Grants/Reimbursements Pledged to Pay Interest on Revenue Bonds | B70: 8720
A71: Other Revenues Pledged to Pay Interest on Revenue Bonds | B71: 8730
A72: Fund Balance Transfers Pledged to Pay Interest on Revenue Bonds | B72: 8740
A73: Taxes Transferred to Pay for Capital Projects | B73: 8810
A74: Grants/Reimbursements Pledged to Pay for Capital Projects | B74: 8820
A75: Other Revenues Pledged to Pay for Capital Projects | B75: 8830
A76: Fund Balance Transfers Pledged to Pay for Capital Projects | B76: 8840
A77: Transfer to Debt Service Fund to Pay Principal on ISBE Loans | B77: 8910
A78: Other Uses Not Classified Elsewhere | B78: 8990
A79: Total Other Uses of Funds 9 | C79: =SUM(C50:C78) -> 0 | D79: =SUM(D50:D78) -> 0 | E79: 0 | F79: 0 | G79: 0 | H79: 0 | I79: 0 | J79: 0 | K79: 0
A80: Total Other Sources/Uses of Fund | C80: =C46-C79 -> 0 | D80: 0 | E80: 0 | F80: 0 | G80: 0 | H80: 0 | I80: 0 | J80: 0 | K80: 0
A81: ="ESTIMATED ENDING FUND BALANCE (without Student Activity Funds) as of June 30, "&'B23'!E2 -> ESTIMATED ENDING FUND BALANCE (without Student Activity Funds) as of June 30, 2023 | C81: =C3+C22+C80 -> 1507118 | D81: 146768 | E81: =E3+E22+E80 -> 30449 | F81: 74621 | G81: 81343 | H81: 107515 | I81: 144968 | J81: 5952 | K81: 2199959
A83: ="Student Activity (Fund 11) ESTIMATED BEGINNING FUND BALANCE as of July 1, "&'B23'!E2-1 -> Student Activity (Fund 11) ESTIMATED BEGINNING FUND BALANCE as of July 1, 2022 | C83: 50000
A84: RECEIPTS/REVENUES (For Student Activity Funds)
A85: Total Student Activity Direct Receipts/Revenues (Local Sources) | B85: 1799 | C85: ='EstRev 6-11'!D82 -> 47500
A86: DISBURSEMENTS/EXPENDITURES (For Student Activity Funds)
A87: Total Student Activity Direct Disbursements/Expenditures | B87: 1999 | C87: ='EstExp 12-20'!L33 -> 47000
A88: Excess of Direct Receipts/Revenues Over (Under) Direct Disbursements/Expenditures | C88: =C85-C87 -> 500
A89: ="Student Activity ESTIMATED ENDING FUND BALANCE as of June 30, "&'B23'!E2 -> Student Activity ESTIMATED ENDING FUND BALANCE as of June 30, 2023 | C89: =C83+C88 -> 50500
A91: ="Total ESTIMATED BEGINNING FUND BALANCE (All Sources Including Student Activity Funds) as of July 1, "&'B23'!E2-1 -> Total ESTIMATED BEGINNING FUND BALANCE (All Sources Including Student Activity Funds) as of July 1, 2022 | C91: =C3+C83 -> 1478677 | D91: =D3 -> 516691 | E91: =E3 -> 25082 | F91: 74352 | G91: 31103 | H91: 93065 | I91: 129929 | J91: 39002 | K91: 86120
A92: RECEIPTS/REVENUES (All Sources with Student Activity Funds)
A93: LOCAL SOURCES | B93: 1000 | C93: =C5+C85 -> 1108751 | D93: =D5 -> 226077 | E93: =E5 -> 342181 | F93: 139769 | G93: 136290 | H93: 14450 | I93: 15039 | J93: 130200 | K93: 2114839
A94: FLOW-THROUGH RECEIPTS/REVENUES FROM ONE DISTRICT TO ANOTHER DISTRICT | B94: 2000 | C94: =C6 -> 0 | D94: =D6 -> 0 | F94: =F6 -> 0 | G94: =G6 -> 0
A95: STATE SOURCES | B95: 3000 | C95: =C7 -> 1095600 | D95: =D7 -> 50000 | E95: 0 | F95: 129000 | G95: 0 | H95: 0 | I95: 0 | J95: 0 | K95: 0
A96: FEDERAL SOURCES | B96: 4000 | C96: =C8 -> 425155 | D96: =D8 -> 276000 | E96: 0 | F96: 0 | G96: 0 | H96: 0 | I96: 0 | J96: 0 | K96: 0
A97: Total Direct Receipts/Revenues 8 | C97: =SUM(C93:C96) -> 2629506 | D97: =SUM(D93:D96) -> 552077 | E97: 342181 | F97: 268769 | G97: 136290 | H97: 14450 | I97: 15039 | J97: 130200 | K97: 2114839
A98: Receipts/Revenues for "On Behalf" Payments 2 | B98: 3998 | C98: =C10 -> 0 | D98: =D10 -> 0 | E98: 0 | F98: 0 | G98: 0 | H98: 0 | J98: 0 | K98: 0
A99: Total Receipts/Revenues | C99: =SUM(C97:C98) -> 2629506 | D99: =SUM(D97:D98) -> 552077 | E99: 342181 | F99: 268769 | G99: 136290 | H99: 14450 | I99: 15039 | J99: 130200 | K99: 2114839
A100: DISBURSEMENTS/EXPENDITURES (All Sources with Student Activity Funds)
A101: INSTRUCTION | B101: 1000 | C101: =C13+C87 -> 1639100 | G101: =G13 -> 24600 | J101: =J13 -> 6500
A102: SUPPORT SERVICES | B102: 2000 | C102: =C14 -> 791465 | D102: 922000 | F102: =F14 -> 268500 | G102: 61450 | H102: =H14 -> 0 | J102: =J14 -> 156750 | K102: =K14 -> 1000
A103: COMMUNITY SERVICES | B103: 3000 | C103: 0 | D103: 0 | F103: =F15 -> 0 | G103: 0 | J103: =J15 -> 0
A104: PAYMENTS TO OTHER DISTRICTS & GOVT UNITS | B104: 4000 | C104: 120000 | D104: 0 | E104: =E16 -> 0 | F104: =F16 -> 0 | G104: 0 | H104: =H16 -> 0 | J104: =J16 -> 0 | K104: 0
A105: DEBT SERVICES | B105: 5000 | C105: 0 | D105: 0 | E105: =E17 -> 336814 | F105: =F17 -> 0 | G105: 0 | J105: 0 | K105: 0
A106: PROVISION FOR CONTINGENCIES | B106: 6000 | C106: 0 | D106: 0 | E106: =E18 -> 0 | F106: =F18 -> 0 | G106: 0 | H106: =H18 -> 0 | J106: 0 | K106: 0
A107: Total Direct Disbursements/Expenditures 9 | C107: =SUM(C101:C106) -> 2550565 | D107: 922000 | E107: 336814 | F107: 268500 | G107: 86050 | H107: 0 | J107: =SUM(J101:J106) -> 163250 | K107: =SUM(K101:K106) -> 1000
A108: Disbursements/Expenditures for "On Behalf" Payments 2 | B108: 4180 | C108: =C98 -> 0 | D108: 0 | E108: 0 | F108: 0 | G108: 0 | H108: 0 | J108: =J98 -> 0 | K108: =K98 -> 0
A109: Total Disbursements/Expenditures | C109: =SUM(C107:C108) -> 2550565 | D109: 922000 | E109: 336814 | F109: 268500 | G109: 86050 | H109: 0 | J109: =SUM(J107:J108) -> 163250 | K109: =SUM(K107:K108) -> 1000
A110: Excess of Direct Receipts/Revenues Over (Under) Direct Disbursements/Expenditures | C110: =C97-C107 -> 78941 | D110: =D97-D107 -> -369923 | E110: 5367 | F110: 269 | G110: 50240 | H110: 14450 | I110: 15039 | J110: -33050 | K110: 2113839
A111: OTHER SOURCES/USES OF FUNDS
A112: OTHER SOURCES OF FUNDS (7000)
A113: Total Other Sources of Funds 8 | C113: =C46 -> 0 | D113: =D46 -> 0 | E113: 0 | F113: 0 | G113: 0 | H113: 0 | I113: 0 | J113: 0 | K113: 0
A114: OTHER USES OF FUNDS (8000)
A116: Total Other Uses of Funds 9 | C116: =C79 -> 0 | D116: =D79 -> 0 | E116: 0 | F116: 0 | G116: 0 | H116: 0 | I116: 0 | J116: 0 | K116: 0
A117: Total Other Sources/Uses of Fund | C117: =C80 -> 0 | D117: =D80 -> 0 | E117: 0 | F117: 0 | G117: 0 | H117: 0 | I117: 0 | J117: 0 | K117: 0
A118: ="ESTIMATED ENDING FUND BALANCE (All Sources with Student Activity Funds) as of June 30, "&'B23'!E2 -> ESTIMATED ENDING FUND BALANCE (All Sources with Student Activity Funds) as of June 30, 2023 | C118: =C81+C89 -> 1557618 | D118: =D81+D89 -> 146768 | E118: 30449 | F118: 74621 | G118: 81343 | H118: 107515 | I118: 144968 | J118: 5952 | K118: 2199959
A120: SUMMARY OF EXPENDITURES Without Student Activity Funds (by Major Object)
C121: (10) | D121: (20) | E121: (30) | F121: (40) | G121: (50) | H121: (60) | I121: (70) | J121: (80) | K121: (90)
A122: Description | B122: Acct # | C122: Educational | D122: Operations & Maintenance | E122: Debt Service | F122: Transportation | G122: Municipal Retirement/ Social Security | H122: Capital Projects | I122: Working Cash | J122: Tort | K122: Fire Prevention & Safety | L122: Total By Object
A123: Object Name
A124: Salaries | B124: 100 | C124: ='EstExp 12-20'!D116 -> 1636040 | D124: ='EstExp 12-20'!D155 -> 115000 | F124: ='EstExp 12-20'!D214 -> 120000 | H124: ='EstExp 12-20'!D309 -> 0 | J124: ='EstExp 12-20'!D$428 -> 91500 | K124: ='EstExp 12-20'!D453 -> 0 | L124: =SUM(C124:K124) -> 1962540
A125: Employee Benefits | B125: 200 | C125: ='EstExp 12-20'!E116 -> 321100 | D125: ='EstExp 12-20'!E155 -> 8000 | F125: ='EstExp 12-20'!E214 -> 4500 | G125: ='EstExp 12-20'!E292 -> 86050 | H125: ='EstExp 12-20'!E309 -> 0 | J125: ='EstExp 12-20'!E428 -> 1750 | K125: ='EstExp 12-20'!E453 -> 0 | L125: 421400
A126: Purchased Services | B126: 300 | C126: ='EstExp 12-20'!F116 -> 266000 | D126: ='EstExp 12-20'!F155 -> 175000 | E126: ='EstExp 12-20'!F178 -> 0 | F126: ='EstExp 12-20'!F214 -> 117000 | H126: ='EstExp 12-20'!F309 -> 0 | J126: ='EstExp 12-20'!F428 -> 70000 | K126: ='EstExp 12-20'!F453 -> 1000 | L126: 629000
A127: Supplies & Materials | B127: 400 | C127: ='EstExp 12-20'!G116 -> 159425 | D127: ='EstExp 12-20'!G155 -> 60000 | F127: ='EstExp 12-20'!G214 -> 27000 | H127: ='EstExp 12-20'!G309 -> 0 | J127: ='EstExp 12-20'!G428 -> 0 | K127: ='EstExp 12-20'!G453 -> 0 | L127: 246425
A128: Capital Outlay | B128: 500 | C128: ='EstExp 12-20'!H116 -> 36000 | D128: ='EstExp 12-20'!H155 -> 564000 | F128: ='EstExp 12-20'!H214 -> 0 | H128: ='EstExp 12-20'!H309 -> 0 | J128: ='EstExp 12-20'!H428 -> 0 | K128: ='EstExp 12-20'!H453 -> 0 | L128: 600000
A129: Other Objects | B129: 600 | C129: ='EstExp 12-20'!I116 -> 85000 | D129: ='EstExp 12-20'!I155 -> 0 | E129: ='EstExp 12-20'!I178 -> 336814 | F129: ='EstExp 12-20'!I214 -> 0 | G129: ='EstExp 12-20'!I292 -> 0 | H129: ='EstExp 12-20'!I309 -> 0 | J129: ='EstExp 12-20'!I428 -> 0 | K129: ='EstExp 12-20'!I453 -> 0 | L129: 421814
A130: Non-Capitalized Equipment | B130: 700 | C130: ='EstExp 12-20'!J116 -> 0 | D130: ='EstExp 12-20'!J155 -> 0 | F130: ='EstExp 12-20'!J214 -> 0 | H130: ='EstExp 12-20'!J309 -> 0 | J130: ='EstExp 12-20'!J428 -> 0 | K130: ='EstExp 12-20'!J453 -> 0 | L130: 0
A131: Termination Benefits | B131: 800 | C131: ='EstExp 12-20'!K116 -> 0 | D131: ='EstExp 12-20'!K155 -> 0 | F131: ='EstExp 12-20'!K214 -> 0 | J131: ='EstExp 12-20'!K428 -> 0 | L131: 0
A132: Total Expenditures | C132: =SUM(C124:C131) -> 2503565 | D132: 922000 | E132: 336814 | F132: 268500 | G132: 86050 | H132: 0 | J132: =SUM(J124:J131) -> 163250 | K132: =SUM(K124:K131) -> 1000 | L132: 4281179

Sheet CashSum 5
C1: (10) | D1: (20) | E1: (30) | F1: (40) | G1: (50) | H1: (60) | I1: (70) | J1: (80) | K1: (90)
A2: Description: Enter Whole Numbers Only | B2: Acct # | C2: Educational | D2: Operations & Maintenance | E2: Debt Service | F2: Transportation | G2: Municipal Retirement/ Social Security | H2: Capital Projects | I2: Working Cash | J2: Tort | K2: Fire Prevention & Safety
A3: BEGINNING CASH BALANCE ON HAND (without Student Activity Funds)7 as of July 1, 2022 | C3: 1428677 | D3: 516691 | E3: 25082 | F3: 74352 | G3: 31103 | H3: 93065 | I3: 129929 | J3: 39002 | K3: 86120
A4: Total Direct Receipts & Other Sources 8 | C4: ='BudgetSum 2-4'!C9+'BudgetSum 2-4'!C46 -> 2582006 | D4: ='BudgetSum 2-4'!D9+'BudgetSum 2-4'!D46 -> 552077 | E4: ='BudgetSum 2-4'!E9+'BudgetSum 2-4'!E46 -> 342181 | F4: ='BudgetSum 2-4'!F9+'BudgetSum 2-4'!F46 -> 268769 | G4: ='BudgetSum 2-4'!G9+'BudgetSum 2-4'!G46 -> 136290 | H4: ='BudgetSum 2-4'!H9+'BudgetSum 2-4'!H46 -> 14450 | I4: ='BudgetSum 2-4'!I9+'BudgetSum 2-4'!I46 -> 15039 | J4: ='BudgetSum 2-4'!J9+'BudgetSum 2-4'!J46 -> 130200 | K4: ='BudgetSum 2-4'!K9+'BudgetSum 2-4'!K46 -> 2114839
A5: OTHER RECEIPTS
A6: Interfund Loans Payable (Loans from Other Funds) | B6: 411
A7: Interfund Loans Receivable (Repayment of Loans) | B7: 141
A8: Notes and Warrants Payable | B8: 433
A9: Other Current Assets | B9: 199
A10: Total Other Receipts | C10: =SUM(C6:C9) -> 0 | D10: =SUM(D6:D9) -> 0 | E10: 0 | F10: 0 | G10: 0 | H10: 0 | I10: 0 | J10: 0 | K10: 0
A11: Total Direct Receipts, Other Sources, & Other Receipts | C11: =SUM(C4,C10) -> 2582006 | D11: =SUM(D4,D10) -> 552077 | E11: 342181 | F11: 268769 | G11: 136290 | H11: 14450 | I11: 15039 | J11: 130200 | K11: 2114839
A12: Total Amount Available | C12: =SUM(C3,C11) -> 4010683 | D12: =SUM(D3,D11) -> 1068768 | E12: 367263 | F12: 343121 | G12: 167393 | H12: 107515 | I12: 144968 | J12: 169202 | K12: 2200959
A13: Total Direct Disbursements & Other Uses 9 | C13: =SUM('BudgetSum 2-4'!C19,'BudgetSum 2-4'!C79) -> 2503565 | D13: =SUM('BudgetSum 2-4'!D19,'BudgetSum 2-4'!D79) -> 922000 | E13: =SUM('BudgetSum 2-4'!E19,'BudgetSum 2-4'!E79) -> 336814 | F13: =SUM('BudgetSum 2-4'!F19,'BudgetSum 2-4'!F79) -> 268500 | G13: =SUM('BudgetSum 2-4'!G19,'BudgetSum 2-4'!G79) -> 86050 | H13: =SUM('BudgetSum 2-4'!H19,'BudgetSum 2-4'!H79) -> 0 | I13: =SUM('BudgetSum 2-4'!I19,'BudgetSum 2-4'!I79) -> 0 | J13: =SUM('BudgetSum 2-4'!J19,'BudgetSum 2-4'!J79) -> 163250 | K13: =SUM('BudgetSum 2-4'!K19,'BudgetSum 2-4'!K79) -> 1000
A14: OTHER DISBURSEMENTS
A15: Interfund Loans Receivable (Loans to Other Funds) 10 | B15: 141
A16: Interfund Loans Payable (Repayment of Loans) | B16: 411
A17: Notes and Warrants Payable | B17: 433
A18: Other Current Liabilities | B18: 499
A19: Total Other Disbursements | C19: =SUM(C15:C18) -> 0 | D19: 0 | E19: 0 | F19: 0 | G19: 0 | H19: 0 | I19: 0 | J19: 0 | K19: 0
A20: Total Direct Disbursements, Other Uses, & Other Disbursements | C20: =SUM(C13,C19) -> 2503565 | D20: =SUM(D13,D19) -> 922000 | E20: =SUM(E13,E19) -> 336814 | F20: 268500 | G20: 86050 | H20: 0 | I20: 0 | J20: 163250 | K20: 1000
A21: ENDING CASH BALANCE ON HAND (without Student Activity Funds)7 as of June 30, 2023 | C21: =SUM(C12-C20) -> 1507118 | D21: =SUM(D12-D20) -> 146768 | E21: 30449 | F21: 74621 | G21: 81343 | H21: 107515 | I21: 144968 | J21: 5952 | K21: 2199959
A23: Activity Funds BEGINNING CASH BALANCE ON HAND7 as of July 1, 2022 | C23: 50000
A24: Total Direct Receipts & Other Sources 8 | C24: ='BudgetSum 2-4'!C85 -> 47500
A25: Total Amount Available | C25: =SUM(C23,C24) -> 97500
A26: Total Direct Disbursements & Other Uses 9 | C26: ='BudgetSum 2-4'!C87 -> 47000
A27: Activity funds ENDING CASH BALANCE ON HAND7 as of June 30, 2023 | C27: =SUM(C25-C26) -> 50500
A29: Total BEGINNING CASH BALANCE ON HAND (with Student Activity Funds)7 as of July 1, 2022 | C29: =C3+C23 -> 1478677 | D29: =D3 -> 516691 | E29: 25082 | F29: 74352 | G29: 31103 | H29: 93065 | I29: 129929 | J29: 39002 | K29: 86120
A30: Total Direct Receipts & Other Sources 8 | C30: =C4+C24 -> 2629506 | D30: 552077 | E30: 342181 | F30: 268769 | G30: 136290 | H30: 14450 | I30: 15039 | J30: 130200 | K30: 2114839
A31: Total Other Receipts | C31: =C10 -> 0 | D31: 0 | E31: 0 | F31: 0 | G31: 0 | H31: 0 | I31: 0 | J31: 0 | K31: 0
A32: Total Direct Receipts, Other Sources, & Other Receipts | C32: =SUM(C30,C31) -> 2629506 | D32: 552077 | E32: 342181 | F32: 268769 | G32: 136290 | H32: 14450 | I32: 15039 | J32: 130200 | K32: 2114839
A33: Total Amount Available | C33: =SUM(C29,C32) -> 4108183 | D33: 1068768 | E33: 367263 | F33: 343121 | G33: 167393 | H33: 107515 | I33: 144968 | J33: 169202 | K33: 2200959
A34: Total Direct Disbursements & Other Uses 9 | C34: =C13+C26 -> 2550565 | D34: =D13 -> 922000 | E34: 336814 | F34: 268500 | G34: 86050 | H34: 0 | I34: 0 | J34: 163250 | K34: 1000
A35: Total Other Disbursements | C35: =C19 -> 0 | D35: 0 | E35: 0 | F35: 0 | G35: 0 | H35: 0 | I35: 0 | J35: 0 | K35: 0
A36: Total Direct Disbursements, Other Uses, & Other Disbursements | C36: =SUM(C34,C35) -> 2550565 | D36: 922000 | E36: 336814 | F36: 268500 | G36: 86050 | H36: 0 | I36: 0 | J36: 163250 | K36: 1000
A37: Total ENDING CASH BALANCE ON HAND (with Student Activity Funds)7 as of June 30, 2023 | C37: =SUM(C33-C36) -> 1557618 | D37: 146768 | E37: 30449 | F37: 74621 | G37: 81343 | H37: 107515 | I37: 144968 | J37: 5952 | K37: 2199959

Sheet EstRev 6-11
D1: (10) | E1: (20) | F1: (30) | G1: (40) | H1: (50) | I1: (60) | J1: (70) | K1: (80) | L1: (90)
A2: VLOOKUP | B2: Description: Enter Whole Numbers Only | C2: Acct # | D2: Educational | E2: Operations & Maintenance | F2: Debt Service | G2: Transportation | H2: Municipal Retirement/ Social Security | I2: Capital Projects | J2: Working Cash | K2: Tort | L2: Fire Prevention & Safety
B3: RECEIPTS/REVENUES FROM LOCAL SOURCES (1000)
B4: AD VALOREM TAXES LEVIED BY LOCAL EDUCATION AGENCY | C4: 1100
B5: Designated Purposes Levies 11 (1110-1120) | C5: ­ | D5: 720000 | E5: 216577 | F5: 287000 | G5: 57754 | H5: 55000 | J5: 14439 | K5: 120000 | L5: 14439
B6: Leasing Purposes Levy 12 | C6: 1130 | D6: 14000 | E6: 7000
B7: Special Education Purposes Levy | C7: 1140 | D7: 11551
B8: FICA and Medicare Only Levies | C8: 1150 | H8: 51000
B9: Area Vocational Construction Purposes Levy | C9: 1160
B10: Summer School Purposes Levy | C10: 1170
A11: 1190 | B11: Other Tax Levies (Describe & Itemize) | C11: 1190
B12: Total Ad Valorem Taxes Levied by District | D12: =SUM(D5:D11) -> 745551 | E12: =SUM(E5:E11) -> 223577 | F12: 287000 | G12: 57754 | H12: 106000 | I12: 0 | J12: 14439 | K12: 120000 | L12: 14439
B13: PAYMENTS IN LIEU OF TAXES | C13: 1200
B14: Mobile Home Privilege Tax | C14: 1210
B15: Payments from Local Housing Authority | C15: 1220
B16: Corporate Personal Property Replacement Taxes13 | C16: 1230 | D16: 127000 | F16: 1000 | G16: 82000 | H16: 30000 | K16: 10000
A17: 1290 | B17: Other Payments in Lieu of Taxes (Describe & Itemize) | C17: 1290
B18: Total Payments in Lieu of Taxes | D18: =SUM(D14:D17) -> 127000 | E18: =SUM(E14:E17) -> 0 | F18: 1000 | G18: 82000 | H18: 30000 | I18: 0 | J18: 0 | K18: 10000 | L18: 0
B19: TUITION | C19: 1300
B20: Regular Tuition from Pupils or Parents (In State) | C20: 1311
B21: Regular Tuition from Other Districts (In State) | C21: 1312
B22: Regular Tuition from Other Sources (In State) | C22: 1313
B23: Regular Tuition from Other Sources (Out of State) | C23: 1314
B24: Summer School Tuition from Pupils or Parents (In State) | C24: 1321
B25: Summer School Tuition from Other Districts (In State) | C25: 1322
B26: Summer School Tuition from Other Sources (In State) | C26: 1323
B27: Summer School Tuition from Other Sources (Out of State) | C27: 1324
B28: CTE Tuition from Pupils or Parents (In State) | C28: 1331
B29: CTE Tuition from Other Districts (In State) | C29: 1332
B30: CTE Tuition from Other Sources (In State) | C30: 1333
B31: CTE Tuition from Other Sources (Out of State) | C31: 1334
B32: Special Education Tuition from Pupils or Parents (In State) | C32: 1341
B33: Special Education Tuition from Other Districts (In State) | C33: 1342
B34: Special Education Tuition from Other Sources (In State) | C34: 1343
B35: Special Education Tuition from Other Sources (Out of State) | C35: 1344
B36: Adult Tuition from Pupils or Parents (In State) | C36: 1351
B37: Adult Tuition from Other Districts (In State) | C37: 1352
B38: Adult Tuition from Other Sources (In State) | C38: 1353
B39: Adult Tuition from Other Sources (Out of State) | C39: 1354
B40: Total Tuition | D40: =SUM(D20:D39) -> 0
B41: TRANSPORTATION FEES | C41: 1400
B42: Regular Transportation Fees from Pupils or Parents (In State) | C42: 1411
B43: Regular Transportation Fees from Other Districts (In State) | C43: 1412
B44: Regular Transportation Fees from Other Sources (In State) | C44: 1413
B45: Regular Transportation Fees from Co-curricular Activities (In State) | C45: 1415
B46: Regular Transportation Fees from Other Sources (Out of State) | C46: 1416
B47: Summer School Transportation Fees from Pupils or Parents (In State) | C47: 1421
B48: Summer School Transportation Fees from Other Districts (In State) | C48: 1422
B49: Summer School Transportation Fees from Other Sources (In State) | C49: 1423
B50: Summer School Transportation Fees from Other Sources (Out of State) | C50: 1424
B51: CTE Transportation Fees from Pupils or Parents (In State) | C51: 1431
B52: CTE Transportation Fees from Other Districts (In State) | C52: 1432
B53: CTE Transportation Fees from Other Sources (In State) | C53: 1433
B54: CTE Transportation Fees from Other Sources (Out of State) | C54: 1434
B55: Special Education Transportation Fees from Pupils or Parents (In State) | C55: 1441
B56: Special Education Transportation Fees from Other Districts (In State) | C56: 1442
B57: Special Education Transportation Fees from Other Sources (In State) | C57: 1443
B58: Special Education Transportation Fees from Other Sources (Out of State) | C58: 1444
B59: Adult Transportation Fees from Pupils or Parents (In State) | C59: 1451
B60: Adult Transportation Fees from Other Districts (In State) | C60: 1452
B61: Adult Transportation Fees from Other Sources (In State) | C61: 1453
B62: Adult Transportation Fees from Other Sources (Out of State) | C62: 1454
B63: Total Transportation Fees | G63: =SUM(G42:G62) -> 0
B64: EARNINGS ON INVESTMENTS | C64: 1500
B65: Interest on Investments | C65: 1510 | D65: 8600 | E65: 2500 | F65: 400 | G65: 15 | H65: 290 | I65: 450 | J65: 600 | K65: 200 | L65: 400
B66: Gain or Loss on Sale of Investments | C66: 1520
B67: Total Earnings on Investments | D67: =SUM(D65:D66) -> 8600 | E67: =SUM(E65:E66) -> 2500 | F67: 400 | G67: 15 | H67: 290 | I67: 450 | J67: 600 | K67: 200 | L67: 400
B68: FOOD SERVICE | C68: 1600
B69: Sales to Pupils - Lunch | C69: 1611
B70: Sales to Pupils - Breakfast | C70: 1612
B71: Sales to Pupils - A la Carte | C71: 1613 | D71: 2200
A72: 1614 | B72: Sales to Pupils - Other (Describe & Itemize) | C72: 1614
B73: Sales to Adults | C73: 1620
A74: 1690 | B74: Other Food Service (Describe & Itemize) | C74: 1690
B75: Total Food Service | D75: =SUM(D69:D74) -> 2200
B76: DISTRICT/SCHOOL ACTIVITY INCOME | C76: 1700
B77: Admissions - Athletic | C77: 1711 | D77: 11500
B78: Admissions - Other | C78: 1719 | D78: 1500
B79: Fees | C79: 1720 | D79: 1750
B80: Book Store Sales | C80: 1730
A81: 1790 | B81: Other District/School Activity Revenue (Describe & Itemize) | C81: 1790
B82: Student Activity Fund Revenues | C82: 1799 | D82: 47500
B83: Total District/School Activity Income (without Student Activity Funds 1799) | D83: =SUM(D77:D81) -> 14750 | E83: =SUM(E77:E81) -> 0
B84: Total District/School Activity Income (with Student Activity Funds 1799) | D84: =D83+D82 -> 62250
B85: TEXTBOOK INCOME | C85: 1800
B86: Textbook Rentals - Regular Textbooks | C86: 1811 | D86: 1000
B87: Textbook Rentals - Summer School Textbooks | C87: 1812
B88: Textbook Rentals - Adult/Continuing Education Textbooks | C88: 1813
A89: 1819 | B89: Textbook Rentals - Other (Describe & Itemize) | C89: 1819 | D89: 4700
B90: Textbook Sales - Regular Textbooks | C90: 1821
B91: Textbook Sales - Summer School | C91: 1822
B92: Textbook Sales - Adult/Continuing Education | C92: 1823
A93: 1829 | B93: Textbook Sales - Other (Describe & Itemize) | C93: 1829 | D93: 600
A94: 1890 | B94: Other Textbook Income (Describe & Itemize) | C94: 1890 | D94: 50
B95: Total Textbooks | D95: =SUM(D86:D94) -> 6350
B96: OTHER REVENUE FROM LOCAL SOURCES | C96: 1900
B97: Rentals | C97: 1910 | D97: 13000
B98: Contributions and Donations from Private Sources | C98: 1920
B99: Impact Fees from Municipal or County Governments | C99: 1930
B100: Services Provided Other Districts | C100: 1940
B101: Refund of Prior Years' Expenditures | C101: 1950
B102: Payments of Surplus Moneys from TIF Districts | C102: 1960 | D102: 8700
B103: Drivers' Education Fees | C103: 1970 | D103: 500
B104: Proceeds from Vendors' Contracts | C104: 1980
B105: School Facility Occupation Tax Proceeds | C105: 1983 | F105: 53781 | I105: 14000
B106: Payment from Other Districts | C106: 1991 | D106: 103000
B107: Sale of Vocational Projects | C107: 1992
A108: 1993 | B108: Other Local Fees (Describe & Itemize) | C108: 1993
A109: 1999 | B109: Other Local Revenues (Describe & Itemize) | C109: 1999 | D109: 31600 | L109: 2100000
B110: Total Other Revenue from Local Sources | D110: =SUM(D97:D109) -> 156800 | E110: =SUM(E97:E109) -> 0 | F110: =SUM(F97:F109) -> 53781 | G110: 0 | H110: 0 | I110: 14000 | J110: 0 | K110: 0 | L110: 2100000
B111: Total Receipts/Revenues from Local Sources (without Student Activity Funds 1799) | C111: 1000 | D111: =SUM(D12,D18,D40,D63,D67,D75,D83,D95,D110) -> 1061251 | E111: 226077 | F111: 342181 | G111: 139769 | H111: 136290 | I111: 14450 | J111: 15039 | K111: 130200 | L111: 2114839
B112: Total Receipts/Revenues from Local Sources (with Student Activity Funds 1799) | D112: =D12+D18+D40+D67+D75+D84+D95+D110 -> 1108751
B113: FLOW-THROUGH RECEIPTS/REVENUES FROM ONE DISTRICT TO ANOTHER DISTRICT (2000)
B114: Flow-Through Revenue from State Sources | C114: 2100
B115: Flow-Through Revenue from Federal Sources | C115: 2200
A116: 2300 | B116: Other Flow-Through Revenue (Describe & Itemize) | C116: 2300
B117: Total Flow-Through Receipts/Revenues From One District to Another District | C117: 2000 | D117: =SUM(D114:D116) -> 0 | E117: =SUM(E114:E116) -> 0 | G117: =SUM(G114:G116) -> 0 | H117: =SUM(H114:H116) -> 0
B118: RECEIPTS/REVENUES FROM STATE SOURCES (3000)
B119: UNRESTRICTED GRANTS-IN-AID (3001-3099)
B120: Evidence Based Funding Formula (Section 18-8.15) | C120: 3001 | D120: 1010000
B121: Reorganization Incentives (Accounts 3005-3021) | C121: 3005
B122: Fast Growth District Grants | C122: 3030
A123: 3099 | B123: Other Unrestricted Grants-In-Aid From State Sources (Describe & Itemize) | C123: 3099
B124: Total Unrestricted Grants-In-Aid | D124: =SUM(D120:D123) -> 1010000 | E124: 0 | F124: 0 | G124: 0 | H124: 0 | I124: 0 | K124: =SUM(K120:K123) -> 0 | L124: =SUM(L120:L123) -> 0
B125: RESTRICTED GRANTS-IN-AID (3100-3900)
B126: SPECIAL EDUCATION
B127: Special Education - Private Facility Tuition | C127: 3100
B128: Special Education - Funding for Children Requiring Sp Ed Services | C128: 3105
B129: Special Education - Personnel | C129: 3110
B130: Special Education - Orphanage - Individual | C130: 3120
B131: Special Education - Orphanage - Summer Individual | C131: 3130
B132: Special Education - Summer School | C132: 3145
A133: 3199 | B133: Special Education - Other (Describe & Itemize) | C133: 3199
B134: Total Special Education | D134: =SUM(D127:D133) -> 0 | E134: =SUM(E127:E133) -> 0 | G134: =SUM(G127:G133) -> 0
B135: CAREER AND TECHNICAL EDUCATION (CTE)
B136: CTE - Technical Education - Tech Prep | C136: 3200
B137: CTE - Secondary Program Improvement (CTEI) | C137: 3220
B138: CTE - WECEP | C138: 3225
B139: CTE - Agriculture Education | C139: 3235 | D139: 12000
B140: CTE - Instructor Practicum | C140: 3240
B141: CTE - Student Organizations | C141: 3270
A142: 3299 | B142: CTE - Other (Describe & Itemize) | C142: 3299
B143: Total Career and Technical Education | D143: =SUM(D136:D142) -> 12000 | E143: =SUM(E136:E142) -> 0 | H143: =SUM(H136:H142) -> 0
B144: BILINGUAL EDUCATION
B145: Bilingual Education - Downstate - TPI and TBE | C145: 3305
B146: Bilingual Education - Downstate - Transitional Bilingual Education | C146: 3310
B147: Total Bilingual Education | D147: =SUM(D145:D146) -> 0 | H147: =SUM(H145:H146) -> 0
B148: State Free Lunch & Breakfast | C148: 3360 | D148: 400
B149: School Breakfast Initiative | C149: 3365
B150: Driver Education | C150: 3370 | D150: 3200
B151: Adult Education (from ICCB) | C151: 3410
A152: 3499 | B152: Adult Education - Other (Describe & Itemize) | C152: 3499
B153: TRANSPORTATION
B154: Transportation - Regular and Vocational | C154: 3500 | G154: 75000
B155: Transportation - Special Education | C155: 3510 | G155: 54000
A156: 3599 | B156: Transportation - Other (Describe & Itemize) | C156: 3599
B157: Total Transportation | D157: =SUM(D154:D156) -> 0 | E157: =SUM(E154:E156) -> 0 | G157: =SUM(G154:G156) -> 129000 | H157: =SUM(H154:H156) -> 0
B158: Learning Improvement - Change Grants | C158: 3610
B159: Scientific Literacy | C159: 3660
B160: Truant Alternative/Optional Education | C160: 3695
B161: Early Childhood - Block Grant | C161: 3705 | D161: 70000
B162: Chicago General Education Block Grant | C162: 3766
B163: Chicago Educational Services Block Grant | C163: 3767
B164: School Safety & Educational Improvement Block Grant | C164: 3775
B165: Technology - Technology for Success | C165: 3780
B166: State Charter Schools | C166: 3815
B167: Extended Learning Opportunities - Summer Bridges | C167: 3825
B168: Infrastructure Improvements - Planning/Construction | C168: 3920
B169: School Infrastructure - Maintenance Projects | C169: 3925 | E169: 50000
A170: 3999 | B170: Other Restricted Revenue from State Sources (Describe & Itemize) | C170: 3999
B171: Total Restricted Grants-In-Aid | D171: =SUM(D134,D143,D147:D152,D157:D170) -> 85600 | E171: 50000 | F171: 0 | G171: 129000 | H171: 0 | I171: 0 | J171: 0 | K171: 0 | L171: 0
B172: Total Receipts/Revenues from State Sources | C172: 3000 | D172: =SUM(D124,D171) -> 1095600 | E172: 50000 | F172: 0 | G172: 129000 | H172: 0 | I172: 0 | J172: 0 | K172: 0 | L172: 0
B173: RECEIPTS/REVENUES FROM FEDERAL SOURCES (4000)
B174: UNRESTRICTED GRANTS-IN-AID RECEIVED DIRECTLY FROM FEDERAL GOVT. (4001-4009)
B175: Federal Impact Aid | C175: 4001
A176: 4009 | B176: Other Unrestricted Grants-In-Aid Received from Fed. Govt. (Describe & Itemize) | C176: 4009
B177: Total Unrestricted Grants-In-Aid Received Directly from Fed Govt | D177: =SUM(D175:D176) -> 0 | E177: =SUM(E175:E176) -> 0 | F177: 0 | G177: 0 | H177: 0 | I177: 0 | J177: 0 | K177: 0 | L177: 0
B178: RESTRICTED GRANTS-IN-AID RECEIVED DIRECTLY FROM FEDERAL GOVT (4045-4090)
B179: Head Start | C179: 4045
B180: Construction (Impact Aid) | C180: 4050
B181: MAGNET | C181: 4060
A182: 4090 | B182: Other Restricted Grants-In-Aid Received from Fed. Govt. (Describe & Itemize) | C182: 4090
B183: Total Restricted Grants-In-Aid Received Directly from Federal Govt. | D183: =SUM(D179:D182) -> 0 | E183: =SUM(E179:E182) -> 0 | G183: =SUM(G179:G182) -> 0 | H183: =SUM(H179:H182) -> 0 | I183: =SUM(I179:I182) -> 0 | L183: =SUM(L179:L182) -> 0
B184: RESTRICTED GRANTS-IN-AID RECEIVED FROM FEDERAL GOVT. THRU THE STATE (4100-4999)
B185: TITLE V
B186: Title V - Flexibility and Accountability | C186: 4100
B187: Title V - SEA Projects | C187: 4105
B188: Title V - Rural Education Initiative (REI) | C188: 4107 | D188: 16300
A189: 4199 | B189: Title V - Other (Describe & Itemize) | C189: 4199
B190: Total Title V | D190: =SUM(D186:D189) -> 16300 | E190: =SUM(E186:E189) -> 0 | G190: =SUM(G186:G189) -> 0 | H190: =SUM(H186:H189) -> 0
B191: FOOD SERVICE
B192: Breakfast Start-Up Expansion | C192: 4200
B193: National School Lunch Program | C193: 4210 | D193: 80000
B194: Special Milk Program | C194: 4215
B195: School Breakfast Program | C195: 4220 | D195: 22000
B196: Summer Food Service Admin/Program | C196: 4225
B197: Child and Adult Care Food Program | C197: 4226
B198: Fresh Fruit and Vegetables | C198: 4240
A199: 4299 | B199: Food Service - Other (Describe & Itemize) | C199: 4299 | D199: 8700
B200: Total Food Service | D200: =SUM(D192:D199) -> 110700 | H200: =SUM(H192:H199) -> 0
... 71 more rows

Sheet EstExp 12-20
B1: Description: Enter Whole Numbers Only | D1: (100) | E1: (200) | F1: (300) | G1: (400) | H1: (500) | I1: (600) | J1: (700) | K1: (800) | L1: (900)
A2: VLOOKUP | C2: Funct # | D2: Salaries | E2: Employee Benefits | F2: Purchased Services | G2: Supplies & Materials | H2: Capital Outlay | I2: Other Objects | J2: Non-Capitalized Equipment | K2: Termination Benefits | L2: Total
B3: 10 - EDUCATIONAL FUND (ED)
B4: INSTRUCTION (ED) | C4: 1000
B5: Regular Programs | C5: 1100 | D5: 915000 | E5: 175000 | F5: 50000 | G5: 50000 | H5: 20000 | L5: =SUM(D5:K5) -> 1210000
B6: Tuition Payment to Charter Schools | C6: 1115 | L6: =SUM(D6:K6) -> 0
B7: Pre-K Programs | C7: 1125 | D7: 36500 | E7: 10000 | F7: 1500 | G7: 2000 | H7: 5000 | L7: =SUM(D7:K7) -> 55000
B8: Special Education Programs (Functions 1200 - 1220) | C8: 1200 | D8: 175000 | E8: 13000 | G8: 500 | L8: 188500
B9: Special Education Programs Pre-K | C9: 1225 | L9: 0
B10: Remedial and Supplemental Programs K-12 | C10: 1250 | D10: 65000 | E10: 18500 | F10: 5500 | G10: 2900 | H10: 11000 | L10: 102900
B11: Remedial and Supplemental Programs Pre-K | C11: 1275 | L11: 0
B12: Adult/Continuing Education Programs | C12: 1300 | L12: 0
B13: CTE Programs | C13: 1400 | F13: 7000 | L13: 7000
B14: Interscholastic Programs | C14: 1500 | D14: 10000 | E14: 500 | F14: 10000 | G14: 700 | L14: 21200
B15: Summer School Programs | C15: 1600 | L15: 0
B16: Gifted Programs | C16: 1650 | L16: 0
B17: Driver's Education Programs | C17: 1700 | D17: 6500 | E17: 1000 | L17: 7500
B18: Bilingual Programs | C18: 1800 | L18: 0
B19: Truant Alternative & Optional Programs | C19: 1900 | L19: 0
B20: Pre-K Programs - Private Tuition | C20: 1910 | L20: 0
B21: Regular K-12 Programs Private Tuition | C21: 1911 | L21: 0
B22: Special Education Programs K-12 Private Tuition | C22: 1912 | L22: 0
B23: Special Education Programs Pre-K Tuition | C23: 1913 | L23: 0
B24: Remedial/Supplemental Programs K-12 Private Tuition | C24: 1914 | L24: 0
B25: Remedial/Supplemental Programs Pre-K Private Tuition | C25: 1915 | L25: 0
B26: Adult/Continuing Education Programs Private Tuition | C26: 1916 | L26: 0
B27: CTE Programs Private Tuition | C27: 1917 | L27: 0
B28: Interscholastic Programs Private Tuition | C28: 1918 | L28: 0
B29: Summer School Programs Private Tuition | C29: 1919 | L29: 0
B30: Gifted Programs Private Tuition | C30: 1920 | L30: 0
B31: Bilingual Programs Private Tuition | C31: 1921 | L31: 0
B32: Truants Alternative/Opt Ed Programs Private Tuition | C32: 1922 | L32: 0
B33: Student Activity Fund Expenditures | C33: 1999 | I33: 47000 | L33: =SUM(D33:K33) -> 47000
B34: Total Instruction14 (Without Student Activity Funds 1999) | C34: 1000 | D34: =SUM(D5:D32) -> 1208000 | E34: =SUM(E5:E32) -> 218000 | F34: 74000 | G34: 56100 | H34: 36000 | I34: =SUM(I5:I32) -> 0 | J34: 0 | K34: 0 | L34: 1592100
B35: Total Instruction14 (With Student Activity Funds 1999) | C35: 1000 | D35: =SUM(D5:D33) -> 1208000 | E35: =SUM(E5:E33) -> 218000 | F35: 74000 | G35: 56100 | H35: 36000 | I35: =SUM(I5:I33) -> 47000 | J35: 0 | K35: 0 | L35: =SUM(D35:K35) -> 1639100
B36: SUPPORT SERVICES (ED) | C36: 2000
B37: Support Services - Pupil | C37: 2100
B38: Attendance & Social Work Services | C38: 2110 | F38: 35500 | L38: =SUM(D38:K38) -> 35500
B39: Guidance Services | C39: 2120 | D39: 28940 | E39: 8500 | L39: 37440
B40: Health Services | C40: 2130 | F40: 500 | G40: 125 | L40: 625
B41: Psychological Services | C41: 2140 | F41: 40000 | L41: 40000
B42: Speech Pathology & Audiology Services | C42: 2150 | D42: 32000 | E42: 4000 | G42: 1000 | L42: 37000
A43: 10-2190 | B43: Other Support Services - Pupils (Describe & Itemize) | C43: 2190 | L43: 0
B44: Total Support Services - Pupil | C44: 2100 | D44: =SUM(D38:D43) -> 60940 | E44: =SUM(E38:E43) -> 12500 | F44: 76000 | G44: 1125 | H44: 0 | I44: 0 | J44: 0 | K44: 0 | L44: 150565
B45: Support Services - Instructional Staff | C45: 2200
B46: Improvement of Instruction Services | C46: 2210 | E46: 13000 | F46: 2000 | L46: =SUM(D46:K46) -> 15000
B47: Educational Media Services | C47: 2220 | F47: 40000 | L47: =SUM(D47:K47) -> 40000
B48: Assessment & Testing | C48: 2230 | L48: =SUM(D48:K48) -> 0
B49: Total Support Services - Instructional Staff | C49: 2200 | D49: =SUM(D46:D48) -> 0 | E49: =SUM(E46:E48) -> 13000 | F49: 42000 | G49: 0 | H49: 0 | I49: 0 | J49: 0 | K49: 0 | L49: 55000
B50: Support Services - General Administration | C50: 2300
B51: Board of Education Services | C51: 2310 | F51: 5000 | G51: 1000 | L51: =SUM(D51:K51) -> 6000
B52: Executive Administration Services | C52: 2320 | D52: 150100 | E52: 23000 | F52: 7500 | L52: =SUM(D52:K52) -> 180600
B53: Special Area Administration Services | C53: 2330 | L53: =SUM(D53:K53) -> 0
B54: Tort Immunity Services | C54: 2361, 2365 | L54: =SUM(D54:K54) -> 0
B55: Total Support Services - General Administration | C55: 2300 | D55: =SUM(D51:D54) -> 150100 | E55: =SUM(E51:E54) -> 23000 | F55: 12500 | G55: 1000 | H55: 0 | I55: 0 | J55: 0 | K55: 0 | L55: 186600
B56: Support Services - School Administration | C56: 2400
B57: Office of the Principal Services | C57: 2410 | D57: 95000 | E57: 33000 | F57: 1500 | L57: =SUM(D57:K57) -> 129500
A58: 10-2490 | B58: Other Support Services - School Administration (Describe & Itemize) | C58: 2490 | L58: =SUM(D58:K58) -> 0
B59: Total Support Services - School Administration | C59: 2400 | D59: =SUM(D57:D58) -> 95000 | E59: =SUM(E57:E58) -> 33000 | F59: 1500 | G59: 0 | H59: 0 | I59: 0 | J59: 0 | K59: 0 | L59: =SUM(L57:L58) -> 129500
B60: Support Services - Business | C60: 2500
B61: Direction of Business Support Services | C61: 2510 | L61: =SUM(D61:K61) -> 0
B62: Fiscal Services | C62: 2520 | D62: 70000 | E62: 5100 | F62: 24000 | G62: 1200 | L62: 100300
B63: Operation & Maintenance of Plant Services | C63: 2540 | L63: 0
B64: Pupil Transportation Services | C64: 2550 | L64: 0
B65: Food Services | C65: 2560 | D65: 52000 | E65: 16500 | F65: 1000 | G65: 100000 | L65: 169500
B66: Internal Services | C66: 2570 | L66: 0
B67: Total Support Services - Business | C67: 2500 | D67: =SUM(D61:D66) -> 122000 | E67: =SUM(E61:E66) -> 21600 | F67: 25000 | G67: 101200 | H67: 0 | I67: 0 | J67: 0 | K67: 0 | L67: 269800
B68: Support Services - Central | C68: 2600
B69: Direction of Central Support Services | C69: 2610 | L69: =SUM(D69:K69) -> 0
B70: Planning, Research, Development & Evaluation Services | C70: 2620 | L70: =SUM(D70:K70) -> 0
B71: Information Services | C71: 2630 | L71: 0
B72: Staff Services | C72: 2640 | L72: 0
B73: Data Processing Services | C73: 2660 | L73: 0
B74: Total Support Services - Central | C74: 2600 | D74: =SUM(D69:D73) -> 0 | E74: =SUM(E69:E73) -> 0 | F74: 0 | G74: 0 | H74: 0 | I74: 0 | J74: 0 | K74: 0 | L74: =SUM(L69:L73) -> 0
A75: 10-2900 | B75: Other Support Services - Misc. (Describe & Itemize) | C75: 2900 | L75: 0
B76: Total Support Services | C76: 2000 | D76: =SUM(D44,D49,D55,D59,D67,D74,D75) -> 428040 | E76: =SUM(E44,E49,E55,E59,E67,E74,E75) -> 103100 | F76: 157000 | G76: 103325 | H76: 0 | I76: 0 | J76: 0 | K76: 0 | L76: 791465
B77: COMMUNITY SERVICES (ED) | C77: 3000 | L77: 0
B78: PAYMENTS TO OTHER DIST & GOVT UNITS (ED) | C78: 4000
B79: Payments to Other Dist & Govt Units (In-State) | C79: 4100
B80: Payments for Regular Programs | C80: 4110 | L80: =SUM(D80:K80) -> 0
B81: Payments for Special Education Programs | C81: 4120 | F81: 35000 | I81: 50000 | L81: 85000
B82: Payments for Adult/Continuing Education Programs | C82: 4130 | L82: 0
B83: Payments for CTE Programs | C83: 4140 | L83: 0
B84: Payments for Community College Programs | C84: 4170 | L84: 0
A85: 10-4190 | B85: Other Payments to In-State Govt Units - Programs (Describe & Itemize) | C85: 4190 | L85: 0
B86: Total Payments to Other Dist & Govt Units (In-State) | C86: 4100 | F86: =SUM(F80:F85) -> 35000 | I86: =SUM(I80:I85) -> 50000 | L86: =SUM(L80:L85) -> 85000
B87: Payments for Regular Programs - Tuition | C87: 4210 | I87: 5000 | L87: =SUM(D87:K87) -> 5000
B88: Payments for Special Education Programs - Tuition | C88: 4220 | I88: 30000 | L88: =SUM(D88:K88) -> 30000
B89: Payments for Adult/Continuing Education Programs - Tuition | C89: 4230 | L89: 0
B90: Payments for CTE Programs - Tuition | C90: 4240 | L90: 0
B91: Payments for Community College Programs - Tuition | C91: 4270 | L91: 0
B92: Payments for Other Programs - Tuition | C92: 4280 | L92: 0
A93: 10-4290 | B93: Other Payments to In-State Govt Units - Tuition (Describe & Itemize) | C93: 4290 | L93: 0
B94: Total Payments to Other Dist & Govt Units - Tuition (In State) | C94: 4200 | I94: =SUM(I87:I93) -> 35000 | L94: =SUM(L87:L93) -> 35000
B95: Payments for Regular Programs - Transfers | C95: 4310 | L95: 0
B96: Payments for Special Education Programs - Transfers | C96: 4320 | L96: 0
B97: Payments for Adult/Continuing Ed Programs - Transfers | C97: 4330 | L97: 0
B98: Payments for CTE Programs - Transfers | C98: 4340 | L98: 0
B99: Payments for Community College Program - Transfers | C99: 4370 | L99: 0
B100: Payments for Other Programs - Transfers | C100: 4380 | L100: 0
A101: 10-4390 | B101: Other Payments to In-State Govt Units - Transfers (Describe & Itemize) | C101: 4390 | L101: 0
B102: Total Payments to Other Dist & Govt Units-Transfers (In State) | C102: 4300 | F102: =SUM(F95:F101) -> 0 | I102: =SUM(I95:I101) -> 0 | L102: =SUM(L95:L101) -> 0
B103: Payments to Other Dist & Govt Units (Out of State) | C103: 4400 | L103: =SUM(D103:K103) -> 0
B104: Total Payments to Other Dist & Govt Units | C104: 4000 | F104: =SUM(F86,F94,F102,F103) -> 35000 | I104: =SUM(I86,I94,I102,I103) -> 85000 | L104: =SUM(L86,L94,L102,L103) -> 120000
B105: DEBT SERVICE (ED) | C105: 5000
B106: Debt Service - Interest on Short-Term Debt | C106: 5100
B107: Tax Anticipation Warrants | C107: 5110 | L107: =SUM(D107:K107) -> 0
B108: Tax Anticipation Notes | C108: 5120 | L108: =SUM(D108:K108) -> 0
B109: Corporate Personal Property Repl Tax Anticipated Notes | C109: 5130 | L109: =SUM(D109:K109) -> 0
B110: State Aid Anticipation Certificates | C110: 5140 | L110: =SUM(D110:K110) -> 0
A111: 10-5150 | B111: Other Interest on Short-Term Debt (Describe & Itemize) | C111: 5150 | L111: =SUM(D111:K111) -> 0
B112: Total Debt Service - Interest on Short-Term Debt | C112: 5100 | I112: =SUM(I107:I111) -> 0 | L112: =SUM(L107:L111) -> 0
B113: Debt Service - Interest on Long-Term Debt | C113: 5200 | L113: =I113 -> 0
B114: Total Debt Service | C114: 5000 | I114: =SUM(I112:I113) -> 0 | L114: =SUM(L112:L113) -> 0
B115: PROVISION FOR CONTINGENCIES (ED) | C115: 6000 | L115: =SUM(D115:K115) -> 0
B116: Total Direct Disbursements/Expenditures (without Student Activity Funds (1999) | D116: =SUM(D34,D76,D77,D104,D114,D115,) -> 1636040 | E116: =SUM(E34,E76,E77,E104,E114,E115,) -> 321100 | F116: 266000 | G116: 159425 | H116: 36000 | I116: 85000 | J116: 0 | K116: 0 | L116: 2503565
B117: Total Direct Disbursements/Expenditures (with Student Activity Funds (1999) | D117: =SUM(D35,D76,D77,D104,D114,D115,) -> 1636040 | E117: =SUM(E35,E76,E77,E104,E114,E115,) -> 321100 | F117: =SUM(F35,F76,F77,F104,F114,F115,) -> 266000 | G117: 159425 | H117: 36000 | I117: 132000 | J117: 0 | K117: 0 | L117: 2550565
B118: Excess (Deficiency) of Receipts/Revenues Over Disbursements/Expenditures (without Student Activity Funds 1999) | L118: ='EstRev 6-11'!D270-'EstExp 12-20'!L116 -> 78441
B119: Excess (Deficiency) of Receipts/Revenues Over Disbursements/Expenditures (with Student Activity Funds 1999) | L119: ='EstRev 6-11'!D271-'EstExp 12-20'!L117 -> 78941
B121: 20 - OPERATIONS AND MAINTENANCE FUND (O&M)
B122: SUPPORT SERVICES (O&M) | C122: 2000
B123: Support Services - Pupil | C123: 2100
A124: 20-2190 | B124: Other Support Services - Pupils (Describe & Itemize) | C124: 2190 | L124: =SUM(D124:K124) -> 0
B125: Support Services - Business | C125: 2500
B126: Direction of Business Support Services | C126: 2510 | L126: =SUM(D126:K126) -> 0
B127: Facilities Acquisition & Construction Services | C127: 2530 | H127: 405000 | L127: =SUM(D127:K127) -> 405000
B128: Operation & Maintenance of Plant Services | C128: 2540 | D128: 115000 | E128: 8000 | F128: 175000 | G128: 60000 | H128: 159000 | L128: =SUM(D128:K128) -> 517000
B129: Pupil Transportation Services | C129: 2550 | L129: =SUM(D129:K129) -> 0
B130: Food Services | C130: 2560 | L130: =SUM(D130:K130) -> 0
B131: Total Support Services - Business | C131: 2500 | D131: =SUM(D126:D129) -> 115000 | E131: =SUM(E126:E129) -> 8000 | F131: =SUM(F126:F130) -> 175000 | G131: 60000 | H131: =SUM(H126:H130) -> 564000 | I131: =SUM(I126:I130) -> 0 | J131: 0 | K131: 0 | L131: 922000
A132: 20-2900 | B132: Other Support Services - Misc. (Describe & Itemize) | C132: 2900 | L132: =SUM(D132:K132) -> 0
B133: Total Support Services | C133: 2000 | D133: =SUM(D124,D131,D132) -> 115000 | E133: =SUM(E124,E131,E132) -> 8000 | F133: 175000 | G133: 60000 | H133: =SUM(H124,H131,H132) -> 564000 | I133: =SUM(I124,I131,I132) -> 0 | J133: 0 | K133: 0 | L133: 922000
B134: COMMUNITY SERVICES (O&M) | C134: 3000 | L134: =SUM(D134:K134) -> 0
B135: PAYMENTS TO OTHER DIST & GOVT UNITS (O&M) | C135: 4000
B136: Payments to Other Dist & Govt Units (In-State) | C136: 4100
B137: Payments for Regular Programs | C137: 4110 | L137: =SUM(F137,I137) -> 0
B138: Payments for Special Education Programs | C138: 4120 | L138: =SUM(D138:K138) -> 0
B139: Payments for CTE Program | C139: 4140 | L139: =SUM(D139:K139) -> 0
A140: 20-4190 | B140: Other Payments to In-State Govt Units - Programs (Describe & Itemize) | C140: 4190 | L140: =SUM(D140:K140) -> 0
B141: Total Payments to Other Dist & Govt Units (In-State) | C141: 4100 | F141: =SUM(F137:F140) -> 0 | I141: =SUM(I137:I140) -> 0 | L141: =SUM(L137:L140) -> 0
B142: Payments to Other Dist & Govt Units (Out of State) 14 | C142: 4400 | L142: =SUM(D142:K142) -> 0
B143: Total Payments to Other Dist & Govt Unit | C143: 4000 | F143: =SUM(F141) -> 0 | I143: =SUM(I141:I142) -> 0 | L143: =SUM(L141:L142) -> 0
B144: DEBT SERVICE (O&M) | C144: 5000
B145: Debt Service - Interest on Short-Term Debt | C145: 5100
B146: Tax Anticipation Warrants | C146: 5110 | L146: =SUM(D146:K146) -> 0
B147: Tax Anticipation Notes | C147: 5120 | L147: =SUM(D147:K147) -> 0
B148: Corporate Personal Prop Repl Tax Anticipated Notes | C148: 5130 | L148: =SUM(D148:K148) -> 0
B149: State Aid Anticipation Certificates | C149: 5140 | L149: =SUM(D149:K149) -> 0
A150: 20-5150 | B150: Other Interest on Short-Term Debt (Describe & Itemize) | C150: 5150 | L150: =SUM(D150:K150) -> 0
B151: Total Debt Service - Interest on Short-Term Debt | C151: 5100 | I151: =SUM(I146:I150) -> 0 | L151: =SUM(L146:L150) -> 0
B152: Debt Service - Interest on Long-Term Debt | C152: 5200 | L152: =SUM(I152:K152) -> 0
B153: Total Debt Service | C153: 5000 | I153: =SUM(I151:I152) -> 0 | L153: =SUM(L151:L152) -> 0
B154: PROVISION FOR CONTINGENCIES (O&M) | C154: 6000 | L154: =SUM(D154:K154) -> 0
B155: Total Direct Disbursements/Expenditures | D155: =SUM(D133,D134,D143,D153,D154) -> 115000 | E155: =SUM(E133,E134,E143,E153,E154) -> 8000 | F155: =SUM(F133,F134,F143) -> 175000 | G155: 60000 | H155: 564000 | I155: =SUM(I133,I134,I143,I153,I154) -> 0 | J155: 0 | K155: 0 | L155: =SUM(L133,L134,L143,L153,L154) -> 922000
B156: Excess (Deficiency) of Receipts/Revenues Over Disbursements/Expenditures | L156: ='EstRev 6-11'!E270-'EstExp 12-20'!L155 -> -369923
B158: 30 - DEBT SERVICE FUND (DS)
B159: PAYMENTS TO OTHER DIST & GOVT UNITS (DS) | C159: 4000
B160: Payments to Other Dist & Govt Units (In-State) | C160: 4100
B161: Payments for Regular Programs | C161: 4110 | L161: =I161 -> 0
B162: Payments for Special Education Programs | C162: 4120 | L162: =I162 -> 0
A163: 30-4190 | B163: Other Payments to In-State Govt Units - Programs (Describe & Itemize) | C163: 4190 | L163: =I163 -> 0
B164: Total Payments to Other Dist & Govt Units (In-State) | C164: 4000 | I164: =SUM(I161:I163) -> 0 | L164: =SUM(L161:L163) -> 0
B165: DEBT SERVICE (DS) | C165: 5000
B166: Debt Service - Interest on Short-Term Debt | C166: 5100
B167: Tax Anticipation Warrants | C167: 5110 | L167: =SUM(D167:K167) -> 0
B168: Tax Anticipation Notes | C168: 5120 | L168: =SUM(D168:K168) -> 0
B169: Corporate Personal Prop Repl Tax Anticipation Notes | C169: 5130 | L169: 0
B170: State Aid Anticipation Certificates | C170: 5140 | L170: 0
A171: 30-5150 | B171: Other Interest on Short-Term Debt (Describe & Itemize) | C171: 5150 | L171: 0
B172: Total Debt Service - Interest On Short-Term Debt | C172: 5100 | I172: =SUM(I167:I171) -> 0 | L172: =SUM(L167:L171) -> 0
B173: Debt Service - Interest on Long-Term Debt | C173: 5200 | I173: 73814 | L173: 73814
A174: 30-5300 | B174: Debt Service - Payments of Principal on Long-Term Debt 15 (Lease/Purchase Principal Retired) (Describe & Itemize) | C174: 5300 | I174: 263000 | L174: 263000
A175: 30-5400 | B175: Debt Service - Other (Describe & Itemize) | C175: 5400 | L175: =SUM(D175:K175) -> 0
B176: Total Debt Service | C176: 5000 | F176: =SUM(F172:F175) -> 0 | I176: =SUM(I172:I175) -> 336814 | L176: =SUM(L172:L175) -> 336814
B177: PROVISION FOR CONTINGENCIES (DS) | C177: 6000 | L177: =SUM(D177:K177) -> 0
B178: Total Direct Disbursements/Expenditures | F178: =SUM(F176) -> 0 | I178: =SUM(I164,I176,I177) -> 336814 | L178: =SUM(L164,L176,L177) -> 336814
B179: Excess (Deficiency) of Receipts/Revenues Over Disbursements/Expenditures | L179: ='EstRev 6-11'!F270-'EstExp 12-20'!L178 -> 5367
B181: 40 - TRANSPORTATION FUND (TR)
B182: SUPPORT SERVICES (TR) | C182: 2000
B183: Support Services - Pupils | C183: 2100
A184: 40-2190 | B184: Other Support Services - Pupils (Describe & Itemize) | C184: 2190 | L184: =SUM(D184:K184) -> 0
B185: Support Services - Business
B186: Pupil Transportation Services | C186: 2550 | D186: 120000 | E186: 4500 | F186: 117000 | G186: 27000 | L186: =SUM(D186:K186) -> 268500
A187: 40-2900 | B187: Other Support Services - Business (Describe & Itemize) | C187: 2900 | L187: =SUM(D187:K187) -> 0
B188: Total Support Services | C188: 2000 | D188: =SUM(D184:D187) -> 120000 | E188: =SUM(E184,E186,E187) -> 4500 | F188: 117000 | G188: 27000 | H188: 0 | I188: 0 | J188: 0 | K188: 0 | L188: 268500
B189: COMMUNITY SERVICES (TR) | C189: 3000 | L189: =SUM(D189:K189) -> 0
B190: PAYMENTS TO OTHER DIST & GOVT UNITS (TR) | C190: 4000
B191: Payments to Other Dist & Govt Units (In-State) | C191: 4100
B192: Payments for Regular Program | C192: 4110 | L192: =SUM(D192:K192) -> 0
B193: Payments for Special Education Programs | C193: 4120 | L193: 0
B194: Payments for Adult/Continuing Education Programs | C194: 4130 | L194: 0
B195: Payments for CTE Programs | C195: 4140 | L195: 0
B196: Payments for Community College Programs | C196: 4170 | L196: 0
A197: 40-4190 | B197: Other Payments to In-State Govt Units - Programs (Describe & Itemize) | C197: 4190 | L197: 0
B198: Total Payments to Other Dist & Govt Units (In-State) | C198: 4100 | F198: =SUM(F192:F197) -> 0 | I198: =SUM(I192:I197) -> 0 | L198: =SUM(L192:L197) -> 0
A199: 40-4400 | B199: Payments to Other Dist & Govt Units (Out-of-State) (Describe & Itemize) | C199: 4400 | L199: =SUM(D199:K199) -> 0
B200: Total Payments to Other Dist & Govt Units | C200: 4000 | F200: =SUM(F198,F199) -> 0 | I200: =SUM(I198,I199) -> 0 | L200: =SUM(L198,L199) -> 0
B201: DEBT SERVICE (TR) | C201: 5000
B202: Debt Service - Interest on Short-Term Debt | C202: 5100
B203: Tax Anticipation Warrants | C203: 5110 | L203: =SUM(D203:K203) -> 0
... 246 more rows

Sheet Itemize 21
C2: This page is provided for detailed itemizations as requested within the body of the Report.
C4: Please enter notes in "Source of Revenue/Use of Expense" column for the below line items. If page does not list specific revenues/expenditures, no itemization notes are required.
C6: Fund-Account Number | D6: Source of Revenue/Use of Expense | E6: Amount | G6: VLOOKUP | H6: NOTES
A7: Estimated Revenues | G7: 1
A8: =IF(G8>0,"10-"&VLOOKUP('EstRev 6-11'!$A$11,'EstRev 6-11'!$A$5:$L$267,1,FALSE),"") ->  | B8: =IF(G8>0,VLOOKUP('EstRev 6-11'!$A$11,'EstRev 6-11'!$A$5:$L$267,2,FALSE),"") ->  | C8: =IF(B8="","",LEFT(B8, LEN(B8)-21)) ->  | E8: =IF(G8>0,G8,"") ->  | G8: =VLOOKUP('EstRev 6-11'!$A$11,'EstRev 6-11'!$A$5:$L$267,4,FALSE) -> 0 | H8: =ISBLANK(D8) -> TRUE
A9: =IF(G9>0,"20-"&VLOOKUP('EstRev 6-11'!$A$11,'EstRev 6-11'!$A$5:$L$267,1,FALSE),"") ->  | B9: =IF(G9>0,VLOOKUP('EstRev 6-11'!$A$11,'EstRev 6-11'!$A$5:$L$267,2,FALSE),"") ->  | C9: =IF(B9="","",LEFT(B9, LEN(B9)-21)) ->  | E9: =IF(G9>0,G9,"") ->  | G9: =VLOOKUP('EstRev 6-11'!$A$11,'EstRev 6-11'!$A$5:$L$267,5,FALSE) -> 0 | H9: =ISBLANK(D9) -> TRUE
A10: =IF(G10>0,"30-"&VLOOKUP('EstRev 6-11'!$A$11,'EstRev 6-11'!$A$5:$L$267,1,FALSE),"") ->  | B10: =IF(G10>0,VLOOKUP('EstRev 6-11'!$A$11,'EstRev 6-11'!$A$5:$L$267,2,FALSE),"") ->  | C10: =IF(B10="","",LEFT(B10, LEN(B10)-21)) ->  | E10: =IF(G10>0,G10,"") ->  | G10: =VLOOKUP('EstRev 6-11'!$A$11,'EstRev 6-11'!$A$5:$L$267,6,FALSE) -> 0 | H10: TRUE
A11: =IF(G11>0,"40-"&VLOOKUP('EstRev 6-11'!$A$11,'EstRev 6-11'!$A$5:$L$267,1,FALSE),"") ->  | B11: =IF(G11>0,VLOOKUP('EstRev 6-11'!$A$11,'EstRev 6-11'!$A$5:$L$267,2,FALSE),"") ->  | G11: =VLOOKUP('EstRev 6-11'!$A$11,'EstRev 6-11'!$A$5:$L$267,7,FALSE) -> 0 | H11: TRUE
A12: =IF(G12>0,"50-"&VLOOKUP('EstRev 6-11'!$A$11,'EstRev 6-11'!$A$5:$L$267,1,FALSE),"") ->  | B12: =IF(G12>0,VLOOKUP('EstRev 6-11'!$A$11,'EstRev 6-11'!$A$5:$L$267,2,FALSE),"") ->  | G12: =VLOOKUP('EstRev 6-11'!$A$11,'EstRev 6-11'!$A$5:$L$267,8,FALSE) -> 0 | H12: TRUE
A13: =IF(G13>0,"60-"&VLOOKUP('EstRev 6-11'!$A$11,'EstRev 6-11'!$A$5:$L$267,1,FALSE),"") ->  | B13: =IF(G13>0,VLOOKUP('EstRev 6-11'!$A$11,'EstRev 6-11'!$A$5:$L$267,2,FALSE),"") ->  | G13: =VLOOKUP('EstRev 6-11'!$A$11,'EstRev 6-11'!$A$5:$L$267,9,FALSE) -> 0 | H13: TRUE
A14: =IF(G14>0,"70-"&VLOOKUP('EstRev 6-11'!$A$11,'EstRev 6-11'!$A$5:$L$267,1,FALSE),"") ->  | B14: =IF(G14>0,VLOOKUP('EstRev 6-11'!$A$11,'EstRev 6-11'!$A$5:$L$267,2,FALSE),"") ->  | G14: =VLOOKUP('EstRev 6-11'!$A$11,'EstRev 6-11'!$A$5:$L$267,10,FALSE) -> 0 | H14: TRUE
A15: =IF(G15>0,"80-"&VLOOKUP('EstRev 6-11'!$A$11,'EstRev 6-11'!$A$5:$L$267,1,FALSE),"") ->  | B15: =IF(G15>0,VLOOKUP('EstRev 6-11'!$A$11,'EstRev 6-11'!$A$5:$L$267,2,FALSE),"") ->  | G15: =VLOOKUP('EstRev 6-11'!$A$11,'EstRev 6-11'!$A$5:$L$267,11,FALSE) -> 0 | H15: TRUE
A16: =IF(G16>0,"90-"&VLOOKUP('EstRev 6-11'!$A$11,'EstRev 6-11'!$A$5:$L$267,1,FALSE),"") ->  | B16: =IF(G16>0,VLOOKUP('EstRev 6-11'!$A$11,'EstRev 6-11'!$A$5:$L$267,2,FALSE),"") ->  | G16: =VLOOKUP('EstRev 6-11'!$A$11,'EstRev 6-11'!$A$5:$L$267,12,FALSE) -> 0 | H16: TRUE
A17: =IF(G17>0,"10-"&VLOOKUP('EstRev 6-11'!$A$17,'EstRev 6-11'!$A$5:$L$267,1,FALSE),"") ->  | B17: =IF(G17>0,VLOOKUP('EstRev 6-11'!$A$17,'EstRev 6-11'!$A$5:$L$267,2,FALSE),"") ->  | G17: =VLOOKUP('EstRev 6-11'!$A$17,'EstRev 6-11'!$A$5:$L$267,4,FALSE) -> 0 | H17: TRUE
A18: =IF(G18>0,"20-"&VLOOKUP('EstRev 6-11'!$A$17,'EstRev 6-11'!$A$5:$L$267,1,FALSE),"") ->  | B18: =IF(G18>0,VLOOKUP('EstRev 6-11'!$A$17,'EstRev 6-11'!$A$5:$L$267,2,FALSE),"") ->  | G18: =VLOOKUP('EstRev 6-11'!$A$17,'EstRev 6-11'!$A$5:$L$267,5,FALSE) -> 0 | H18: TRUE
A19: =IF(G19>0,"30-"&VLOOKUP('EstRev 6-11'!$A$17,'EstRev 6-11'!$A$5:$L$267,1,FALSE),"") ->  | B19: =IF(G19>0,VLOOKUP('EstRev 6-11'!$A$17,'EstRev 6-11'!$A$5:$L$267,2,FALSE),"") ->  | G19: =VLOOKUP('EstRev 6-11'!$A$17,'EstRev 6-11'!$A$5:$L$267,6,FALSE) -> 0 | H19: TRUE
A20: =IF(G20>0,"40-"&VLOOKUP('EstRev 6-11'!$A$17,'EstRev 6-11'!$A$5:$L$267,1,FALSE),"") ->  | B20: =IF(G20>0,VLOOKUP('EstRev 6-11'!$A$17,'EstRev 6-11'!$A$5:$L$267,2,FALSE),"") ->  | G20: =VLOOKUP('EstRev 6-11'!$A$17,'EstRev 6-11'!$A$5:$L$267,7,FALSE) -> 0 | H20: TRUE
A21: =IF(G21>0,"50-"&VLOOKUP('EstRev 6-11'!$A$17,'EstRev 6-11'!$A$5:$L$267,1,FALSE),"") ->  | B21: =IF(G21>0,VLOOKUP('EstRev 6-11'!$A$17,'EstRev 6-11'!$A$5:$L$267,2,FALSE),"") ->  | G21: =VLOOKUP('EstRev 6-11'!$A$17,'EstRev 6-11'!$A$5:$L$267,8,FALSE) -> 0 | H21: TRUE
A22: =IF(G22>0,"60-"&VLOOKUP('EstRev 6-11'!$A$17,'EstRev 6-11'!$A$5:$L$267,1,FALSE),"") ->  | B22: =IF(G22>0,VLOOKUP('EstRev 6-11'!$A$17,'EstRev 6-11'!$A$5:$L$267,2,FALSE),"") ->  | G22: =VLOOKUP('EstRev 6-11'!$A$17,'EstRev 6-11'!$A$5:$L$267,9,FALSE) -> 0 | H22: TRUE
A23: =IF(G23>0,"70-"&VLOOKUP('EstRev 6-11'!$A$17,'EstRev 6-11'!$A$5:$L$267,1,FALSE),"") ->  | B23: =IF(G23>0,VLOOKUP('EstRev 6-11'!$A$17,'EstRev 6-11'!$A$5:$L$267,2,FALSE),"") ->  | G23: =VLOOKUP('EstRev 6-11'!$A$17,'EstRev 6-11'!$A$5:$L$267,10,FALSE) -> 0 | H23: TRUE
A24: =IF(G24>0,"80-"&VLOOKUP('EstRev 6-11'!$A$17,'EstRev 6-11'!$A$5:$L$267,1,FALSE),"") ->  | B24: =IF(G24>0,VLOOKUP('EstRev 6-11'!$A$17,'EstRev 6-11'!$A$5:$L$267,2,FALSE),"") ->  | G24: =VLOOKUP('EstRev 6-11'!$A$17,'EstRev 6-11'!$A$5:$L$267,11,FALSE) -> 0 | H24: TRUE
A25: =IF(G25>0,"90-"&VLOOKUP('EstRev 6-11'!$A$17,'EstRev 6-11'!$A$5:$L$267,1,FALSE),"") ->  | B25: =IF(G25>0,VLOOKUP('EstRev 6-11'!$A$17,'EstRev 6-11'!$A$5:$L$267,2,FALSE),"") ->  | G25: =VLOOKUP('EstRev 6-11'!$A$17,'EstRev 6-11'!$A$5:$L$267,12,FALSE) -> 0 | H25: TRUE
A26: =IF(G26>0,"10-"&VLOOKUP('EstRev 6-11'!$A$72,'EstRev 6-11'!$A$5:$L$267,1,FALSE),"") ->  | B26: =IF(G26>0,VLOOKUP('EstRev 6-11'!$A$72,'EstRev 6-11'!$A$5:$L$267,2,FALSE),"") ->  | G26: =VLOOKUP('EstRev 6-11'!$A$72,'EstRev 6-11'!$A$5:$L$267,4,FALSE) -> 0 | H26: TRUE
A27: =IF(G27>0,"10-"&VLOOKUP('EstRev 6-11'!$A$74,'EstRev 6-11'!$A$5:$L$267,1,FALSE),"") ->  | B27: =IF(G27>0,VLOOKUP('EstRev 6-11'!$A$74,'EstRev 6-11'!$A$5:$L$267,2,FALSE),"") ->  | G27: =VLOOKUP('EstRev 6-11'!$A$74,'EstRev 6-11'!$A$5:$L$267,4,FALSE) -> 0 | H27: TRUE
A28: =IF(G28>0,"10-"&VLOOKUP('EstRev 6-11'!$A$81,'EstRev 6-11'!$A$5:$L$267,1,FALSE),"") ->  | B28: =IF(G28>0,VLOOKUP('EstRev 6-11'!$A$81,'EstRev 6-11'!$A$5:$L$267,2,FALSE),"") ->  | G28: =VLOOKUP('EstRev 6-11'!$A$81,'EstRev 6-11'!$A$5:$L$267,4,FALSE) -> 0 | H28: TRUE
A29: =IF(G29>0,"20-"&VLOOKUP('EstRev 6-11'!$A$81,'EstRev 6-11'!$A$5:$L$267,1,FALSE),"") ->  | B29: =IF(G29>0,VLOOKUP('EstRev 6-11'!$A$81,'EstRev 6-11'!$A$5:$L$267,2,FALSE),"") ->  | G29: =VLOOKUP('EstRev 6-11'!$A$81,'EstRev 6-11'!$A$5:$L$267,5,FALSE) -> 0 | H29: TRUE
A30: =IF(G30>0,"10-"&VLOOKUP('EstRev 6-11'!$A$89,'EstRev 6-11'!$A$5:$L$267,1,FALSE),"") -> 10-1819 | B30: =IF(G30>0,VLOOKUP('EstRev 6-11'!$A$89,'EstRev 6-11'!$A$5:$L$267,2,FALSE),"") -> Textbook Rentals - Other (Describe & Itemize) | C30: Textbook Rentals - Other | D30: textbook fee | E30: 4700 | G30: =VLOOKUP('EstRev 6-11'!$A$89,'EstRev 6-11'!$A$5:$L$267,4,FALSE) -> 4700 | H30: FALSE
A31: =IF(G31>0,"10-"&VLOOKUP('EstRev 6-11'!$A$93,'EstRev 6-11'!$A$5:$L$267,1,FALSE),"") -> 10-1829 | B31: =IF(G31>0,VLOOKUP('EstRev 6-11'!$A$93,'EstRev 6-11'!$A$5:$L$267,2,FALSE),"") -> Textbook Sales - Other (Describe & Itemize) | C31: Textbook Sales - Other | D31: textbook fee | E31: 600 | G31: =VLOOKUP('EstRev 6-11'!$A$93,'EstRev 6-11'!$A$5:$L$267,4,FALSE) -> 600 | H31: FALSE
A32: =IF(G32>0,"10-"&VLOOKUP('EstRev 6-11'!$A$94,'EstRev 6-11'!$A$5:$L$267,1,FALSE),"") -> 10-1890 | B32: =IF(G32>0,VLOOKUP('EstRev 6-11'!$A$94,'EstRev 6-11'!$A$5:$L$267,2,FALSE),"") -> Other Textbook Income (Describe & Itemize) | C32: Other Textbook Income | E32: 50 | G32: =VLOOKUP('EstRev 6-11'!$A$94,'EstRev 6-11'!$A$5:$L$267,4,FALSE) -> 50 | H32: TRUE
A33: =IF(G33>0,"10-"&VLOOKUP('EstRev 6-11'!$A$108,'EstRev 6-11'!$A$5:$L$267,1,FALSE),"") ->  | B33: =IF(G33>0,VLOOKUP('EstRev 6-11'!$A$108,'EstRev 6-11'!$A$5:$L$267,2,FALSE),"") ->  | G33: =VLOOKUP('EstRev 6-11'!$A$108,'EstRev 6-11'!$A$5:$L$267,4,FALSE) -> 0 | H33: TRUE
A34: =IF(G34>0,"20-"&VLOOKUP('EstRev 6-11'!$A$108,'EstRev 6-11'!$A$5:$L$267,1,FALSE),"") ->  | B34: =IF(G34>0,VLOOKUP('EstRev 6-11'!$A$108,'EstRev 6-11'!$A$5:$L$267,2,FALSE),"") ->  | G34: =VLOOKUP('EstRev 6-11'!$A$108,'EstRev 6-11'!$A$5:$L$267,5,FALSE) -> 0 | H34: TRUE
A35: =IF(G35>0,"30-"&VLOOKUP('EstRev 6-11'!$A$108,'EstRev 6-11'!$A$5:$L$267,1,FALSE),"") ->  | B35: =IF(G35>0,VLOOKUP('EstRev 6-11'!$A$108,'EstRev 6-11'!$A$5:$L$267,2,FALSE),"") ->  | G35: =VLOOKUP('EstRev 6-11'!$A$108,'EstRev 6-11'!$A$5:$L$267,6,FALSE) -> 0 | H35: TRUE
A36: =IF(G36>0,"40-"&VLOOKUP('EstRev 6-11'!$A$108,'EstRev 6-11'!$A$5:$L$267,1,FALSE),"") ->  | B36: =IF(G36>0,VLOOKUP('EstRev 6-11'!$A$108,'EstRev 6-11'!$A$5:$L$267,2,FALSE),"") ->  | G36: =VLOOKUP('EstRev 6-11'!$A$108,'EstRev 6-11'!$A$5:$L$267,7,FALSE) -> 0 | H36: TRUE
A37: =IF(G37>0,"50-"&VLOOKUP('EstRev 6-11'!$A$108,'EstRev 6-11'!$A$5:$L$267,1,FALSE),"") ->  | B37: =IF(G37>0,VLOOKUP('EstRev 6-11'!$A$108,'EstRev 6-11'!$A$5:$L$267,2,FALSE),"") ->  | G37: =VLOOKUP('EstRev 6-11'!$A$108,'EstRev 6-11'!$A$5:$L$267,8,FALSE) -> 0 | H37: TRUE
A38: =IF(G38>0,"60-"&VLOOKUP('EstRev 6-11'!$A$108,'EstRev 6-11'!$A$5:$L$267,1,FALSE),"") ->  | B38: =IF(G38>0,VLOOKUP('EstRev 6-11'!$A$108,'EstRev 6-11'!$A$5:$L$267,2,FALSE),"") ->  | G38: =VLOOKUP('EstRev 6-11'!$A$108,'EstRev 6-11'!$A$5:$L$267,9,FALSE) -> 0 | H38: TRUE
A39: =IF(G39>0,"80-"&VLOOKUP('EstRev 6-11'!$A$108,'EstRev 6-11'!$A$5:$L$267,1,FALSE),"") ->  | B39: =IF(G39>0,VLOOKUP('EstRev 6-11'!$A$108,'EstRev 6-11'!$A$5:$L$267,2,FALSE),"") ->  | E39: =IF(G39>0,G39,"") ->  | G39: =VLOOKUP('EstRev 6-11'!$A$108,'EstRev 6-11'!$A$5:$L$267,11,FALSE) -> 0 | H39: TRUE
A40: =IF(G40>0,"90-"&VLOOKUP('EstRev 6-11'!$A$108,'EstRev 6-11'!$A$5:$L$267,1,FALSE),"") ->  | B40: =IF(G40>0,VLOOKUP('EstRev 6-11'!$A$108,'EstRev 6-11'!$A$5:$L$267,2,FALSE),"") ->  | E40: =IF(G40>0,G40,"") ->  | G40: =VLOOKUP('EstRev 6-11'!$A$108,'EstRev 6-11'!$A$5:$L$267,12,FALSE) -> 0 | H40: TRUE
A41: =IF(G41>0,"10-"&VLOOKUP('EstRev 6-11'!$A$109,'EstRev 6-11'!$A$5:$L$267,1,FALSE),"") -> 10-1999 | B41: =IF(G41>0,VLOOKUP('EstRev 6-11'!$A$109,'EstRev 6-11'!$A$5:$L$267,2,FALSE),"") -> Other Local Revenues (Describe & Itemize) | C41: Other Local Revenues | E41: 31600 | G41: =VLOOKUP('EstRev 6-11'!$A$109,'EstRev 6-11'!$A$5:$L$267,4,FALSE) -> 31600 | H41: TRUE
A42: =IF(G42>0,"20-"&VLOOKUP('EstRev 6-11'!$A$109,'EstRev 6-11'!$A$5:$L$267,1,FALSE),"") ->  | B42: =IF(G42>0,VLOOKUP('EstRev 6-11'!$A$109,'EstRev 6-11'!$A$5:$L$267,2,FALSE),"") ->  | G42: =VLOOKUP('EstRev 6-11'!$A$109,'EstRev 6-11'!$A$5:$L$267,5,FALSE) -> 0 | H42: TRUE
A43: =IF(G43>0,"30-"&VLOOKUP('EstRev 6-11'!$A$109,'EstRev 6-11'!$A$5:$L$267,1,FALSE),"") ->  | B43: =IF(G43>0,VLOOKUP('EstRev 6-11'!$A$109,'EstRev 6-11'!$A$5:$L$267,2,FALSE),"") ->  | G43: =VLOOKUP('EstRev 6-11'!$A$109,'EstRev 6-11'!$A$5:$L$267,6,FALSE) -> 0 | H43: TRUE
A44: =IF(G44>0,"40-"&VLOOKUP('EstRev 6-11'!$A$109,'EstRev 6-11'!$A$5:$L$267,1,FALSE),"") ->  | B44: =IF(G44>0,VLOOKUP('EstRev 6-11'!$A$109,'EstRev 6-11'!$A$5:$L$267,2,FALSE),"") ->  | G44: =VLOOKUP('EstRev 6-11'!$A$109,'EstRev 6-11'!$A$5:$L$267,7,FALSE) -> 0 | H44: TRUE
A45: =IF(G45>0,"50-"&VLOOKUP('EstRev 6-11'!$A$109,'EstRev 6-11'!$A$5:$L$267,1,FALSE),"") ->  | B45: =IF(G45>0,VLOOKUP('EstRev 6-11'!$A$109,'EstRev 6-11'!$A$5:$L$267,2,FALSE),"") ->  | G45: =VLOOKUP('EstRev 6-11'!$A$109,'EstRev 6-11'!$A$5:$L$267,8,FALSE) -> 0 | H45: TRUE
A46: =IF(G46>0,"60-"&VLOOKUP('EstRev 6-11'!$A$109,'EstRev 6-11'!$A$5:$L$267,1,FALSE),"") ->  | B46: =IF(G46>0,VLOOKUP('EstRev 6-11'!$A$109,'EstRev 6-11'!$A$5:$L$267,2,FALSE),"") ->  | G46: =VLOOKUP('EstRev 6-11'!$A$109,'EstRev 6-11'!$A$5:$L$267,9,FALSE) -> 0 | H46: TRUE
A47: =IF(G47>0,"70-"&VLOOKUP('EstRev 6-11'!$A$109,'EstRev 6-11'!$A$5:$L$267,1,FALSE),"") ->  | B47: =IF(G47>0,VLOOKUP('EstRev 6-11'!$A$109,'EstRev 6-11'!$A$5:$L$267,2,FALSE),"") ->  | G47: =VLOOKUP('EstRev 6-11'!$A$109,'EstRev 6-11'!$A$5:$L$267,10,FALSE) -> 0 | H47: TRUE
A48: =IF(G48>0,"80-"&VLOOKUP('EstRev 6-11'!$A$109,'EstRev 6-11'!$A$5:$L$267,1,FALSE),"") ->  | B48: =IF(G48>0,VLOOKUP('EstRev 6-11'!$A$109,'EstRev 6-11'!$A$5:$L$267,2,FALSE),"") ->  | G48: =VLOOKUP('EstRev 6-11'!$A$109,'EstRev 6-11'!$A$5:$L$267,11,FALSE) -> 0 | H48: TRUE
A49: =IF(G49>0,"90-"&VLOOKUP('EstRev 6-11'!$A$109,'EstRev 6-11'!$A$5:$L$267,1,FALSE),"") -> 90-1999 | B49: =IF(G49>0,VLOOKUP('EstRev 6-11'!$A$109,'EstRev 6-11'!$A$5:$L$267,2,FALSE),"") -> Other Local Revenues (Describe & Itemize) | C49: Other Local Revenues | E49: 2100000 | G49: =VLOOKUP('EstRev 6-11'!$A$109,'EstRev 6-11'!$A$5:$L$267,12,FALSE) -> 2100000 | H49: TRUE
A50: =IF(G50>0,"10-"&VLOOKUP('EstRev 6-11'!$A$116,'EstRev 6-11'!$A$5:$L$267,1,FALSE),"") ->  | B50: =IF(G50>0,VLOOKUP('EstRev 6-11'!$A$116,'EstRev 6-11'!$A$5:$L$267,2,FALSE),"") ->  | G50: =VLOOKUP('EstRev 6-11'!$A$116,'EstRev 6-11'!$A$5:$L$267,4,FALSE) -> 0 | H50: TRUE
A51: =IF(G51>0,"20-"&VLOOKUP('EstRev 6-11'!$A$116,'EstRev 6-11'!$A$5:$L$267,1,FALSE),"") ->  | B51: =IF(G51>0,VLOOKUP('EstRev 6-11'!$A$116,'EstRev 6-11'!$A$5:$L$267,2,FALSE),"") ->  | G51: =VLOOKUP('EstRev 6-11'!$A$116,'EstRev 6-11'!$A$5:$L$267,5,FALSE) -> 0 | H51: TRUE
A52: =IF(G52>0,"40-"&VLOOKUP('EstRev 6-11'!$A$116,'EstRev 6-11'!$A$5:$L$267,1,FALSE),"") ->  | B52: =IF(G52>0,VLOOKUP('EstRev 6-11'!$A$116,'EstRev 6-11'!$A$5:$L$267,2,FALSE),"") ->  | G52: =VLOOKUP('EstRev 6-11'!$A$116,'EstRev 6-11'!$A$5:$L$267,7,FALSE) -> 0 | H52: TRUE
A53: =IF(G53>0,"50-"&VLOOKUP('EstRev 6-11'!$A$116,'EstRev 6-11'!$A$5:$L$267,1,FALSE),"") ->  | B53: =IF(G53>0,VLOOKUP('EstRev 6-11'!$A$116,'EstRev 6-11'!$A$5:$L$267,2,FALSE),"") ->  | G53: =VLOOKUP('EstRev 6-11'!$A$116,'EstRev 6-11'!$A$5:$L$267,8,FALSE) -> 0 | H53: TRUE
A54: =IF(G54>0,"10-"&VLOOKUP('EstRev 6-11'!$A$123,'EstRev 6-11'!$A$5:$L$267,1,FALSE),"") ->  | B54: =IF(G54>0,VLOOKUP('EstRev 6-11'!$A$123,'EstRev 6-11'!$A$5:$L$267,2,FALSE),"") ->  | G54: =VLOOKUP('EstRev 6-11'!$A$123,'EstRev 6-11'!$A$5:$L$267,4,FALSE) -> 0 | H54: TRUE
A55: =IF(G55>0,"20-"&VLOOKUP('EstRev 6-11'!$A$123,'EstRev 6-11'!$A$5:$L$267,1,FALSE),"") ->  | B55: =IF(G55>0,VLOOKUP('EstRev 6-11'!$A$123,'EstRev 6-11'!$A$5:$L$267,2,FALSE),"") ->  | G55: =VLOOKUP('EstRev 6-11'!$A$123,'EstRev 6-11'!$A$5:$L$267,5,FALSE) -> 0 | H55: TRUE
A56: =IF(G56>0,"30-"&VLOOKUP('EstRev 6-11'!$A$123,'EstRev 6-11'!$A$5:$L$267,1,FALSE),"") ->  | B56: =IF(G56>0,VLOOKUP('EstRev 6-11'!$A$123,'EstRev 6-11'!$A$5:$L$267,2,FALSE),"") ->  | G56: =VLOOKUP('EstRev 6-11'!$A$123,'EstRev 6-11'!$A$5:$L$267,6,FALSE) -> 0 | H56: TRUE
A57: =IF(G57>0,"40-"&VLOOKUP('EstRev 6-11'!$A$123,'EstRev 6-11'!$A$5:$L$267,1,FALSE),"") ->  | B57: =IF(G57>0,VLOOKUP('EstRev 6-11'!$A$123,'EstRev 6-11'!$A$5:$L$267,2,FALSE),"") ->  | G57: =VLOOKUP('EstRev 6-11'!$A$123,'EstRev 6-11'!$A$5:$L$267,7,FALSE) -> 0 | H57: TRUE
A58: =IF(G58>0,"50-"&VLOOKUP('EstRev 6-11'!$A$123,'EstRev 6-11'!$A$5:$L$267,1,FALSE),"") ->  | B58: =IF(G58>0,VLOOKUP('EstRev 6-11'!$A$123,'EstRev 6-11'!$A$5:$L$267,2,FALSE),"") ->  | G58: =VLOOKUP('EstRev 6-11'!$A$123,'EstRev 6-11'!$A$5:$L$267,8,FALSE) -> 0 | H58: TRUE
A59: =IF(G59>0,"60-"&VLOOKUP('EstRev 6-11'!$A$123,'EstRev 6-11'!$A$5:$L$267,1,FALSE),"") ->  | B59: =IF(G59>0,VLOOKUP('EstRev 6-11'!$A$123,'EstRev 6-11'!$A$5:$L$267,2,FALSE),"") ->  | G59: =VLOOKUP('EstRev 6-11'!$A$123,'EstRev 6-11'!$A$5:$L$267,9,FALSE) -> 0 | H59: TRUE
A60: =IF(G60>0,"80-"&VLOOKUP('EstRev 6-11'!$A$123,'EstRev 6-11'!$A$5:$L$267,1,FALSE),"") ->  | B60: =IF(G60>0,VLOOKUP('EstRev 6-11'!$A$123,'EstRev 6-11'!$A$5:$L$267,2,FALSE),"") ->  | G60: =VLOOKUP('EstRev 6-11'!$A$123,'EstRev 6-11'!$A$5:$L$267,11,FALSE) -> 0 | H60: TRUE
A61: =IF(G61>0,"90-"&VLOOKUP('EstRev 6-11'!$A$123,'EstRev 6-11'!$A$5:$L$267,1,FALSE),"") ->  | B61: =IF(G61>0,VLOOKUP('EstRev 6-11'!$A$123,'EstRev 6-11'!$A$5:$L$267,2,FALSE),"") ->  | G61: =VLOOKUP('EstRev 6-11'!$A$123,'EstRev 6-11'!$A$5:$L$267,12,FALSE) -> 0 | H61: TRUE
A62: =IF(G62>0,"10-"&VLOOKUP('EstRev 6-11'!$A$133,'EstRev 6-11'!$A$5:$L$267,1,FALSE),"") ->  | B62: =IF(G62>0,VLOOKUP('EstRev 6-11'!$A$133,'EstRev 6-11'!$A$5:$L$267,2,FALSE),"") ->  | G62: =VLOOKUP('EstRev 6-11'!$A$133,'EstRev 6-11'!$A$5:$L$267,4,FALSE) -> 0 | H62: TRUE
A63: =IF(G63>0,"20-"&VLOOKUP('EstRev 6-11'!$A$133,'EstRev 6-11'!$A$5:$L$267,1,FALSE),"") ->  | B63: =IF(G63>0,VLOOKUP('EstRev 6-11'!$A$133,'EstRev 6-11'!$A$5:$L$267,2,FALSE),"") ->  | G63: =VLOOKUP('EstRev 6-11'!$A$133,'EstRev 6-11'!$A$5:$L$267,5,FALSE) -> 0 | H63: TRUE
A64: =IF(G64>0,"40-"&VLOOKUP('EstRev 6-11'!$A$133,'EstRev 6-11'!$A$5:$L$267,1,FALSE),"") ->  | B64: =IF(G64>0,VLOOKUP('EstRev 6-11'!$A$133,'EstRev 6-11'!$A$5:$L$267,2,FALSE),"") ->  | G64: =VLOOKUP('EstRev 6-11'!$A$133,'EstRev 6-11'!$A$5:$L$267,7,FALSE) -> 0 | H64: TRUE
A65: =IF(G65>0,"10-"&VLOOKUP('EstRev 6-11'!$A$142,'EstRev 6-11'!$A$5:$L$267,1,FALSE),"") ->  | B65: =IF(G65>0,VLOOKUP('EstRev 6-11'!$A$142,'EstRev 6-11'!$A$5:$L$267,2,FALSE),"") ->  | C65: =IF(B65="","",LEFT(B65, LEN(B65)-21)) ->  | G65: =VLOOKUP('EstRev 6-11'!$A$142,'EstRev 6-11'!$A$5:$L$267,4,FALSE) -> 0 | H65: TRUE
A66: =IF(G66>0,"20-"&VLOOKUP('EstRev 6-11'!$A$142,'EstRev 6-11'!$A$5:$L$267,1,FALSE),"") ->  | B66: =IF(G66>0,VLOOKUP('EstRev 6-11'!$A$142,'EstRev 6-11'!$A$5:$L$267,2,FALSE),"") ->  | G66: =VLOOKUP('EstRev 6-11'!$A$142,'EstRev 6-11'!$A$5:$L$267,5,FALSE) -> 0 | H66: TRUE
A67: =IF(G67>0,"50-"&VLOOKUP('EstRev 6-11'!$A$142,'EstRev 6-11'!$A$5:$L$267,1,FALSE),"") ->  | B67: =IF(G67>0,VLOOKUP('EstRev 6-11'!$A$142,'EstRev 6-11'!$A$5:$L$267,2,FALSE),"") ->  | G67: =VLOOKUP('EstRev 6-11'!$A$142,'EstRev 6-11'!$A$5:$L$267,8,FALSE) -> 0 | H67: TRUE
A68: =IF(G68>0,"10-"&VLOOKUP('EstRev 6-11'!$A$152,'EstRev 6-11'!$A$5:$L$267,1,FALSE),"") ->  | B68: =IF(G68>0,VLOOKUP('EstRev 6-11'!$A$152,'EstRev 6-11'!$A$5:$L$267,2,FALSE),"") ->  | G68: =VLOOKUP('EstRev 6-11'!$A$152,'EstRev 6-11'!$A$5:$L$267,4,FALSE) -> 0 | H68: TRUE
A69: =IF(G69>0,"20-"&VLOOKUP('EstRev 6-11'!$A$152,'EstRev 6-11'!$A$5:$L$267,1,FALSE),"") ->  | B69: =IF(G69>0,VLOOKUP('EstRev 6-11'!$A$152,'EstRev 6-11'!$A$5:$L$267,2,FALSE),"") ->  | G69: =VLOOKUP('EstRev 6-11'!$A$152,'EstRev 6-11'!$A$5:$L$267,5,FALSE) -> 0 | H69: TRUE
A70: =IF(G70>0,"30-"&VLOOKUP('EstRev 6-11'!$A$152,'EstRev 6-11'!$A$5:$L$267,1,FALSE),"") ->  | B70: =IF(G70>0,VLOOKUP('EstRev 6-11'!$A$152,'EstRev 6-11'!$A$5:$L$267,2,FALSE),"") ->  | G70: =VLOOKUP('EstRev 6-11'!$A$152,'EstRev 6-11'!$A$5:$L$267,6,FALSE) -> 0 | H70: TRUE
A71: =IF(G71>0,"40-"&VLOOKUP('EstRev 6-11'!$A$152,'EstRev 6-11'!$A$5:$L$267,1,FALSE),"") ->  | B71: =IF(G71>0,VLOOKUP('EstRev 6-11'!$A$152,'EstRev 6-11'!$A$5:$L$267,2,FALSE),"") ->  | G71: =VLOOKUP('EstRev 6-11'!$A$152,'EstRev 6-11'!$A$5:$L$267,7,FALSE) -> 0 | H71: TRUE
A72: =IF(G72>0,"50-"&VLOOKUP('EstRev 6-11'!$A$152,'EstRev 6-11'!$A$5:$L$267,1,FALSE),"") ->  | B72: =IF(G72>0,VLOOKUP('EstRev 6-11'!$A$152,'EstRev 6-11'!$A$5:$L$267,2,FALSE),"") ->  | G72: =VLOOKUP('EstRev 6-11'!$A$152,'EstRev 6-11'!$A$5:$L$267,8,FALSE) -> 0 | H72: TRUE
A73: =IF(G73>0,"60-"&VLOOKUP('EstRev 6-11'!$A$152,'EstRev 6-11'!$A$5:$L$267,1,FALSE),"") ->  | B73: =IF(G73>0,VLOOKUP('EstRev 6-11'!$A$152,'EstRev 6-11'!$A$5:$L$267,2,FALSE),"") ->  | G73: =VLOOKUP('EstRev 6-11'!$A$152,'EstRev 6-11'!$A$5:$L$267,9,FALSE) -> 0 | H73: =ISBLANK(D73) -> TRUE
A74: =IF(G74>0,"70-"&VLOOKUP('EstRev 6-11'!$A$152,'EstRev 6-11'!$A$5:$L$267,1,FALSE),"") ->  | B74: =IF(G74>0,VLOOKUP('EstRev 6-11'!$A$152,'EstRev 6-11'!$A$5:$L$267,2,FALSE),"") ->  | C74: =IF(B74="","",LEFT(B74, LEN(B74)-21)) ->  | E74: =IF(G74>0,G74,"") ->  | G74: =VLOOKUP('EstRev 6-11'!$A$152,'EstRev 6-11'!$A$5:$L$267,10,FALSE) -> 0 | H74: TRUE
A75: =IF(G75>0,"80-"&VLOOKUP('EstRev 6-11'!$A$152,'EstRev 6-11'!$A$5:$L$267,1,FALSE),"") ->  | B75: =IF(G75>0,VLOOKUP('EstRev 6-11'!$A$152,'EstRev 6-11'!$A$5:$L$267,2,FALSE),"") ->  | G75: =VLOOKUP('EstRev 6-11'!$A$152,'EstRev 6-11'!$A$5:$L$267,11,FALSE) -> 0 | H75: TRUE
A76: =IF(G76>0,"90-"&VLOOKUP('EstRev 6-11'!$A$152,'EstRev 6-11'!$A$5:$L$267,1,FALSE),"") ->  | B76: =IF(G76>0,VLOOKUP('EstRev 6-11'!$A$152,'EstRev 6-11'!$A$5:$L$267,2,FALSE),"") ->  | G76: =VLOOKUP('EstRev 6-11'!$A$152,'EstRev 6-11'!$A$5:$L$267,12,FALSE) -> 0 | H76: TRUE
A77: =IF(G77>0,"10-"&VLOOKUP('EstRev 6-11'!$A$156,'EstRev 6-11'!$A$5:$L$267,1,FALSE),"") ->  | B77: =IF(G77>0,VLOOKUP('EstRev 6-11'!$A$156,'EstRev 6-11'!$A$5:$L$267,2,FALSE),"") ->  | G77: =VLOOKUP('EstRev 6-11'!$A$156,'EstRev 6-11'!$A$5:$L$267,4,FALSE) -> 0 | H77: TRUE
A78: =IF(G78>0,"20-"&VLOOKUP('EstRev 6-11'!$A$156,'EstRev 6-11'!$A$5:$L$267,1,FALSE),"") ->  | B78: =IF(G78>0,VLOOKUP('EstRev 6-11'!$A$156,'EstRev 6-11'!$A$5:$L$267,2,FALSE),"") ->  | G78: =VLOOKUP('EstRev 6-11'!$A$156,'EstRev 6-11'!$A$5:$L$267,5,FALSE) -> 0 | H78: TRUE
A79: =IF(G79>0,"40-"&VLOOKUP('EstRev 6-11'!$A$156,'EstRev 6-11'!$A$5:$L$267,1,FALSE),"") ->  | B79: =IF(G79>0,VLOOKUP('EstRev 6-11'!$A$156,'EstRev 6-11'!$A$5:$L$267,2,FALSE),"") ->  | G79: =VLOOKUP('EstRev 6-11'!$A$156,'EstRev 6-11'!$A$5:$L$267,7,FALSE) -> 0 | H79: TRUE
A80: =IF(G80>0,"50-"&VLOOKUP('EstRev 6-11'!$A$156,'EstRev 6-11'!$A$5:$L$267,1,FALSE),"") ->  | B80: =IF(G80>0,VLOOKUP('EstRev 6-11'!$A$156,'EstRev 6-11'!$A$5:$L$267,2,FALSE),"") ->  | G80: =VLOOKUP('EstRev 6-11'!$A$156,'EstRev 6-11'!$A$5:$L$267,8,FALSE) -> 0 | H80: TRUE
A81: =IF(G81>0,"10-"&VLOOKUP('EstRev 6-11'!$A$170,'EstRev 6-11'!$A$5:$L$267,1,FALSE),"") ->  | B81: =IF(G81>0,VLOOKUP('EstRev 6-11'!$A$170,'EstRev 6-11'!$A$5:$L$267,2,FALSE),"") ->  | G81: =VLOOKUP('EstRev 6-11'!$A$170,'EstRev 6-11'!$A$5:$L$267,4,FALSE) -> 0 | H81: TRUE
A82: =IF(G82>0,"20-"&VLOOKUP('EstRev 6-11'!$A$170,'EstRev 6-11'!$A$5:$L$267,1,FALSE),"") ->  | B82: =IF(G82>0,VLOOKUP('EstRev 6-11'!$A$170,'EstRev 6-11'!$A$5:$L$267,2,FALSE),"") ->  | G82: =VLOOKUP('EstRev 6-11'!$A$170,'EstRev 6-11'!$A$5:$L$267,5,FALSE) -> 0 | H82: TRUE
A83: =IF(G83>0,"30-"&VLOOKUP('EstRev 6-11'!$A$170,'EstRev 6-11'!$A$5:$L$267,1,FALSE),"") ->  | B83: =IF(G83>0,VLOOKUP('EstRev 6-11'!$A$170,'EstRev 6-11'!$A$5:$L$267,2,FALSE),"") ->  | G83: =VLOOKUP('EstRev 6-11'!$A$170,'EstRev 6-11'!$A$5:$L$267,6,FALSE) -> 0 | H83: TRUE
A84: =IF(G84>0,"40-"&VLOOKUP('EstRev 6-11'!$A$170,'EstRev 6-11'!$A$5:$L$267,1,FALSE),"") ->  | B84: =IF(G84>0,VLOOKUP('EstRev 6-11'!$A$170,'EstRev 6-11'!$A$5:$L$267,2,FALSE),"") ->  | G84: =VLOOKUP('EstRev 6-11'!$A$170,'EstRev 6-11'!$A$5:$L$267,7,FALSE) -> 0 | H84: TRUE
A85: =IF(G85>0,"50-"&VLOOKUP('EstRev 6-11'!$A$170,'EstRev 6-11'!$A$5:$L$267,1,FALSE),"") ->  | B85: =IF(G85>0,VLOOKUP('EstRev 6-11'!$A$170,'EstRev 6-11'!$A$5:$L$267,2,FALSE),"") ->  | G85: =VLOOKUP('EstRev 6-11'!$A$170,'EstRev 6-11'!$A$5:$L$267,8,FALSE) -> 0 | H85: TRUE
A86: =IF(G86>0,"60-"&VLOOKUP('EstRev 6-11'!$A$170,'EstRev 6-11'!$A$5:$L$267,1,FALSE),"") ->  | B86: =IF(G86>0,VLOOKUP('EstRev 6-11'!$A$170,'EstRev 6-11'!$A$5:$L$267,2,FALSE),"") ->  | G86: =VLOOKUP('EstRev 6-11'!$A$170,'EstRev 6-11'!$A$5:$L$267,9,FALSE) -> 0 | H86: TRUE
A87: =IF(G87>0,"70-"&VLOOKUP('EstRev 6-11'!$A$170,'EstRev 6-11'!$A$5:$L$267,1,FALSE),"") ->  | B87: =IF(G87>0,VLOOKUP('EstRev 6-11'!$A$170,'EstRev 6-11'!$A$5:$L$267,2,FALSE),"") ->  | G87: =VLOOKUP('EstRev 6-11'!$A$170,'EstRev 6-11'!$A$5:$L$267,10,FALSE) -> 0 | H87: TRUE
A88: =IF(G88>0,"80-"&VLOOKUP('EstRev 6-11'!$A$170,'EstRev 6-11'!$A$5:$L$267,1,FALSE),"") ->  | B88: =IF(G88>0,VLOOKUP('EstRev 6-11'!$A$170,'EstRev 6-11'!$A$5:$L$267,2,FALSE),"") ->  | G88: =VLOOKUP('EstRev 6-11'!$A$170,'EstRev 6-11'!$A$5:$L$267,11,FALSE) -> 0 | H88: TRUE
A89: =IF(G89>0,"90-"&VLOOKUP('EstRev 6-11'!$A$170,'EstRev 6-11'!$A$5:$L$267,1,FALSE),"") ->  | B89: =IF(G89>0,VLOOKUP('EstRev 6-11'!$A$170,'EstRev 6-11'!$A$5:$L$267,2,FALSE),"") ->  | G89: =VLOOKUP('EstRev 6-11'!$A$170,'EstRev 6-11'!$A$5:$L$267,12,FALSE) -> 0 | H89: TRUE
A90: =IF(G90>0,"10-"&VLOOKUP('EstRev 6-11'!$A$176,'EstRev 6-11'!$A$5:$L$267,1,FALSE),"") ->  | B90: =IF(G90>0,VLOOKUP('EstRev 6-11'!$A$176,'EstRev 6-11'!$A$5:$L$267,2,FALSE),"") ->  | G90: =VLOOKUP('EstRev 6-11'!$A$176,'EstRev 6-11'!$A$5:$L$267,4,FALSE) -> 0 | H90: TRUE
A91: =IF(G91>0,"20-"&VLOOKUP('EstRev 6-11'!$A$176,'EstRev 6-11'!$A$5:$L$267,1,FALSE),"") ->  | B91: =IF(G91>0,VLOOKUP('EstRev 6-11'!$A$176,'EstRev 6-11'!$A$5:$L$267,2,FALSE),"") ->  | G91: =VLOOKUP('EstRev 6-11'!$A$176,'EstRev 6-11'!$A$5:$L$267,5,FALSE) -> 0 | H91: TRUE
A92: =IF(G92>0,"30-"&VLOOKUP('EstRev 6-11'!$A$176,'EstRev 6-11'!$A$5:$L$267,1,FALSE),"") ->  | B92: =IF(G92>0,VLOOKUP('EstRev 6-11'!$A$176,'EstRev 6-11'!$A$5:$L$267,2,FALSE),"") ->  | G92: =VLOOKUP('EstRev 6-11'!$A$176,'EstRev 6-11'!$A$5:$L$267,6,FALSE) -> 0 | H92: TRUE
A93: =IF(G93>0,"40-"&VLOOKUP('EstRev 6-11'!$A$176,'EstRev 6-11'!$A$5:$L$267,1,FALSE),"") ->  | B93: =IF(G93>0,VLOOKUP('EstRev 6-11'!$A$176,'EstRev 6-11'!$A$5:$L$267,2,FALSE),"") ->  | G93: =VLOOKUP('EstRev 6-11'!$A$176,'EstRev 6-11'!$A$5:$L$267,7,FALSE) -> 0 | H93: TRUE
A94: =IF(G94>0,"50-"&VLOOKUP('EstRev 6-11'!$A$176,'EstRev 6-11'!$A$5:$L$267,1,FALSE),"") ->  | B94: =IF(G94>0,VLOOKUP('EstRev 6-11'!$A$176,'EstRev 6-11'!$A$5:$L$267,2,FALSE),"") ->  | G94: =VLOOKUP('EstRev 6-11'!$A$176,'EstRev 6-11'!$A$5:$L$267,8,FALSE) -> 0 | H94: TRUE
A95: =IF(G95>0,"60-"&VLOOKUP('EstRev 6-11'!$A$176,'EstRev 6-11'!$A$5:$L$267,1,FALSE),"") ->  | B95: =IF(G95>0,VLOOKUP('EstRev 6-11'!$A$176,'EstRev 6-11'!$A$5:$L$267,2,FALSE),"") ->  | G95: =VLOOKUP('EstRev 6-11'!$A$176,'EstRev 6-11'!$A$5:$L$267,9,FALSE) -> 0 | H95: TRUE
A96: =IF(G96>0,"70-"&VLOOKUP('EstRev 6-11'!$A$176,'EstRev 6-11'!$A$5:$L$267,1,FALSE),"") ->  | B96: =IF(G96>0,VLOOKUP('EstRev 6-11'!$A$176,'EstRev 6-11'!$A$5:$L$267,2,FALSE),"") ->  | G96: =VLOOKUP('EstRev 6-11'!$A$176,'EstRev 6-11'!$A$5:$L$267,10,FALSE) -> 0 | H96: TRUE
A97: =IF(G97>0,"80-"&VLOOKUP('EstRev 6-11'!$A$176,'EstRev 6-11'!$A$5:$L$267,1,FALSE),"") ->  | B97: =IF(G97>0,VLOOKUP('EstRev 6-11'!$A$176,'EstRev 6-11'!$A$5:$L$267,2,FALSE),"") ->  | G97: =VLOOKUP('EstRev 6-11'!$A$176,'EstRev 6-11'!$A$5:$L$267,11,FALSE) -> 0 | H97: TRUE
A98: =IF(G98>0,"90-"&VLOOKUP('EstRev 6-11'!$A$176,'EstRev 6-11'!$A$5:$L$267,1,FALSE),"") ->  | B98: =IF(G98>0,VLOOKUP('EstRev 6-11'!$A$176,'EstRev 6-11'!$A$5:$L$267,2,FALSE),"") ->  | G98: =VLOOKUP('EstRev 6-11'!$A$176,'EstRev 6-11'!$A$5:$L$267,12,FALSE) -> 0 | H98: TRUE
A99: =IF(G99>0,"10-"&VLOOKUP('EstRev 6-11'!$A$182,'EstRev 6-11'!$A$5:$L$267,1,FALSE),"") ->  | B99: =IF(G99>0,VLOOKUP('EstRev 6-11'!$A$182,'EstRev 6-11'!$A$5:$L$267,2,FALSE),"") ->  | G99: =VLOOKUP('EstRev 6-11'!$A$182,'EstRev 6-11'!$A$5:$L$267,4,FALSE) -> 0 | H99: TRUE
A100: =IF(G100>0,"20-"&VLOOKUP('EstRev 6-11'!$A$182,'EstRev 6-11'!$A$5:$L$267,1,FALSE),"") ->  | B100: =IF(G100>0,VLOOKUP('EstRev 6-11'!$A$182,'EstRev 6-11'!$A$5:$L$267,2,FALSE),"") ->  | G100: =VLOOKUP('EstRev 6-11'!$A$182,'EstRev 6-11'!$A$5:$L$267,5,FALSE) -> 0 | H100: TRUE
A101: =IF(G101>0,"40-"&VLOOKUP('EstRev 6-11'!$A$182,'EstRev 6-11'!$A$5:$L$267,1,FALSE),"") ->  | B101: =IF(G101>0,VLOOKUP('EstRev 6-11'!$A$182,'EstRev 6-11'!$A$5:$L$267,2,FALSE),"") ->  | G101: =VLOOKUP('EstRev 6-11'!$A$182,'EstRev 6-11'!$A$5:$L$267,7,FALSE) -> 0 | H101: TRUE
A102: =IF(G102>0,"50-"&VLOOKUP('EstRev 6-11'!$A$182,'EstRev 6-11'!$A$5:$L$267,1,FALSE),"") ->  | B102: =IF(G102>0,VLOOKUP('EstRev 6-11'!$A$182,'EstRev 6-11'!$A$5:$L$267,2,FALSE),"") ->  | G102: =VLOOKUP('EstRev 6-11'!$A$182,'EstRev 6-11'!$A$5:$L$267,8,FALSE) -> 0 | H102: TRUE
A103: =IF(G103>0,"60-"&VLOOKUP('EstRev 6-11'!$A$182,'EstRev 6-11'!$A$5:$L$267,1,FALSE),"") ->  | B103: =IF(G103>0,VLOOKUP('EstRev 6-11'!$A$182,'EstRev 6-11'!$A$5:$L$267,2,FALSE),"") ->  | G103: =VLOOKUP('EstRev 6-11'!$A$182,'EstRev 6-11'!$A$5:$L$267,9,FALSE) -> 0 | H103: TRUE
A104: =IF(G104>0,"90-"&VLOOKUP('EstRev 6-11'!$A$182,'EstRev 6-11'!$A$5:$L$267,1,FALSE),"") ->  | B104: =IF(G104>0,VLOOKUP('EstRev 6-11'!$A$182,'EstRev 6-11'!$A$5:$L$267,2,FALSE),"") ->  | G104: =VLOOKUP('EstRev 6-11'!$A$182,'EstRev 6-11'!$A$5:$L$267,12,FALSE) -> 0 | H104: TRUE
A105: =IF(G105>0,"10-"&VLOOKUP('EstRev 6-11'!$A$189,'EstRev 6-11'!$A$5:$L$267,1,FALSE),"") ->  | B105: =IF(G105>0,VLOOKUP('EstRev 6-11'!$A$189,'EstRev 6-11'!$A$5:$L$267,2,FALSE),"") ->  | C105: =IF(B105="","",LEFT(B105, LEN(B105)-21)) ->  | G105: =VLOOKUP('EstRev 6-11'!$A$189,'EstRev 6-11'!$A$5:$L$267,4,FALSE) -> 0 | H105: TRUE
A106: =IF(G106>0,"20-"&VLOOKUP('EstRev 6-11'!$A$189,'EstRev 6-11'!$A$5:$L$267,1,FALSE),"") ->  | B106: =IF(G106>0,VLOOKUP('EstRev 6-11'!$A$189,'EstRev 6-11'!$A$5:$L$267,2,FALSE),"") ->  | G106: =VLOOKUP('EstRev 6-11'!$A$189,'EstRev 6-11'!$A$5:$L$267,5,FALSE) -> 0 | H106: TRUE
A107: =IF(G107>0,"40-"&VLOOKUP('EstRev 6-11'!$A$189,'EstRev 6-11'!$A$5:$L$267,1,FALSE),"") ->  | B107: =IF(G107>0,VLOOKUP('EstRev 6-11'!$A$189,'EstRev 6-11'!$A$5:$L$267,2,FALSE),"") ->  | G107: =VLOOKUP('EstRev 6-11'!$A$189,'EstRev 6-11'!$A$5:$L$267,7,FALSE) -> 0 | H107: TRUE
A108: =IF(G108>0,"50-"&VLOOKUP('EstRev 6-11'!$A$189,'EstRev 6-11'!$A$5:$L$267,1,FALSE),"") ->  | B108: =IF(G108>0,VLOOKUP('EstRev 6-11'!$A$189,'EstRev 6-11'!$A$5:$L$267,2,FALSE),"") ->  | G108: =VLOOKUP('EstRev 6-11'!$A$189,'EstRev 6-11'!$A$5:$L$267,8,FALSE) -> 0 | H108: TRUE
A109: =IF(G109>0,"10-"&VLOOKUP('EstRev 6-11'!$A$199,'EstRev 6-11'!$A$5:$L$267,1,FALSE),"") -> 10-4299 | B109: =IF(G109>0,VLOOKUP('EstRev 6-11'!$A$199,'EstRev 6-11'!$A$5:$L$267,2,FALSE),"") -> Food Service - Other (Describe & Itemize) | C109: Food Service - Other | E109: 8700 | G109: =VLOOKUP('EstRev 6-11'!$A$199,'EstRev 6-11'!$A$5:$L$267,4,FALSE) -> 8700 | H109: TRUE
A110: =IF(G110>0,"50-"&VLOOKUP('EstRev 6-11'!$A$199,'EstRev 6-11'!$A$5:$L$267,1,FALSE),"") ->  | B110: =IF(G110>0,VLOOKUP('EstRev 6-11'!$A$199,'EstRev 6-11'!$A$5:$L$267,2,FALSE),"") ->  | G110: =VLOOKUP('EstRev 6-11'!$A$199,'EstRev 6-11'!$A$5:$L$267,8,FALSE) -> 0 | H110: TRUE
A111: =IF(G111>0,"10-"&VLOOKUP('EstRev 6-11'!$A$205,'EstRev 6-11'!$A$5:$L$267,1,FALSE),"") -> 10-4399 | B111: =IF(G111>0,VLOOKUP('EstRev 6-11'!$A$205,'EstRev 6-11'!$A$5:$L$267,2,FALSE),"") -> Title I - Other (Describe & Itemize) | C111: Title I - Other | D111: SIG 1003 | E111: 18000 | G111: =VLOOKUP('EstRev 6-11'!$A$205,'EstRev 6-11'!$A$5:$L$267,4,FALSE) -> 18000 | H111: FALSE
A112: =IF(G112>0,"20-"&VLOOKUP('EstRev 6-11'!$A$205,'EstRev 6-11'!$A$5:$L$267,1,FALSE),"") ->  | B112: =IF(G112>0,VLOOKUP('EstRev 6-11'!$A$205,'EstRev 6-11'!$A$5:$L$267,2,FALSE),"") ->  | G112: =VLOOKUP('EstRev 6-11'!$A$205,'EstRev 6-11'!$A$5:$L$267,5,FALSE) -> 0 | H112: TRUE
A113: =IF(G113>0,"40-"&VLOOKUP('EstRev 6-11'!$A$205,'EstRev 6-11'!$A$5:$L$267,1,FALSE),"") ->  | B113: =IF(G113>0,VLOOKUP('EstRev 6-11'!$A$205,'EstRev 6-11'!$A$5:$L$267,2,FALSE),"") ->  | G113: =VLOOKUP('EstRev 6-11'!$A$205,'EstRev 6-11'!$A$5:$L$267,7,FALSE) -> 0 | H113: TRUE
A114: =IF(G114>0,"50-"&VLOOKUP('EstRev 6-11'!$A$205,'EstRev 6-11'!$A$5:$L$267,1,FALSE),"") ->  | B114: =IF(G114>0,VLOOKUP('EstRev 6-11'!$A$205,'EstRev 6-11'!$A$5:$L$267,2,FALSE),"") ->  | G114: =VLOOKUP('EstRev 6-11'!$A$205,'EstRev 6-11'!$A$5:$L$267,8,FALSE) -> 0 | H114: TRUE
A115: =IF(G115>0,"10-"&VLOOKUP('EstRev 6-11'!$A$210,'EstRev 6-11'!$A$5:$L$267,1,FALSE),"") ->  | B115: =IF(G115>0,VLOOKUP('EstRev 6-11'!$A$210,'EstRev 6-11'!$A$5:$L$267,2,FALSE),"") ->  | G115: =VLOOKUP('EstRev 6-11'!$A$210,'EstRev 6-11'!$A$5:$L$267,4,FALSE) -> 0 | H115: TRUE
A116: =IF(G116>0,"20-"&VLOOKUP('EstRev 6-11'!$A$210,'EstRev 6-11'!$A$5:$L$267,1,FALSE),"") ->  | B116: =IF(G116>0,VLOOKUP('EstRev 6-11'!$A$210,'EstRev 6-11'!$A$5:$L$267,2,FALSE),"") ->  | G116: =VLOOKUP('EstRev 6-11'!$A$210,'EstRev 6-11'!$A$5:$L$267,5,FALSE) -> 0 | H116: TRUE
A117: =IF(G117>0,"40-"&VLOOKUP('EstRev 6-11'!$A$210,'EstRev 6-11'!$A$5:$L$267,1,FALSE),"") ->  | B117: =IF(G117>0,VLOOKUP('EstRev 6-11'!$A$210,'EstRev 6-11'!$A$5:$L$267,2,FALSE),"") ->  | G117: =VLOOKUP('EstRev 6-11'!$A$210,'EstRev 6-11'!$A$5:$L$267,7,FALSE) -> 0 | H117: TRUE
A118: =IF(G118>0,"50-"&VLOOKUP('EstRev 6-11'!$A$210,'EstRev 6-11'!$A$5:$L$267,1,FALSE),"") ->  | B118: =IF(G118>0,VLOOKUP('EstRev 6-11'!$A$210,'EstRev 6-11'!$A$5:$L$267,2,FALSE),"") ->  | G118: =VLOOKUP('EstRev 6-11'!$A$210,'EstRev 6-11'!$A$5:$L$267,8,FALSE) -> 0 | H118: TRUE
A119: =IF(G119>0,"10-"&VLOOKUP('EstRev 6-11'!$A$218,'EstRev 6-11'!$A$5:$L$267,1,FALSE),"") ->  | B119: =IF(G119>0,VLOOKUP('EstRev 6-11'!$A$218,'EstRev 6-11'!$A$5:$L$267,2,FALSE),"") ->  | G119: =VLOOKUP('EstRev 6-11'!$A$218,'EstRev 6-11'!$A$5:$L$267,4,FALSE) -> 0 | H119: TRUE
A120: =IF(G120>0,"20-"&VLOOKUP('EstRev 6-11'!$A$218,'EstRev 6-11'!$A$5:$L$267,1,FALSE),"") ->  | B120: =IF(G120>0,VLOOKUP('EstRev 6-11'!$A$218,'EstRev 6-11'!$A$5:$L$267,2,FALSE),"") ->  | G120: =VLOOKUP('EstRev 6-11'!$A$218,'EstRev 6-11'!$A$5:$L$267,5,FALSE) -> 0 | H120: TRUE
A121: =IF(G121>0,"40-"&VLOOKUP('EstRev 6-11'!$A$218,'EstRev 6-11'!$A$5:$L$267,1,FALSE),"") ->  | B121: =IF(G121>0,VLOOKUP('EstRev 6-11'!$A$218,'EstRev 6-11'!$A$5:$L$267,2,FALSE),"") ->  | G121: =VLOOKUP('EstRev 6-11'!$A$218,'EstRev 6-11'!$A$5:$L$267,7,FALSE) -> 0 | H121: TRUE
A122: =IF(G122>0,"50-"&VLOOKUP('EstRev 6-11'!$A$218,'EstRev 6-11'!$A$5:$L$267,1,FALSE),"") ->  | B122: =IF(G122>0,VLOOKUP('EstRev 6-11'!$A$218,'EstRev 6-11'!$A$5:$L$267,2,FALSE),"") ->  | G122: =VLOOKUP('EstRev 6-11'!$A$218,'EstRev 6-11'!$A$5:$L$267,8,FALSE) -> 0 | H122: TRUE
A123: =IF(G123>0,"10-"&VLOOKUP('EstRev 6-11'!$A$222,'EstRev 6-11'!$A$5:$L$267,1,FALSE),"") ->  | B123: =IF(G123>0,VLOOKUP('EstRev 6-11'!$A$222,'EstRev 6-11'!$A$5:$L$267,2,FALSE),"") ->  | G123: =VLOOKUP('EstRev 6-11'!$A$222,'EstRev 6-11'!$A$5:$L$267,4,FALSE) -> 0 | H123: TRUE
A124: =IF(G124>0,"20-"&VLOOKUP('EstRev 6-11'!$A$222,'EstRev 6-11'!$A$5:$L$267,1,FALSE),"") ->  | B124: =IF(G124>0,VLOOKUP('EstRev 6-11'!$A$222,'EstRev 6-11'!$A$5:$L$267,2,FALSE),"") ->  | G124: =VLOOKUP('EstRev 6-11'!$A$222,'EstRev 6-11'!$A$5:$L$267,5,FALSE) -> 0 | H124: TRUE
A125: =IF(G125>0,"50-"&VLOOKUP('EstRev 6-11'!$A$222,'EstRev 6-11'!$A$5:$L$267,1,FALSE),"") ->  | B125: =IF(G125>0,VLOOKUP('EstRev 6-11'!$A$222,'EstRev 6-11'!$A$5:$L$267,2,FALSE),"") ->  | G125: =VLOOKUP('EstRev 6-11'!$A$222,'EstRev 6-11'!$A$5:$L$267,8,FALSE) -> 0 | H125: TRUE
A126: =IF(G126>0,"10-"&VLOOKUP('EstRev 6-11'!$A$267,'EstRev 6-11'!$A$5:$L$267,1,FALSE),"") -> 10-4998 | B126: =IF(G126>0,VLOOKUP('EstRev 6-11'!$A$267,'EstRev 6-11'!$A$5:$L$267,2,FALSE),"") -> Other Restricted Grants Received from Fed. Govt. thru State (Describe & Itemize) | C126: Other Restricted Grants Received from Fed. Govt. thru State | E126: 85100 | G126: =VLOOKUP('EstRev 6-11'!$A$267,'EstRev 6-11'!$A$5:$L$267,4,FALSE) -> 85100 | H126: TRUE
A127: =IF(G127>0,"20-"&VLOOKUP('EstRev 6-11'!$A$267,'EstRev 6-11'!$A$5:$L$267,1,FALSE),"") -> 20-4998 | B127: =IF(G127>0,VLOOKUP('EstRev 6-11'!$A$267,'EstRev 6-11'!$A$5:$L$267,2,FALSE),"") -> Other Restricted Grants Received from Fed. Govt. thru State (Describe & Itemize) | C127: Other Restricted Grants Received from Fed. Govt. thru State | E127: 276000 | G127: =VLOOKUP('EstRev 6-11'!$A$267,'EstRev 6-11'!$A$5:$L$267,5,FALSE) -> 276000 | H127: TRUE
A128: =IF(G128>0,"40-"&VLOOKUP('EstRev 6-11'!$A$267,'EstRev 6-11'!$A$5:$L$267,1,FALSE),"") ->  | B128: =IF(G128>0,VLOOKUP('EstRev 6-11'!$A$267,'EstRev 6-11'!$A$5:$L$267,2,FALSE),"") ->  | G128: =VLOOKUP('EstRev 6-11'!$A$267,'EstRev 6-11'!$A$5:$L$267,7,FALSE) -> 0 | H128: TRUE
A129: =IF(G129>0,"50-"&VLOOKUP('EstRev 6-11'!$A$267,'EstRev 6-11'!$A$5:$L$267,1,FALSE),"") ->  | B129: =IF(G129>0,VLOOKUP('EstRev 6-11'!$A$267,'EstRev 6-11'!$A$5:$L$267,2,FALSE),"") ->  | G129: =VLOOKUP('EstRev 6-11'!$A$267,'EstRev 6-11'!$A$5:$L$267,8,FALSE) -> 0 | H129: TRUE
A130: =IF(G130>0,"60-"&VLOOKUP('EstRev 6-11'!$A$267,'EstRev 6-11'!$A$5:$L$267,1,FALSE),"") ->  | B130: =IF(G130>0,VLOOKUP('EstRev 6-11'!$A$267,'EstRev 6-11'!$A$5:$L$267,2,FALSE),"") ->  | G130: =VLOOKUP('EstRev 6-11'!$A$267,'EstRev 6-11'!$A$5:$L$267,9,FALSE) -> 0 | H130: TRUE
A131: =IF(G131>0,"90-"&VLOOKUP('EstRev 6-11'!$A$267,'EstRev 6-11'!$A$5:$L$267,1,FALSE),"") ->  | B131: =IF(G131>0,VLOOKUP('EstRev 6-11'!$A$267,'EstRev 6-11'!$A$5:$L$267,2,FALSE),"") ->  | G131: =VLOOKUP('EstRev 6-11'!$A$267,'EstRev 6-11'!$A$5:$L$267,12,FALSE) -> 0 | H131: TRUE
A132: Estimated Expenditures | G132: 1
A133: =IF(G133>0,VLOOKUP('EstExp 12-20'!$A$43,'EstExp 12-20'!$A$5:$L$450,1,FALSE),"") ->  | B133: =IF(G133>0,VLOOKUP('EstExp 12-20'!$A$43,'EstExp 12-20'!$A$5:$L$450,2,FALSE),"") ->  | G133: =VLOOKUP('EstExp 12-20'!$A$43,'EstExp 12-20'!$A$43:$L$450,12,FALSE) -> 0 | H133: TRUE
A134: =IF(G134>0,VLOOKUP('EstExp 12-20'!$A$58,'EstExp 12-20'!$A$5:$L$450,1,FALSE),"") ->  | B134: =IF(G134>0,VLOOKUP('EstExp 12-20'!$A$58,'EstExp 12-20'!$A$5:$L$450,2,FALSE),"") ->  | G134: =VLOOKUP('EstExp 12-20'!$A$58,'EstExp 12-20'!$A$43:$L$450,12,FALSE) -> 0 | H134: TRUE
A135: =IF(G135>0,VLOOKUP('EstExp 12-20'!$A$75,'EstExp 12-20'!$A$5:$L$450,1,FALSE),"") ->  | B135: =IF(G135>0,VLOOKUP('EstExp 12-20'!$A$75,'EstExp 12-20'!$A$5:$L$450,2,FALSE),"") ->  | G135: =VLOOKUP('EstExp 12-20'!$A$75,'EstExp 12-20'!$A$43:$L$450,12,FALSE) -> 0 | H135: TRUE
A136: =IF(G136>0,VLOOKUP('EstExp 12-20'!$A$85,'EstExp 12-20'!$A$5:$L$450,1,FALSE),"") ->  | B136: =IF(G136>0,VLOOKUP('EstExp 12-20'!$A$85,'EstExp 12-20'!$A$5:$L$450,2,FALSE),"") ->  | G136: =VLOOKUP('EstExp 12-20'!$A$85,'EstExp 12-20'!$A$43:$L$450,12,FALSE) -> 0 | H136: TRUE
A137: =IF(G137>0,VLOOKUP('EstExp 12-20'!$A$93,'EstExp 12-20'!$A$5:$L$450,1,FALSE),"") ->  | B137: =IF(G137>0,VLOOKUP('EstExp 12-20'!$A$93,'EstExp 12-20'!$A$5:$L$450,2,FALSE),"") ->  | G137: =VLOOKUP('EstExp 12-20'!$A$93,'EstExp 12-20'!$A$43:$L$450,12,FALSE) -> 0 | H137: =ISBLANK(D137) -> TRUE
A138: =IF(G138>0,VLOOKUP('EstExp 12-20'!$A$101,'EstExp 12-20'!$A$5:$L$450,1,FALSE),"") ->  | B138: =IF(G138>0,VLOOKUP('EstExp 12-20'!$A$101,'EstExp 12-20'!$A$5:$L$450,2,FALSE),"") ->  | G138: =VLOOKUP('EstExp 12-20'!$A$101,'EstExp 12-20'!$A$43:$L$450,12,FALSE) -> 0 | H138: TRUE
A139: =IF(G139>0,VLOOKUP('EstExp 12-20'!$A$111,'EstExp 12-20'!$A$5:$L$450,1,FALSE),"") ->  | B139: =IF(G139>0,VLOOKUP('EstExp 12-20'!$A$111,'EstExp 12-20'!$A$5:$L$450,2,FALSE),"") ->  | C139: =IF(B139="","",LEFT(B139, LEN(B139)-21)) ->  | E139: =IF(G139>0,G139,"") ->  | G139: =VLOOKUP('EstExp 12-20'!$A$111,'EstExp 12-20'!$A$43:$L$450,12,FALSE) -> 0 | H139: TRUE
A140: =IF(G140>0,VLOOKUP('EstExp 12-20'!$A$124,'EstExp 12-20'!$A$5:$L$450,1,FALSE),"") ->  | B140: =IF(G140>0,VLOOKUP('EstExp 12-20'!$A$124,'EstExp 12-20'!$A$5:$L$450,2,FALSE),"") ->  | G140: =VLOOKUP('EstExp 12-20'!$A$124,'EstExp 12-20'!$A$43:$L$450,12,FALSE) -> 0 | H140: TRUE
A141: =IF(G141>0,VLOOKUP('EstExp 12-20'!$A$132,'EstExp 12-20'!$A$5:$L$450,1,FALSE),"") ->  | B141: =IF(G141>0,VLOOKUP('EstExp 12-20'!$A$132,'EstExp 12-20'!$A$5:$L$450,2,FALSE),"") ->  | G141: =VLOOKUP('EstExp 12-20'!$A$132,'EstExp 12-20'!$A$43:$L$450,12,FALSE) -> 0 | H141: TRUE
A142: =IF(G142>0,VLOOKUP('EstExp 12-20'!$A$140,'EstExp 12-20'!$A$5:$L$450,1,FALSE),"") ->  | B142: =IF(G142>0,VLOOKUP('EstExp 12-20'!$A$140,'EstExp 12-20'!$A$5:$L$450,2,FALSE),"") ->  | G142: =VLOOKUP('EstExp 12-20'!$A$140,'EstExp 12-20'!$A$43:$L$450,12,FALSE) -> 0 | H142: TRUE
A143: =IF(G143>0,VLOOKUP('EstExp 12-20'!$A$150,'EstExp 12-20'!$A$5:$L$450,1,FALSE),"") ->  | B143: =IF(G143>0,VLOOKUP('EstExp 12-20'!$A$150,'EstExp 12-20'!$A$5:$L$450,2,FALSE),"") ->  | G143: =VLOOKUP('EstExp 12-20'!$A$150,'EstExp 12-20'!$A$43:$L$450,12,FALSE) -> 0 | H143: TRUE
A144: =IF(G144>0,VLOOKUP('EstExp 12-20'!$A$163,'EstExp 12-20'!$A$5:$L$450,1,FALSE),"") ->  | B144: =IF(G144>0,VLOOKUP('EstExp 12-20'!$A$163,'EstExp 12-20'!$A$5:$L$450,2,FALSE),"") ->  | G144: =VLOOKUP('EstExp 12-20'!$A$163,'EstExp 12-20'!$A$43:$L$450,12,FALSE) -> 0 | H144: TRUE
A145: =IF(G145>0,VLOOKUP('EstExp 12-20'!$A$171,'EstExp 12-20'!$A$5:$L$450,1,FALSE),"") ->  | B145: =IF(G145>0,VLOOKUP('EstExp 12-20'!$A$171,'EstExp 12-20'!$A$5:$L$450,2,FALSE),"") ->  | G145: =VLOOKUP('EstExp 12-20'!$A$171,'EstExp 12-20'!$A$43:$L$450,12,FALSE) -> 0 | H145: TRUE
A146: =IF(G146>0,VLOOKUP('EstExp 12-20'!$A$174,'EstExp 12-20'!$A$5:$L$450,1,FALSE),"") -> 30-5300 | B146: =IF(G146>0,VLOOKUP('EstExp 12-20'!$A$174,'EstExp 12-20'!$A$5:$L$450,2,FALSE),"") -> Debt Service - Payments of Principal on Long-Term Debt 15 (Lease/Purchase Principal Retired) (Describe & Itemize) | C146: =IF(B146="","",LEFT(B146, LEN(B146)-59)) -> Debt Service - Payments of Principal on Long-Term Debt | D146: bond paymen | E146: 263000 | G146: =VLOOKUP('EstExp 12-20'!$A$174,'EstExp 12-20'!$A$43:$L$450,12,FALSE) -> 263000 | H146: =ISBLANK(D146) -> FALSE
A147: =IF(G147>0,VLOOKUP('EstExp 12-20'!$A$175,'EstExp 12-20'!$A$5:$L$450,1,FALSE),"") ->  | B147: =IF(G147>0,VLOOKUP('EstExp 12-20'!$A$175,'EstExp 12-20'!$A$5:$L$450,2,FALSE),"") ->  | G147: =VLOOKUP('EstExp 12-20'!$A$175,'EstExp 12-20'!$A$43:$L$450,12,FALSE) -> 0 | H147: TRUE
A148: =IF(G148>0,VLOOKUP('EstExp 12-20'!$A$184,'EstExp 12-20'!$A$5:$L$450,1,FALSE),"") ->  | B148: =IF(G148>0,VLOOKUP('EstExp 12-20'!$A$184,'EstExp 12-20'!$A$5:$L$450,2,FALSE),"") ->  | G148: =VLOOKUP('EstExp 12-20'!$A$184,'EstExp 12-20'!$A$43:$L$450,12,FALSE) -> 0 | H148: TRUE
A149: =IF(G149>0,VLOOKUP('EstExp 12-20'!$A$187,'EstExp 12-20'!$A$5:$L$450,1,FALSE),"") ->  | B149: =IF(G149>0,VLOOKUP('EstExp 12-20'!$A$187,'EstExp 12-20'!$A$5:$L$450,2,FALSE),"") ->  | G149: =VLOOKUP('EstExp 12-20'!$A$187,'EstExp 12-20'!$A$43:$L$450,12,FALSE) -> 0 | H149: TRUE
A150: =IF(G150>0,VLOOKUP('EstExp 12-20'!$A$197,'EstExp 12-20'!$A$5:$L$450,1,FALSE),"") ->  | B150: =IF(G150>0,VLOOKUP('EstExp 12-20'!$A$197,'EstExp 12-20'!$A$5:$L$450,2,FALSE),"") ->  | G150: =VLOOKUP('EstExp 12-20'!$A$197,'EstExp 12-20'!$A$43:$L$450,12,FALSE) -> 0 | H150: TRUE
A151: =IF(G151>0,VLOOKUP('EstExp 12-20'!$A$199,'EstExp 12-20'!$A$5:$L$450,1,FALSE),"") ->  | B151: =IF(G151>0,VLOOKUP('EstExp 12-20'!$A$199,'EstExp 12-20'!$A$5:$L$450,2,FALSE),"") ->  | G151: =VLOOKUP('EstExp 12-20'!$A$199,'EstExp 12-20'!$A$43:$L$450,12,FALSE) -> 0 | H151: TRUE
A152: =IF(G152>0,VLOOKUP('EstExp 12-20'!$A$207,'EstExp 12-20'!$A$5:$L$450,1,FALSE),"") ->  | B152: =IF(G152>0,VLOOKUP('EstExp 12-20'!$A$207,'EstExp 12-20'!$A$5:$L$450,2,FALSE),"") ->  | G152: =VLOOKUP('EstExp 12-20'!$A$207,'EstExp 12-20'!$A$43:$L$450,12,FALSE) -> 0 | H152: TRUE
A153: =IF(G153>0,VLOOKUP('EstExp 12-20'!$A$210,'EstExp 12-20'!$A$5:$L$450,1,FALSE),"") ->  | B153: =IF(G153>0,VLOOKUP('EstExp 12-20'!$A$210,'EstExp 12-20'!$A$5:$L$450,2,FALSE),"") ->  | C153: =IF(B153="","",LEFT(B153, LEN(B153)-59)) ->  | G153: =VLOOKUP('EstExp 12-20'!$A$210,'EstExp 12-20'!$A$43:$L$450,12,FALSE) -> 0 | H153: =ISBLANK(D153) -> TRUE
A154: =IF(G154>0,VLOOKUP('EstExp 12-20'!$A$211,'EstExp 12-20'!$A$5:$L$450,1,FALSE),"") ->  | B154: =IF(G154>0,VLOOKUP('EstExp 12-20'!$A$211,'EstExp 12-20'!$A$5:$L$450,2,FALSE),"") ->  | C154: =IF(B154="","",LEFT(B154, LEN(B154)-21)) ->  | G154: =VLOOKUP('EstExp 12-20'!$A$211,'EstExp 12-20'!$A$43:$L$450,12,FALSE) -> 0 | H154: TRUE
A155: =IF(G155>0,VLOOKUP('EstExp 12-20'!$A$241,'EstExp 12-20'!$A$5:$L$450,1,FALSE),"") ->  | B155: =IF(G155>0,VLOOKUP('EstExp 12-20'!$A$241,'EstExp 12-20'!$A$5:$L$450,2,FALSE),"") ->  | G155: =VLOOKUP('EstExp 12-20'!$A$241,'EstExp 12-20'!$A$43:$L$450,12,FALSE) -> 0 | H155: TRUE
A156: =IF(G156>0,VLOOKUP('EstExp 12-20'!$A$257,'EstExp 12-20'!$A$5:$L$450,1,FALSE),"") ->  | B156: =IF(G156>0,VLOOKUP('EstExp 12-20'!$A$257,'EstExp 12-20'!$A$5:$L$450,2,FALSE),"") ->  | G156: =VLOOKUP('EstExp 12-20'!$A$257,'EstExp 12-20'!$A$43:$L$450,12,FALSE) -> 0 | H156: TRUE
A157: =IF(G157>0,VLOOKUP('EstExp 12-20'!$A$275,'EstExp 12-20'!$A$5:$L$450,1,FALSE),"") ->  | B157: =IF(G157>0,VLOOKUP('EstExp 12-20'!$A$275,'EstExp 12-20'!$A$5:$L$450,2,FALSE),"") ->  | G157: =VLOOKUP('EstExp 12-20'!$A$275,'EstExp 12-20'!$A$43:$L$450,12,FALSE) -> 0 | H157: TRUE
A158: =IF(G158>0,VLOOKUP('EstExp 12-20'!$A$289,'EstExp 12-20'!$A$5:$L$450,1,FALSE),"") ->  | B158: =IF(G158>0,VLOOKUP('EstExp 12-20'!$A$289,'EstExp 12-20'!$A$5:$L$450,2,FALSE),"") ->  | G158: =VLOOKUP('EstExp 12-20'!$A$289,'EstExp 12-20'!$A$43:$L$450,12,FALSE) -> 0 | H158: TRUE
A159: =IF(G159>0,VLOOKUP('EstExp 12-20'!$A$299,'EstExp 12-20'!$A$5:$L$450,1,FALSE),"") ->  | B159: =IF(G159>0,VLOOKUP('EstExp 12-20'!$A$299,'EstExp 12-20'!$A$5:$L$450,2,FALSE),"") ->  | G159: =VLOOKUP('EstExp 12-20'!$A$299,'EstExp 12-20'!$A$43:$L$450,12,FALSE) -> 0 | H159: TRUE
A160: =IF(G160>0,VLOOKUP('EstExp 12-20'!$A$306,'EstExp 12-20'!$A$5:$L$450,1,FALSE),"") ->  | B160: =IF(G160>0,VLOOKUP('EstExp 12-20'!$A$306,'EstExp 12-20'!$A$5:$L$450,2,FALSE),"") ->  | C160: =IF(B160="","",LEFT(B160, LEN(B160)-21)) ->  | G160: =VLOOKUP('EstExp 12-20'!$A$306,'EstExp 12-20'!$A$43:$L$450,12,FALSE) -> 0 | H160: TRUE
A161: =IF(G161>0,VLOOKUP('EstExp 12-20'!$A$352,'EstExp 12-20'!$A$5:$L$450,1,FALSE),"") ->  | B161: =IF(G161>0,VLOOKUP('EstExp 12-20'!$A$352,'EstExp 12-20'!$A$5:$L$450,2,FALSE),"") ->  | C161: =IF(B161="","",LEFT(B161, LEN(B161)-21)) ->  | E161: =IF(G161>0,G161,"") ->  | G161: =VLOOKUP('EstExp 12-20'!$A$352,'EstExp 12-20'!$A$43:$L$450,12,FALSE) -> 0 | H161: TRUE
A162: =IF(G162>0,VLOOKUP('EstExp 12-20'!$A$368,'EstExp 12-20'!$A$5:$L$450,1,FALSE),"") ->  | B162: =IF(G162>0,VLOOKUP('EstExp 12-20'!$A$368,'EstExp 12-20'!$A$5:$L$450,2,FALSE),"") ->  | G162: =VLOOKUP('EstExp 12-20'!$A$368,'EstExp 12-20'!$A$43:$L$450,12,FALSE) -> 0 | H162: TRUE
A163: =IF(G163>0,VLOOKUP('EstExp 12-20'!$A$386,'EstExp 12-20'!$A$5:$L$450,1,FALSE),"") ->  | B163: =IF(G163>0,VLOOKUP('EstExp 12-20'!$A$386,'EstExp 12-20'!$A$5:$L$450,2,FALSE),"") ->  | G163: =VLOOKUP('EstExp 12-20'!$A$386,'EstExp 12-20'!$A$43:$L$450,12,FALSE) -> 0 | H163: TRUE
A164: =IF(G164>0,VLOOKUP('EstExp 12-20'!$A$396,'EstExp 12-20'!$A$5:$L$450,1,FALSE),"") ->  | B164: =IF(G164>0,VLOOKUP('EstExp 12-20'!$A$396,'EstExp 12-20'!$A$5:$L$450,2,FALSE),"") ->  | G164: =VLOOKUP('EstExp 12-20'!$A$396,'EstExp 12-20'!$A$43:$L$450,12,FALSE) -> 0 | H164: TRUE
A165: =IF(G165>0,VLOOKUP('EstExp 12-20'!$A$404,'EstExp 12-20'!$A$5:$L$450,1,FALSE),"") ->  | B165: =IF(G165>0,VLOOKUP('EstExp 12-20'!$A$404,'EstExp 12-20'!$A$5:$L$450,2,FALSE),"") ->  | G165: =VLOOKUP('EstExp 12-20'!$A$404,'EstExp 12-20'!$A$43:$L$450,12,FALSE) -> 0 | H165: TRUE
A166: =IF(G166>0,VLOOKUP('EstExp 12-20'!$A$412,'EstExp 12-20'!$A$5:$L$450,1,FALSE),"") ->  | B166: =IF(G166>0,VLOOKUP('EstExp 12-20'!$A$412,'EstExp 12-20'!$A$5:$L$450,2,FALSE),"") ->  | G166: =VLOOKUP('EstExp 12-20'!$A$412,'EstExp 12-20'!$A$43:$L$450,12,FALSE) -> 0 | H166: TRUE
A167: =IF(G167>0,VLOOKUP('EstExp 12-20'!$A$422,'EstExp 12-20'!$A$5:$L$450,1,FALSE),"") ->  | B167: =IF(G167>0,VLOOKUP('EstExp 12-20'!$A$422,'EstExp 12-20'!$A$5:$L$450,2,FALSE),"") ->  | G167: =VLOOKUP('EstExp 12-20'!$A$422,'EstExp 12-20'!$A$43:$L$450,12,FALSE) -> 0 | H167: TRUE
A168: =IF(G168>0,VLOOKUP('EstExp 12-20'!$A$424,'EstExp 12-20'!$A$5:$L$450,1,FALSE),"") ->  | B168: =IF(G168>0,VLOOKUP('EstExp 12-20'!$A$424,'EstExp 12-20'!$A$5:$L$450,2,FALSE),"") ->  | C168: =IF(B168="","",LEFT(B168, LEN(B168)-59)) ->  | E168: =IF(G168>0,G168,"") ->  | G168: =VLOOKUP('EstExp 12-20'!$A$424,'EstExp 12-20'!$A$43:$L$450,12,FALSE) -> 0 | H168: =ISBLANK(D168) -> TRUE
A169: =IF(G169>0,VLOOKUP('EstExp 12-20'!$A$425,'EstExp 12-20'!$A$5:$L$450,1,FALSE),"") ->  | B169: =IF(G169>0,VLOOKUP('EstExp 12-20'!$A$425,'EstExp 12-20'!$A$5:$L$450,2,FALSE),"") ->  | C169: =IF(B169="","",LEFT(B169, LEN(B169)-21)) ->  | G169: =VLOOKUP('EstExp 12-20'!$A$425,'EstExp 12-20'!$A$43:$L$450,12,FALSE) -> 0 | H169: TRUE
A170: =IF(G170>0,VLOOKUP('EstExp 12-20'!$A$437,'EstExp 12-20'!$A$5:$L$450,1,FALSE),"") ->  | B170: =IF(G170>0,VLOOKUP('EstExp 12-20'!$A$437,'EstExp 12-20'!$A$5:$L$450,2,FALSE),"") ->  | G170: =VLOOKUP('EstExp 12-20'!$A$437,'EstExp 12-20'!$A$43:$L$450,12,FALSE) -> 0 | H170: TRUE
A171: =IF(G171>0,VLOOKUP('EstExp 12-20'!$A$442,'EstExp 12-20'!$A$5:$L$450,1,FALSE),"") ->  | B171: =IF(G171>0,VLOOKUP('EstExp 12-20'!$A$442,'EstExp 12-20'!$A$5:$L$450,2,FALSE),"") ->  | G171: =VLOOKUP('EstExp 12-20'!$A$442,'EstExp 12-20'!$A$43:$L$450,12,FALSE) -> 0 | H171: TRUE
A172: =IF(G172>0,VLOOKUP('EstExp 12-20'!$A$447,'EstExp 12-20'!$A$5:$L$450,1,FALSE),"") ->  | B172: =IF(G172>0,VLOOKUP('EstExp 12-20'!$A$447,'EstExp 12-20'!$A$5:$L$450,2,FALSE),"") ->  | G172: =VLOOKUP('EstExp 12-20'!$A$447,'EstExp 12-20'!$A$43:$L$450,12,FALSE) -> 0 | H172: TRUE
A173: =IF(G173>0,VLOOKUP('EstExp 12-20'!$A$450,'EstExp 12-20'!$A$5:$L$450,1,FALSE),"") ->  | B173: =IF(G173>0,VLOOKUP('EstExp 12-20'!$A$450,'EstExp 12-20'!$A$5:$L$450,2,FALSE),"") ->  | C173: =IF(B173="","",LEFT(B173, LEN(B173)-59)) ->  | E173: =IF(G173>0,G173,"") ->  | G173: =VLOOKUP('EstExp 12-20'!$A$450,'EstExp 12-20'!$A$43:$L$450,12,FALSE) -> 0 | H173: =ISBLANK(D173) -> TRUE
G174: 1
G175: =COUNTIF(G8:G131,">0")+COUNTIF(G133:G173,">0") -> 10 | H175: =COUNTIF(H8:H173,"FALSE") -> 4

Sheet DeficitBudgetSum Calc 22
B1: DEFICIT BUDGET SUMMARY INFORMATION - Operating Funds Only (School Districts Only)
B2: Description | C2: EDUCATIONAL FUND (10) | D2: OPERATIONS & MAINTENANCE FUND (20) | E2: TRANSPORTATION FUND (40) | F2: WORKING CASH FUND (70) | G2: TOTAL
B3: Direct Revenues | C3: ='BudgetSum 2-4'!C9 -> 2582006 | D3: ='BudgetSum 2-4'!D9 -> 552077 | E3: ='BudgetSum 2-4'!F9 -> 268769 | F3: ='BudgetSum 2-4'!I9 -> 15039 | G3: =SUM(C3:F3) -> 3417891
B4: Direct Expenditures | C4: ='BudgetSum 2-4'!C19 -> 2503565 | D4: ='BudgetSum 2-4'!D19 -> 922000 | E4: ='BudgetSum 2-4'!F19 -> 268500 | G4: =SUM(C4:F4) -> 3694065
B5: Difference | C5: =(C3-C4) -> 78441 | D5: =(D3-D4) -> -369923 | E5: =(E3-E4) -> 269 | F5: =(F3-F4) -> 15039 | G5: =SUM(G3-G4) -> -276174
B6: ="Estimated Fund Balance - June 30, "&'B23'!E2 -> Estimated Fund Balance - June 30, 2023 | C6: ='BudgetSum 2-4'!C81 -> 1507118 | D6: ='BudgetSum 2-4'!D81 -> 146768 | E6: ='BudgetSum 2-4'!F81 -> 74621 | F6: ='BudgetSum 2-4'!I81 -> 144968 | G6: =SUM(C6:F6) -> 1873475
D7: =IF(Cover!B3="X", "Deficit Reduction Plan is not required", IF(AND(G5<0,G6>=0,ABS(G5*3)>ABS(G6)),B17,IF(AND(G5<0,G6>0,ABS(G5*3)<=ABS(G6)),B18,IF(AND(G5<0,G6<0),B17,IF(G6=0,B20,B19))))) -> Unbalanced budget; however, a Deficit Reduction Plan is not required at this time.
B8: ="A deficit reduction plan is required if the local board of education adopts (or amends) the "&'B23'!E2-1&-'B23'!E2 -> A deficit reduction plan is required if the local board of education adopts (or amends) the 2022-2023 | E8: school district budget in which the “operating funds”
B9: listed above result in direct revenues (line 9, BudgetSum 2-4) being less than direct expenditures (line 19, BudgetSum 2-4) by an amount equal to or greater than one-third (1/3) of the ending fund balance (line 81, BudgetSum 2-4).
B11: Note: The balance is determined using only the four funds listed above. That is, if the estimated ending fund balance is less than three times the deficit spending, the district must adopt and file with ISBE a deficit reduction plan to balance the shortfall within three years.
B13: ="Per School Code (105 ILCS 5/17-1) - If the Deficit AFR Summary Information tab from the "&'B23'!E2-2&"-"&'B23'!E2-1 -> Per School Code (105 ILCS 5/17-1) - If the Deficit AFR Summary Information tab from the 2021-2022 | E13: Annual Financial Report (AFR) reflects a deficit as
B14: defined above, then the school district shall adopt and submit a deficit reduction plan (found here on page 23-27) to ISBE within 30 days after acceptance of the AFR.
B15: The deficit reduction plan, if required, is developed using ISBE guidelines and format.
B17: Unbalanced budget. A Deficit Reduction Plan must be adopted and submitted concurrently with this budget. This Deficit Reduction Plan must result in a balanced budget by the last year of the attached plan, as adopted by the local board of education. (Tab: Deficit BudgetSum Calc) | G17: Deficit Reduction Plan is required
B18: Unbalanced budget; however, a Deficit Reduction Plan is not required at this time. | G18: Deficit Reduction Plan is not required
B19: Balanced budget; no Deficit Reduction Plan is required. | G19: Deficit Reduction Plan is not required
B20: To determine if the budget is balanced, complete all pages of the budget first. | G20: ERROR - INCOMPLETE BUDGET. PLEASE COMPLETE BUDGET FORM

Sheet DefReductPlan 23-27
A1: *School Districts Only | C1: DEFICIT REDUCTION PLAN | W1: SUMMARY
C2: ESTIMATED BUDGET | H2: ESTIMATED BUDGET | M2: ESTIMATED BUDGET | R2: ESTIMATED BUDGET | W2: BUDGET ADDENDUM - DEFICIT REDUCTION PLAN
A3: =Cover!H14 -> 1086002026 | C3: ="FY"&'B23'!E2-1&-'B23'!E2 -> FY2022-2023 | H3: ="FY"&'B23'!E2&-'B23'!E2-1 -> FY2023-2024 | M3: ="FY"&'B23'!E2+1&-'B23'!E2-2 -> FY2024-2025 | R3: ="FY"&'B23'!E2+2&-'B23'!E2-3 -> FY2025-2026 | W3: ESTIMATED BUDGET
A4: District Number | W4: Date of Adoption:
A5: =Cover!H13 -> Scott-Morgan CUSD 2 | Y5: (Enter as MM/DD/YY)
A6: District Name | C6: Educational Fund | D6: Operations & Maintenance Fund | E6: Transportation Fund | F6: Working Cash Fund | G6: Total | H6: Educational Fund | I6: Operations & Maintenance Fund | J6: Transportation Fund | K6: Working Cash Fund | L6: Total | M6: Educational Fund | N6: Operations & Maintenance Fund | O6: Transportation Fund | P6: Working Cash Fund | Q6: Total | R6: Educational Fund | S6: Operations & Maintenance Fund | T6: Transportation Fund | U6: Working Cash Fund | V6: Total | W6: ="FY"&'B23'!E2-1&-'B23'!E2 -> FY2022-2023 | X6: ="FY"&'B23'!E2&-'B23'!E2-1 -> FY2023-2024 | Y6: ="FY"&'B23'!E2+1&-'B23'!E2-2 -> FY2024-2025 | Z6: ="FY"&'B23'!E2+2&-'B23'!E2-3 -> FY2025-2026
A7: ESTIMATED BEGINNING FUND BALANCE (must equal prior Ending Fund Balance) | C7: ='BudgetSum 2-4'!C3 -> 1428677 | D7: ='BudgetSum 2-4'!D3 -> 516691 | E7: ='BudgetSum 2-4'!F3 -> 74352 | F7: ='BudgetSum 2-4'!I3 -> 129929 | G7: =SUM(C7:F7) -> 2149649 | H7: =C27 -> 1507118 | I7: =D27 -> 146768 | J7: =E27 -> 74621 | K7: =F27 -> 144968 | L7: =SUM(H7:K7) -> 1873475 | M7: =H27 -> 1507118 | N7: =I27 -> 146768 | O7: =J27 -> 74621 | P7: =K27 -> 144968 | Q7: =SUM(M7:P7) -> 1873475 | R7: =M27 -> 1507118 | S7: =N27 -> 146768 | T7: =O27 -> 74621 | U7: =P27 -> 144968 | V7: =SUM(R7:U7) -> 1873475 | W7: =G7 -> 2149649 | X7: =L7 -> 1873475 | Y7: =Q7 -> 1873475 | Z7: =V7 -> 1873475
A8: RECEIPTS/REVENUES | B8: Acct #
A9: LOCAL SOURCES | B9: 1000 | C9: ='BudgetSum 2-4'!C5 -> 1061251 | D9: ='BudgetSum 2-4'!D5 -> 226077 | E9: ='BudgetSum 2-4'!F5 -> 139769 | F9: ='BudgetSum 2-4'!I5 -> 15039 | G9: =SUM(C9:F9) -> 1442136 | L9: =SUM(H9:K9) -> 0 | Q9: =SUM(M9:P9) -> 0 | V9: =SUM(R9:U9) -> 0 | W9: =G9 -> 1442136 | X9: =L9 -> 0 | Y9: =Q9 -> 0 | Z9: =V9 -> 0
A10: FLOW-THROUGH RECEIPTS/REVENUES FROM ONE DISTRICT TO ANOTHER DISTRICT | B10: 2000 | C10: ='BudgetSum 2-4'!C6 -> 0 | D10: ='BudgetSum 2-4'!D6 -> 0 | E10: ='BudgetSum 2-4'!F6 -> 0 | G10: =SUM(C10:F10) -> 0 | L10: 0 | Q10: =SUM(M10:P10) -> 0 | V10: =SUM(R10:U10) -> 0 | W10: =G10 -> 0 | X10: =L10 -> 0 | Y10: =Q10 -> 0 | Z10: =V10 -> 0
A11: STATE SOURCES | B11: 3000 | C11: ='BudgetSum 2-4'!C7 -> 1095600 | D11: ='BudgetSum 2-4'!D7 -> 50000 | E11: ='BudgetSum 2-4'!F7 -> 129000 | F11: ='BudgetSum 2-4'!I7 -> 0 | G11: =SUM(C11:F11) -> 1274600 | L11: 0 | Q11: =SUM(M11:P11) -> 0 | V11: =SUM(R11:U11) -> 0 | W11: =G11 -> 1274600 | X11: =L11 -> 0 | Y11: =Q11 -> 0 | Z11: =V11 -> 0
A12: FEDERAL SOURCES | B12: 4000 | C12: ='BudgetSum 2-4'!C8 -> 425155 | D12: ='BudgetSum 2-4'!D8 -> 276000 | E12: ='BudgetSum 2-4'!F8 -> 0 | F12: ='BudgetSum 2-4'!I8 -> 0 | G12: =SUM(C12:F12) -> 701155 | L12: 0 | Q12: =SUM(M12:P12) -> 0 | V12: =SUM(R12:U12) -> 0 | W12: =G12 -> 701155 | X12: =L12 -> 0 | Y12: =Q12 -> 0 | Z12: =V12 -> 0
A13: Total Receipts/Revenues | C13: =SUM(C9:C12) -> 2582006 | D13: =SUM(D9:D12) -> 552077 | E13: =SUM(E9:E12) -> 268769 | F13: =SUM(F9:F12) -> 15039 | G13: =SUM(C13:F13) -> 3417891 | H13: =SUM(H9:H12) -> 0 | I13: =SUM(I9:I12) -> 0 | J13: =SUM(J9:J12) -> 0 | K13: =SUM(K9:K12) -> 0 | L13: 0 | M13: =SUM(M9:M12) -> 0 | N13: =SUM(N9:N12) -> 0 | O13: =SUM(O9:O12) -> 0 | P13: =SUM(P9:P12) -> 0 | Q13: =SUM(M13:P13) -> 0 | R13: =SUM(R9:R12) -> 0 | S13: =SUM(S9:S12) -> 0 | T13: =SUM(T9:T12) -> 0 | U13: =SUM(U9:U12) -> 0 | V13: =SUM(R13:U13) -> 0 | W13: =G13 -> 3417891 | X13: =L13 -> 0 | Y13: =Q13 -> 0 | Z13: =V13 -> 0
A14: DISBURSEMENTS/EXPENDITURES | B14: Funct #
A15: INSTRUCTION | B15: 1000 | C15: ='BudgetSum 2-4'!C13 -> 1592100 | G15: =SUM(C15:F15) -> 1592100 | L15: 0 | Q15: =SUM(M15:P15) -> 0 | V15: =SUM(R15:U15) -> 0 | W15: =G15 -> 1592100 | X15: =L15 -> 0 | Y15: =Q15 -> 0 | Z15: =V15 -> 0
A16: SUPPORT SERVICES | B16: 2000 | C16: ='BudgetSum 2-4'!C14 -> 791465 | D16: ='BudgetSum 2-4'!D14 -> 922000 | E16: ='BudgetSum 2-4'!F14 -> 268500 | G16: 1981965 | L16: 0 | Q16: 0 | V16: 0 | W16: 1981965 | X16: 0 | Y16: 0 | Z16: 0
A17: COMMUNITY SERVICES | B17: 3000 | C17: ='BudgetSum 2-4'!C15 -> 0 | D17: ='BudgetSum 2-4'!D15 -> 0 | E17: ='BudgetSum 2-4'!F15 -> 0 | G17: 0 | L17: 0 | Q17: 0 | V17: 0 | W17: 0 | X17: 0 | Y17: 0 | Z17: 0
A18: PAYMENTS TO OTHER DISTRICTS & GOVT. UNITS | B18: 4000 | C18: ='BudgetSum 2-4'!C16 -> 120000 | D18: ='BudgetSum 2-4'!D16 -> 0 | E18: ='BudgetSum 2-4'!F16 -> 0 | G18: 120000 | L18: 0 | Q18: 0 | V18: 0 | W18: 120000 | X18: 0 | Y18: 0 | Z18: 0
A19: DEBT SERVICES | B19: 5000 | C19: ='BudgetSum 2-4'!C17 -> 0 | D19: ='BudgetSum 2-4'!D17 -> 0 | E19: ='BudgetSum 2-4'!F17 -> 0 | G19: 0 | L19: 0 | Q19: 0 | V19: 0 | W19: 0 | X19: 0 | Y19: 0 | Z19: 0
A20: PROVISION FOR CONTINGENCIES | B20: 6000 | C20: ='BudgetSum 2-4'!C18 -> 0 | D20: ='BudgetSum 2-4'!D18 -> 0 | E20: ='BudgetSum 2-4'!F18 -> 0 | G20: 0 | L20: 0 | Q20: 0 | V20: 0 | W20: 0 | X20: 0 | Y20: 0 | Z20: 0
A21: Total Disbursements/Expenditures | C21: =SUM(C15:C20) -> 2503565 | D21: =SUM(D15:D20) -> 922000 | E21: =SUM(E15:E20) -> 268500 | G21: 3694065 | H21: =SUM(H15:H20) -> 0 | I21: =SUM(I15:I20) -> 0 | J21: =SUM(J15:J20) -> 0 | L21: 0 | M21: =SUM(M15:M20) -> 0 | N21: =SUM(N15:N20) -> 0 | O21: =SUM(O15:O20) -> 0 | Q21: 0 | R21: =SUM(R15:R20) -> 0 | S21: =SUM(S15:S20) -> 0 | T21: =SUM(T15:T20) -> 0 | V21: 0 | W21: 3694065 | X21: 0 | Y21: 0 | Z21: 0
A22: Excess of Receipts/Revenue Over/(Under) Disbursements/Expenditures | C22: =SUM(C13-C21) -> 78441 | D22: =SUM(D13-D21) -> -369923 | E22: =SUM(E13-E21) -> 269 | F22: =SUM(F13-F21) -> 15039 | G22: =G13-G21 -> -276174 | H22: =SUM(H13-H21) -> 0 | I22: =SUM(I13-I21) -> 0 | J22: =SUM(J13-J21) -> 0 | K22: =SUM(K13-K21) -> 0 | L22: =SUM(H22:K22) -> 0 | M22: =SUM(M13-M21) -> 0 | N22: =SUM(N13-N21) -> 0 | O22: =SUM(O13-O21) -> 0 | P22: =SUM(P13-P21) -> 0 | Q22: =SUM(M22:P22) -> 0 | R22: =SUM(R13-R21) -> 0 | S22: =SUM(S13-S21) -> 0 | T22: =SUM(T13-T21) -> 0 | U22: =SUM(U13-U21) -> 0 | V22: =SUM(R22:U22) -> 0 | W22: -276174 | X22: 0 | Y22: 0 | Z22: 0
A23: OTHER SOURCES/USES OF FUNDS
A24: OTHER SOURCES OF FUNDS (7000) | C24: ='BudgetSum 2-4'!C46 -> 0 | D24: ='BudgetSum 2-4'!D46 -> 0 | E24: ='BudgetSum 2-4'!F46 -> 0 | F24: ='BudgetSum 2-4'!I46 -> 0 | G24: =SUM(C24:F24) -> 0 | L24: =SUM(H24:K24) -> 0 | Q24: =SUM(M24:P24) -> 0 | V24: =SUM(R24:U24) -> 0 | W24: =G24 -> 0 | X24: =L24 -> 0 | Y24: =Q24 -> 0 | Z24: =V24 -> 0
A25: OTHER USES OF FUNDS (8000) | C25: ='BudgetSum 2-4'!C79 -> 0 | D25: ='BudgetSum 2-4'!D79 -> 0 | E25: ='BudgetSum 2-4'!F79 -> 0 | F25: ='BudgetSum 2-4'!I79 -> 0 | G25: =SUM(C25:F25) -> 0 | L25: =SUM(H25:K25) -> 0 | Q25: =SUM(M25:P25) -> 0 | V25: =SUM(R25:U25) -> 0 | W25: =G25 -> 0 | X25: =L25 -> 0 | Y25: =Q25 -> 0 | Z25: =V25 -> 0
A26: TOTAL OTHER SOURCES/USES OF FUNDS | C26: =SUM(C24-C25) -> 0 | D26: 0 | E26: 0 | F26: 0 | G26: 0 | H26: 0 | I26: =SUM(I24-I25) -> 0 | J26: 0 | K26: 0 | L26: =SUM(H26:K26) -> 0 | M26: 0 | N26: 0 | O26: 0 | P26: 0 | Q26: =SUM(M26:P26) -> 0 | R26: 0 | S26: 0 | T26: 0 | U26: 0 | V26: =SUM(R26:U26) -> 0 | W26: =G26 -> 0 | X26: =L26 -> 0 | Y26: =Q26 -> 0 | Z26: =V26 -> 0
A27: ESTIMATED ENDING FUND BALANCE | C27: =C7+C22+C26 -> 1507118 | D27: =D7+D22+D26 -> 146768 | E27: 74621 | F27: 144968 | G27: 1873475 | H27: 1507118 | I27: 146768 | J27: 74621 | K27: 144968 | L27: =SUM(H27:K27) -> 1873475 | M27: 1507118 | N27: 146768 | O27: 74621 | P27: 144968 | Q27: 1873475 | R27: 1507118 | S27: 146768 | T27: 74621 | U27: 144968 | V27: =V7+V22+V26 -> 1873475 | W27: =G27 -> 1873475 | X27: =L27 -> 1873475 | Y27: =Q27 -> 1873475 | Z27: =V27 -> 1873475

Sheet Bckgrnd-Assumpt 28-29
B1: Deficit Reduction Plan-Background/Assumptions (School Districts Only)
B2: ="Fiscal Year "&'B23'!E2-1&-'B23'!E2 -> Fiscal Year 2022-2023
B3: ="through Fiscal Year "&'B23'!E2+2&-'B23'!E2-3 -> through Fiscal Year 2025-2026
B5: =Cover!H13&" "&Cover!H14 -> Scott-Morgan CUSD 2 1086002026
B6: Please complete the following schedule and include a brief description to identify any areas of the budget that will be impacted from one year to the next. If the deficit reduction plan relies upon new local revenues, identify contingencies for further budget reductions which will be enacted in the event those new revenues are not available.
A9: 1 | B9: Background and Narrative of Budget Reductions:
A12: 2 | B12: Assumptions Used in the Deficit Reduction Plan:
B15: - EBF and Estimated New Tier Funding:
B18: - Equal Assessed Valuation and Tax Rates:
B21: - Employee Salaries and Benefits:
B24: - Short- and Long-Term Borrowing:
B27: - Educational Impact:
B30: - Other Assumptions:
B33: - Has the district considered shared services or outsourcing (Ex: Transportation, Insurance)? If yes, please explain:

Sheet AC 30
A1: ESTIMATED LIMITATION OF ADMINISTRATIVE COSTS (School Districts Only)
A2: (For Local Use Only)
A3: This is an estimated Limitation of Administrative Costs Worksheet only and will not be accepted for Official Submission of the Limitation of Administrative Costs Worksheet.
A5: ="The worksheet is intended for use during the budgeting process to estimate the district's percent increase of FY"&'B23'!E2 -> The worksheet is intended for use during the budgeting process to estimate the district's percent increase of FY2023 | H5: ="budgeted expenditures over actual FY"&'B23'!E2-1 -> budgeted expenditures over actual FY2022 | K5: expenditures. Budget
A6: information is copied to this page. Insert the prior year estimated actual expenditures to compute the estimated percentage increase (decrease).
A8: The official Limitation of Administrative Costs Worksheet is attached to the end of the Annual Financial Report (ISBE Form 50-35) and may be submitted in conjunction with that report.
A9: An official Limitation of Administrative Costs Worksheet can also be found on the ISBE website at: | G9: Limitation of Administrative Costs
A11: ESTIMATED LIMITATION OF ADMINISTRATIVE COSTS WORKSHEET | I11: School District Name: | J11: =Cover!H13 -> Scott-Morgan CUSD 2
A12: (Section 17-1.5 of the School Code) | I12: RCDT Number: | J12: =Cover!H14 -> 1086002026
E14: ="Estimated Actual Expenditures, Fiscal Year "&'B23'!E2-1 -> Estimated Actual Expenditures, Fiscal Year 2022 | I14: ="Budgeted Expenditures, Fiscal Year "&'B23'!E2 -> Budgeted Expenditures, Fiscal Year 2023
E15: (10) | F15: (20) | G15: (80) | I15: (10) | J15: (20) | K15: (80)
A16: Description | D16: Funct. No. | E16: Educational Fund | F16: Operations & Maintenance Fund | G16: Tort Fund | H16: Total | I16: Educational Fund | J16: Operations & Maintenance Fund | K16: Tort Fund | L16: Total
A17: 1 | B17: Executive Administration Services | D17: 2320 | E17: 169500 | G17: 31050 | H17: =SUM(E17:G17) -> 200550 | I17: ='EstExp 12-20'!L52 -> 180600 | K17: ='EstExp 12-20'!L361 -> 30150 | L17: =SUM(I17:K17) -> 210750
A18: 2 | B18: Special Area Administration Services | D18: 2330 | H18: 0 | I18: ='EstExp 12-20'!L53 -> 0 | K18: ='EstExp 12-20'!L362 -> 0 | L18: 0
A19: 3 | B19: Other Support Services - School Administration | D19: 2490 | H19: 0 | I19: ='EstExp 12-20'!L58 -> 0 | K19: ='EstExp 12-20'!L368 -> 0 | L19: 0
A20: 4 | B20: Direction of Business Support Services | D20: 2510 | H20: 0 | I20: ='EstExp 12-20'!L61 -> 0 | J20: ='EstExp 12-20'!L126 -> 0 | K20: ='EstExp 12-20'!L371 -> 0 | L20: 0
A21: 5 | B21: Internal Services | D21: 2570 | H21: 0 | I21: ='EstExp 12-20'!L66 -> 0 | K21: ='EstExp 12-20'!L377 -> 0 | L21: 0
A22: 6 | B22: Direction of Central Support Services | D22: 2610 | H22: 0 | I22: ='EstExp 12-20'!L69 -> 0 | K22: ='EstExp 12-20'!L380 -> 0 | L22: 0
A23: 7 | B23: Deduct - Early Retirement or other pension obligations required by state law and included above. | H23: 0 | L23: 0
A24: 8 | B24: Totals | E24: =SUM(E17:E22)-E23 -> 169500 | F24: 0 | G24: =SUM(G17:G22)-G23 -> 31050 | H24: 200550 | I24: 180600 | J24: 0 | K24: 30150 | L24: 210750
A25: 9 | B25: ="Estimated Percent Increase (Decrease) for FY"&'B23'!E2 -> Estimated Percent Increase (Decrease) for FY2023 | L25: =IF(AND(H24>0,L24>0),(((L24-H24)/H24)),"Enter Actual Data") -> 0.05086013463
B26: (Budgeted) over FY2022 (Actual)

Sheet VendContract 31
A1: REPORTING OF PUBLIC VENDOR CONTRACTS OF $1,000 OR MORE (School Districts Only)
A2: In accordance with the School Code, Section 10-20.21, all school districts are required to file a report listing ‘vendor contracts’ as an attachment to their budget. In this context, the term "vendor contracts" refers to "all contracts and agreements that pertain to goods and services that were intended to generate additional revenue and other remunerations for the school district in excess of $1,000, including without limitation vending machine contracts, sports and other attire, class rings, and photographic services. The report is to list information regarding such contracts for the fiscal year immediately preceding the fiscal year of the budget. All such contracts executed on or after July 1, 2007 must be approved by the school board.
A3: See: School Code, Section 10-20.21 - Contracts
A4: If more rows are required, select a cell above where you'd like additional rows. Then click "Add Rows" button to the right and enter number of desired rows. Rows will generate beneath the selected cell.
A5: Name of Vendor | B5: Product or Service Provided | C5: Net Revenue | D5: Non-Monetary Remuneration | E5: Purpose of Proceeds | F5: Distribution Method and Recipient of Non-Monetary Remunerations Distributed

Sheet Ref 32
B1: Reference Description
A3: 1 | B3: Each fund balance should correspond to the fund balance reflected on the books as of June 30th - Balance Sheet Accounts #720 and #730 (audit figures, if available).
A5: 2 | B5: Accounting and Financial Reporting for Certain Grants and Other Financial Assistance. The "On-Behalf" Payments should only be reflected on this page (Budget Summary, Lines 10 and 20).
A7: 3 | B7: Requires the secretary of the school board to notify the county clerk (within 30 days of the transfer approval) to abate an equal amount of taxes to be next extended. See Sec. 10-22.14 & 17-2.11.
A8: 3a | B8: Requires notification to the county clerk to abate an equal amount from taxes next extended. See section 10-22.14
A9: 4 | B9: Principal on Bonds Sold:
B10: (1) Funding Bonds are to be entered in the fund or funds in which the liability occurs.
B11: (2) Refunding Bonds can be entered in the Debt Services Fund only.
B12: (3) Building Bonds can be entered in the Capital Projects Fund only.
B13: (4) Fire Prevention and Safety Bonds can be entered in the Fire Prevention & Safety Fund only.
A15: 5 | B15: The proceeds from the sale of school sites, buildings, or other real estate shall be used first to pay the principal and interest on any outstanding bonds on the property being sold, and after all such bonds have been retired, the remaining proceeds from the sale next shall be used by the school board to meet any urgent district needs as determined under Sections 2-3.12 and 17-2.11 of the School Code. Once these issues have been addressed, any remaining proceeds may be used for any other authorized purpose and for deposit into any district fund.
A17: 6 | B17: The School Code, Section 10-22.44 prohibits the transfer of interest earned on the investment of "any funds for purposes of Illinois Municipal Retirement under the Pension Code." This prohibition does not include funds for Social Security and Medicare-only purposes. For additional requirements on interest earnings, see 23 Illinois Administrative Code, Part 100, Section 100.50.
A19: 7 | B19: Cash plus investments must be greater than or equal to zero.
A21: 8 | B21: For cash basis budgets, this total will equal the Budget Summary - Total Direct Receipts/Revenues (Line 9) plus Total Other Sources of Funds (Line 46).
A23: 9 | B23: For cash basis budgets, this total will equal the Budget Summary - Total Direct Disbursements/Expenditures (Line 19) plus Total Other Uses of Funds (Line 79).
A25: 10 | B25: Working Cash Fund loans may be made to any district fund for which taxes are levied (Section 20-5 of the School Code).
A27: 11 | B27: Include revenue accounts 1110 through 1115, 1117,1118 & 1120.
A29: 12 | B29: The School Code Section 17-2.2c. Tax for leasing educational facilities or computer technology or both, and for temporary relocation expense purposes.
A31: 13 | B31: Corporate personal property replacement tax revenue must be first applied to the Municipal Retirement/Social Security Fund to replace tax revenue lost due to the abolition of the corporate personal property tax (30 ILCS 115/12). This provision does not apply to taxes levied for Medicare-Only purposes.
A33: 14 | B33: Only tuition payments made to private facilities. See Functions 4200 or 4400 for estimated public facility disbursements/expenditures.
A35: 15 | B35: Payment towards the retirement of lease/purchase agreements or bonded/other indebtedness (principal only) otherwise reported within the fund - e.g.: alternate revenue bonds. (Describe & Itemize)
A37: 16 | B37: Only abolishment of Working Cash Fund must transfer its funds directly to the Educational Fund upon adoption of a resolution and
B38: at the close of the current school Year (see 105 ILCS 5/20-8 for further explanation)
B39: Only abatement of working cash fund can transfer its funds to any fund in most need of money
B40: (see 105 ILCS 5/20-10 for further explanation)

Sheet Balancing
A1: CHECK FOR ERRORS
A2: This worksheet checks various cells to assure that selected items are in balance.
A3: Out-of-balance conditions are marked here with an error message.
A4: Once all errors are corrected: Windows users, click "Save Budget for ISBE" button to the right. Mac users, click File > Save As. Once saved, submit to ISBE.
B5: Budget Item References | C5: Message
B6: Are all errors corrected? | C6: =IF(AND(OR(C8="Deficit Reduction Plan is not required", C9="Deficit Reduction Plan complete"), F55=37), "OK - You may now save and submit form","Please correct errors below") -> Please correct errors below
A7: 1 | B7: Deficit Reduction Plan (DefReductPlan 23-27 tab)
B8: Is Deficit Reduction Plan Required? (Joint Agreements do not complete Deficit Reduction Plan.) | C8: =IF(Cover!B3="X", "Deficit Reduction Plan is not required", IF(AND('DeficitBudgetSum Calc 22'!G5<0,'DeficitBudgetSum Calc 22'!G6>=0,ABS('DeficitBudgetSum Calc 22'!G5*3)>ABS('DeficitBudgetSum Calc 22'!G6)),'DeficitBudgetSum Calc 22'!G17,IF(AND('DeficitBudgetSum Calc 22'!G5<0,'DeficitBudgetSum Calc 22'!G6>0,ABS('DeficitBudgetSum Calc 22'!G5*3)<=ABS('DeficitBudgetSum Calc 22'!G6)),'DeficitBudgetSum Calc 22'!G18,IF(AND('DeficitBudgetSum Calc 22'!G5<0,'DeficitBudgetSum Calc 22'!G6<0),'DeficitBudgetSum Calc 22'!G17,IF('DeficitBudgetSum Calc 22'!G6=0,'DeficitBudgetSum Calc 22'!G20,'DeficitBudgetSum Calc 22'!G19))))) -> Deficit Reduction Plan is not required
B9: If required, is Deficit Reduction Plan completed? (DefReductPlan 23-27 tab) | C9: =IF(AND(C8='DeficitBudgetSum Calc 22'!G17,'DefReductPlan 23-27'!Z22>0),"Deficit Reduction Plan complete",IF(AND(C8='DeficitBudgetSum Calc 22'!G17,'DefReductPlan 23-27'!Z22=0),"ERROR - PLEASE COMPLETE Deficit Reduction Plan","")) -> 
A10: 2 | B10: Cover Page (Cover tab)
B11: District Name must be selected from drop-down. (Cell H13) (Do not type full district name manually.) | C11: =IF(OR(Cover!H13="",ISNA(VLOOKUP(Cover!$H$13,'District Dropdown'!$B$3:$C$996,2,FALSE))),"ERROR - SELECT DISTRICT FROM DROP-DOWN MENU","OK") -> OK | F11: =C11 -> OK
B12: Accounting Basis must be selected on Cover sheet. | C12: =IF(Cover!B6="Click here to choose accounting basis","ERROR - CHOOSE ACCOUNTING BASIS","OK") -> OK | F12: =C12 -> OK
B13: Dates (Day, Month, Year) must be input on Cover sheet. | C13: =IF(OR(ISBLANK(Cover!M31),ISBLANK(Cover!Q31),ISBLANK(Cover!P43),ISBLANK(Cover!T43)),"ERROR - INPUT DATE(S)","OK") -> OK | F13: OK
B14: Board Names must be typed on Cover sheet. | C14: =IF(COUNTA(Cover!E49:Q58)=0,"ERROR - TYPE BOARD NAMES","OK") -> OK | F14: OK
A15: 3 | B15: Budget Summary: Other Sources (BudgetSum 2-4 tab - Acct 7000) must equal Other Uses (BudgetSum 2-4 tab - Acct 8000).
B16: Estimated Beginning Fund Balance July, 1 2022 for all Funds (Cells C3 - K3) (Line must have a number or zero. Do not leave blank.) | C16: =IF(AND(ISNUMBER('BudgetSum 2-4'!C3),ISNUMBER('BudgetSum 2-4'!D3),ISNUMBER('BudgetSum 2-4'!E3),ISNUMBER('BudgetSum 2-4'!F3),ISNUMBER('BudgetSum 2-4'!G3),ISNUMBER('BudgetSum 2-4'!H3),ISNUMBER('BudgetSum 2-4'!I3),ISNUMBER('BudgetSum 2-4'!J3),ISNUMBER('BudgetSum 2-4'!K3)),"OK","ERROR - ENTER AMOUNTS. IF ZERO, ENTER NUMBER 0") -> OK | F16: =C16 -> OK
B17: Estimated Activity Fund Beginning Fund Balance July, 1 2022 (Cell C83) (Cell must have a number or zero. Do not leave blank.) | C17: =IF(ISNUMBER('BudgetSum 2-4'!C83),"OK","ERROR - ENTER AMOUNT. IF ZERO, ENTER NUMBER 0") -> OK | F17: =C17 -> OK
B18: Transfer Among Funds (Funds 10, 20, 40 - Acct 7130 - Cells C29, D29, F29), must equal (Funds 10, 20 & 40 - Acct 8130 - Cells C52, D52, F52). | C18: =IF(SUM('BudgetSum 2-4'!C29:D29,'BudgetSum 2-4'!F29)<>SUM('BudgetSum 2-4'!C52:D52,'BudgetSum 2-4'!F52),"ERROR - CHECK TRANSFER(S)","OK") -> OK | F18: OK
B19: Transfer of Interest (Funds 10 thru 90 - Acct 7140 - Cells C30:K30), must equal (Funds 10 thru 60, & 80 - Acct 8140 - Cells C53:H53, J53). | C19: =IF(SUM('BudgetSum 2-4'!C30:K30)<>SUM('BudgetSum 2-4'!C53:J53),"ERROR - CHECK TRANSFER(S)","OK") -> OK | F19: OK
B20: Transfer to Debt Service to Pay Principal on GASB 87 Leases (Fund 30 - Acct 7400 - Cell E39) must equal (Funds 10, 20 & 60 - Acct 8400 Cells C57:H60). | C20: =IF(('BudgetSum 2-4'!E39)<>SUM('BudgetSum 2-4'!C57:H60),"ERROR - CHECK TRANSFER(S)","OK") -> OK | F20: OK
B21: Transfer to Debt Service to Pay Interest on GASB 87 Leases (Fund 30 - Acct 7500 - Cell E40) must equal (Funds 10, 20 & 60 - Acct 8500 - Cells C61:H64). | C21: =IF(('BudgetSum 2-4'!E40)<>SUM('BudgetSum 2-4'!C61:H64),"ERROR - CHECK TRANSFER(S)","OK") -> OK | F21: OK
B22: Transfer to Debt Service Fund to Pay Principal on Revenue Bonds (Fund 30 - Acct 7600 - Cell E41) must equal (Funds 10 & 20 - Acct 8600 - Cells C65:D68). | C22: =IF(('BudgetSum 2-4'!E41)<>SUM('BudgetSum 2-4'!C65:D68),"ERROR - CHECK TRANSFER(S)","OK") -> OK | F22: OK
B23: Transfer to Debt Service to Pay Interest on Revenue Bonds (Fund 30 - Acct 7700 - Cell E42) must equal (Funds 10 & 20 - Acct 8700 - Cells C69:D72). | C23: =IF(('BudgetSum 2-4'!E42)<>SUM('BudgetSum 2-4'!C69:D72),"ERROR - CHECK TRANSFER(S)","OK") -> OK | F23: OK
B24: Transfer to Capital Projects Fund (Fund 60 - Acct 7800 - Cell H43) must equal (Fund 10 & 20, Acct 8800 - Cells C73:D76). | C24: =IF(('BudgetSum 2-4'!H43)<>SUM('BudgetSum 2-4'!C73:D76),"ERROR - CHECK TRANSFER(S)","OK") -> OK | F24: OK
A25: 4 | B25: Summary of Cash Transactions: Beginning Cash Balance on Hand July 1, 2022 (CashSum 5 tab, All Funds) cannot be negative. | F25: 0
B26: Educational (Fund 10 - Cell C3) | C26: =IF('CashSum 5'!$C$3<0,"CHECK ERROR - NEGATIVE BEGINNING BALANCE","OK") -> OK | F26: OK
B27: Operations & Maintenance (Fund 20 - Cell D3) | C27: =IF('CashSum 5'!$D$3<0,"CHECK ERROR - NEGATIVE BEGINNING BALANCE","OK") -> OK | F27: OK
B28: Debt Service (Fund 30 - Cell E3) | C28: =IF('CashSum 5'!$E$3<0,"CHECK ERROR - NEGATIVE BEGINNING BALANCE","OK") -> OK | F28: OK
B29: Transportation (Fund 40 - Cell F3) | C29: =IF('CashSum 5'!$F$3<0,"CHECK ERROR - NEGATIVE BEGINNING BALANCE","OK") -> OK | F29: OK
B30: Municipal Retirement/Social Security (Fund 50 - Cell G3) | C30: =IF('CashSum 5'!$G$3<0,"CHECK ERROR - NEGATIVE BEGINNING BALANCE","OK") -> OK | F30: OK
B31: Capital Projects (Fund 60 - Cell H3) | C31: =IF('CashSum 5'!$H$3<0,"CHECK ERROR - NEGATIVE BEGINNING BALANCE","OK") -> OK | F31: OK
B32: Working Cash (Fund 70 - Cell I3) | C32: =IF('CashSum 5'!$I$3<0,"CHECK ERROR - NEGATIVE BEGINNING BALANCE","OK") -> OK | F32: OK
B33: Tort (Fund 80 - Cell J3) | C33: =IF('CashSum 5'!$J$3<0,"CHECK ERROR - NEGATIVE BEGINNING BALANCE","OK") -> OK | F33: OK
B34: Fire Prevention & Safety (Fund 90 - Cell K3) | C34: =IF('CashSum 5'!$K$3<0,"CHECK ERROR - NEGATIVE BEGINNING BALANCE","OK") -> OK | F34: OK
B35: Activity Funds (Cell C23) | C35: =IF(ISNUMBER('CashSum 5'!C23),"OK","ERROR - ENTER AMOUNTS. IF ZERO, ENTER NUMBER 0") -> OK | F35: OK
A36: 5 | B36: Summary of Cash Transactions: Ending Cash Balance on Hand June 30, 2023 (CashSum 5 tab - All Funds) cannot be negative. | F36: 0
B37: Educational (Fund 10 - Cell C21) | C37: =IF('CashSum 5'!$C$21<0,"CHECK ERROR - NEGATIVE END BALANCE","OK") -> OK | F37: OK
B38: Operations & Maintenance (Fund 20 - Cell D21) | C38: =IF('CashSum 5'!$D$21<0,"CHECK ERROR - NEGATIVE END BALANCE","OK") -> OK | F38: OK
B39: Debt Service (Fund 30 - Cell E21) | C39: =IF('CashSum 5'!$E$21<0,"CHECK ERROR - NEGATIVE END BALANCE","OK") -> OK | F39: OK
B40: Transportation (Fund 40 - Cell F21) | C40: =IF('CashSum 5'!$F$21<0,"CHECK ERROR - NEGATIVE END BALANCE","OK") -> OK | F40: OK
B41: Municipal Retirement/Social Security (Fund 50 - Cell G21) | C41: =IF('CashSum 5'!$G$21<0,"CHECK ERROR - NEGATIVE END BALANCE","OK") -> OK | F41: OK
B42: Capital Projects (Fund 60 - Cell H21) | C42: =IF('CashSum 5'!$H$21<0,"CHECK ERROR - NEGATIVE END BALANCE","OK") -> OK | F42: OK
B43: Working Cash (Fund 70 - Cell I21) | C43: =IF('CashSum 5'!$I$21<0,"CHECK ERROR - NEGATIVE END BALANCE","OK") -> OK | F43: OK
B44: Tort (Fund 80 - Cell J21) | C44: =IF('CashSum 5'!$J$21<0,"CHECK ERROR - NEGATIVE END BALANCE","OK") -> OK | F44: OK
B45: Fire Prevention & Safety (Fund 90 - Cell K21) | C45: =IF('CashSum 5'!$K$21<0,"ERROR - NEGATIVE END BALANCE. PLEASE CORRECT.","OK") -> OK | F45: OK
A46: 6 | B46: Summary of Cash Transactions: Other Receipts (CashSum 5 tab) must equal Other Disbursements (CashSum 5 tab). | F46: 0
B47: Interfund Loans Payable (Funds 10:60, 80, 90 - Acct 411 - Cells C6:H6, J6:K6) must equal Interfund Loans Receivable (Funds 10:20, 40, 70 - Acct 141 - Cells C15:D15, F15, I15). | C47: =IF(SUM('CashSum 5'!C6:K6)<>SUM('CashSum 5'!C15:K15),"ERROR - CHECK INTERFUND LOANS","OK") -> OK | F47: OK
B48: Interfund Loans Receivable (Funds 10, 20, 40, 70 - Acct 141 - Cells C7:D7, F7, I7) must equal Interfund Loans Payable (Funds 10:60, 80, 90 - Acct 411 - Cells C16:H16, J16, K16). | C48: =IF(SUM('CashSum 5'!C7:K7)<>SUM('CashSum 5'!C16:K16),"ERROR - CHECK INTERFUND LOANS","OK") -> OK | F48: OK
A49: 7 | B49: Estimated Revenue (EstRev 6-11 tab) | F49: 0
B50: Amounts must be input for revenue. | C50: =IF(OR('BudgetSum 2-4'!C9>0,'BudgetSum 2-4'!D9>0,'BudgetSum 2-4'!E9>0,'BudgetSum 2-4'!F9>0,'BudgetSum 2-4'!G9>0,'BudgetSum 2-4'!H9>0,'BudgetSum 2-4'!I9>0,'BudgetSum 2-4'!J9>0,'BudgetSum 2-4'!K9>0),"OK","ERROR - ESTREV TAB IS BLANK. PLEASE INPUT AMOUNTS.") -> OK | F50: OK
A51: 8 | B51: Estimated Expenditures (EstExp 12-20 tab) | F51: 0
B52: Amounts must be input for expenditures. | C52: =IF(OR('BudgetSum 2-4'!C19>0,'BudgetSum 2-4'!D19>0,'BudgetSum 2-4'!E19>0,'BudgetSum 2-4'!F19>0,'BudgetSum 2-4'!G19>0,'BudgetSum 2-4'!H19>0,'BudgetSum 2-4'!I19>0,'BudgetSum 2-4'!J19>0,'BudgetSum 2-4'!K19>0),"OK","ERROR - ESTEXP TAB IS BLANK. PLEASE INPUT AMOUNTS.") -> OK | F52: OK
A53: 9 | B53: Itemization Notes: Revenues/Expenditures reported that require note on Itemize 21 tab. | F53: 0
B54: Include brief note(s) describing revenue source/expenditure use. | C54: =IF('Itemize 21'!G175='Itemize 21'!H175,"OK","ERROR - INPUT NOTE(S) ON ITEMIZATION 21 TAB") -> ERROR - INPUT NOTE(S) ON ITEMIZATION 21 TAB | F54: ERROR - INPUT NOTE(S) ON ITEMIZATION 21 TAB
F55: =COUNTIFS(F10:F54,"OK") -> 36
B56: End of Balancing

Sheet B23 (hidden)
A1: School District Name | B1: =Cover!H13 -> Scott-Morgan CUSD 2 | E1: Fiscal Year
A2: School District ID | B2: =Cover!H14 -> 1086002026 | E2: 2023
A3: Accounting Basis | B3: =Cover!B6 -> Cash | E3: JA Due to ISBE | G3: SD Due to ISBE | J3: =IF(Cover!B2="x",1,0) -> 1
A4: Is this a School District? (YES) | B4: =IF(J3=0,0,"x") -> x | E4: 2022-09-30 | F4: =E2-1 -> 2022 | G4: 2022-10-31 | H4: =E2-1 -> 2022 | J4: =IF(Cover!B3="x",1,0) -> 0
A5: Is this a Joint Agreement? (YES) | B5: =IF(J4=0,0,"x") -> 0
A6: 1 | B6: ='BudgetSum 2-4'!C18 -> 0 | C6: =A6-B6 -> 1 | E6: Consultant: To update form for new fiscal year: Input the new password you'll use for the budget form in the VBA code on Itemize 21 and Balancing tab. Input appropriate year in cell E2 above. All years will update automatically EXCEPT the following cells, which you'll need to manually change:
A7: 2 | B7: ='BudgetSum 2-4'!D18 -> 0 | C7: =A7-B7 -> 2 | E7: BudgetSum Tab
A8: 3 | B8: ='BudgetSum 2-4'!E18 -> 0 | C8: 3 | E8: A3
A9: 4 | B9: ='BudgetSum 2-4'!F18 -> 0 | C9: 4 | E9: CashSum Tab
A10: 5 | B10: ='BudgetSum 2-4'!G18 -> 0 | C10: 5 | E10: A3
A11: 6 | B11: ='BudgetSum 2-4'!H18 -> 0 | C11: 6 | E11: A21
A12: 7 | B12: ='BudgetSum 2-4'!K18 -> 0 | C12: 7 | E12: A23
A13: 8 | B13: ='CashSum 5'!C4 -> 2582006 | C13: -2581998 | E13: A27
A14: 9 | B14: ='CashSum 5'!C7 -> 0 | C14: 9 | E14: A29
A15: 10 | B15: ='CashSum 5'!C10 -> 0 | C15: 10 | E15: A37
A16: 11 | B16: ='CashSum 5'!C11 -> 2582006 | C16: -2581995 | E16: Balancing Tab
A17: 12 | B17: ='CashSum 5'!C12 -> 4010683 | C17: -4010671 | E17: B16
A18: 13 | B18: ='CashSum 5'!C13 -> 2503565 | C18: -2503552 | E18: B17
A19: 14 | B19: ='CashSum 5'!C15 -> 0 | C19: 14 | E19: B25
A20: 15 | B20: ='CashSum 5'!C16 -> 0 | C20: 15 | E20: B36
A21: 16 | D21: Close 2008 | E21: AC 30 Tab
A22: 17 | B22: ='CashSum 5'!C17 -> 0 | C22: 17 | E22: B26:C26
A23: 18 | B23: ='CashSum 5'!C8 -> 0 | C23: 18
A24: 19 | D24: Close 2008
A25: 20 | D25: Close 2008
A26: 21 | B26: ='CashSum 5'!C18 -> 0 | C26: 21
A27: 22 | B27: ='CashSum 5'!C19 -> 0 | C27: 22
A28: 23 | B28: ='CashSum 5'!C20 -> 2503565 | C28: -2503542
A29: 24 | B29: ='CashSum 5'!C21 -> 1507118 | C29: -1507094
A30: 25 | B30: ='CashSum 5'!D4 -> 552077 | C30: -552052
A31: 26 | B31: ='CashSum 5'!D7 -> 0 | C31: 26
A32: 27 | B32: ='CashSum 5'!D10 -> 0 | C32: 27
A33: 28 | B33: ='CashSum 5'!D11 -> 552077 | C33: -552049
A34: 29 | B34: ='CashSum 5'!D12 -> 1068768 | C34: -1068739
A35: 30 | B35: ='CashSum 5'!D13 -> 922000 | C35: -921970
A36: 31 | B36: ='CashSum 5'!D15 -> 0 | C36: 31
A37: 32 | B37: ='CashSum 5'!D16 -> 0 | C37: 32
A38: 33 | D38: Close 2008
A39: 34 | B39: ='CashSum 5'!D17 -> 0 | C39: 34
A40: 35 | D40: Close 2008
A41: 36 | D41: Close 2008
A42: 37 | D42: Close 2008
A43: 38 | B43: ='CashSum 5'!D18 -> 0 | C43: 38
A44: 39 | B44: ='CashSum 5'!D19 -> 0 | C44: 39
A45: 40 | B45: ='CashSum 5'!D20 -> 922000 | C45: -921960
A46: 41 | B46: ='CashSum 5'!D21 -> 146768 | C46: -146727
A47: 42 | B47: ='CashSum 5'!E4 -> 342181 | C47: -342139
A48: 43 | B48: ='CashSum 5'!E10 -> 0 | C48: 43
A49: 44 | B49: ='CashSum 5'!E11 -> 342181 | C49: -342137
A50: 45 | B50: ='CashSum 5'!E12 -> 367263 | C50: -367218
A51: 46 | B51: ='CashSum 5'!E13 -> 336814 | C51: -336768
A52: 47 | B52: ='CashSum 5'!E16 -> 0 | C52: 47
A53: 48 | D53: Close 2008
A54: 49 | D54: Close 2008
A55: 50 | B55: ='CashSum 5'!D8 -> 0 | C55: 50
A56: 51 | D56: Closed 2008
A57: 52 | B57: ='CashSum 5'!E18 -> 0 | C57: 52
A58: 53 | B58: ='CashSum 5'!E19 -> 0 | C58: 53
A59: 54 | B59: ='CashSum 5'!E20 -> 336814 | C59: -336760
A60: 55 | B60: ='CashSum 5'!E21 -> 30449 | C60: -30394
A61: 56 | B61: ='CashSum 5'!F4 -> 268769 | C61: -268713
A62: 57 | B62: ='CashSum 5'!F7 -> 0 | C62: 57
A63: 58 | B63: ='CashSum 5'!F10 -> 0 | C63: 58
A64: 59 | B64: ='CashSum 5'!F11 -> 268769 | C64: -268710
A65: 60 | B65: ='CashSum 5'!F12 -> 343121 | C65: -343061
A66: 61 | B66: ='CashSum 5'!F13 -> 268500 | C66: -268439
A67: 62 | B67: ='CashSum 5'!F15 -> 0 | C67: 62
A68: 63 | B68: ='CashSum 5'!F16 -> 0 | C68: 63
A69: 64 | D69: Close 2008
A70: 65 | B70: ='CashSum 5'!F17 -> 0 | C70: 65
A71: 66 | D71: Close 2008
A72: 67 | D72: Close 2008
A73: 68 | D73: Close 2008
A74: 69 | B74: ='CashSum 5'!F18 -> 0 | C74: =A74-B74 -> 69
A75: 70 | B75: ='CashSum 5'!F19 -> 0 | C75: 70
A76: 71 | B76: ='CashSum 5'!F20 -> 268500 | C76: -268429
A77: 72 | B77: ='CashSum 5'!F21 -> 74621 | C77: -74549
A78: 73 | B78: ='CashSum 5'!G4 -> 136290 | C78: -136217
A79: 74 | B79: ='CashSum 5'!G10 -> 0 | C79: 74
A80: 75 | B80: ='CashSum 5'!G11 -> 136290 | C80: -136215
A81: 76 | B81: ='CashSum 5'!G12 -> 167393 | C81: -167317
A82: 77 | B82: ='CashSum 5'!G13 -> 86050 | C82: -85973
A83: 78 | B83: ='CashSum 5'!G16 -> 0 | C83: 78
A84: 79 | D84: Close 2008
A85: 80 | B85: ='CashSum 5'!G17 -> 0 | C85: 80
A86: 81
A87: 82 | D87: Close 2008
A88: 83 | B88: ='CashSum 5'!G18 -> 0 | C88: 83
A89: 84 | B89: ='CashSum 5'!G19 -> 0 | C89: 84
A90: 85 | B90: ='CashSum 5'!G20 -> 86050 | C90: -85965
A91: 86 | B91: ='CashSum 5'!G21 -> 81343 | C91: -81257
A92: 87 | B92: ='CashSum 5'!H4 -> 14450 | C92: -14363
A93: 88 | B93: ='CashSum 5'!H10 -> 0 | C93: 88
A94: 89 | B94: ='CashSum 5'!H11 -> 14450 | C94: -14361
A95: 90 | B95: ='CashSum 5'!H12 -> 107515 | C95: -107425
A96: 91 | B96: ='CashSum 5'!H13 -> 0 | C96: 91
A97: 92 | B97: ='CashSum 5'!H16 -> 0 | C97: 92
A98: 93 | D98: Close 2008
A99: 94 | B99: ='CashSum 5'!H19 -> 0 | C99: 94
A100: 95 | B100: ='CashSum 5'!H20 -> 0 | C100: 95
A101: 96 | B101: ='CashSum 5'!H21 -> 107515 | C101: -107419
A102: 97 | B102: ='CashSum 5'!I4 -> 15039 | C102: -14942
A103: 98 | B103: ='CashSum 5'!I7 -> 0 | C103: 98
A104: 99 | B104: ='CashSum 5'!I10 -> 0 | C104: 99
A105: 100 | B105: ='CashSum 5'!I11 -> 15039 | C105: -14939
A106: 101 | B106: ='CashSum 5'!I12 -> 144968 | C106: -144867
A107: 102 | B107: ='CashSum 5'!I13 -> 0 | C107: 102
A108: 103 | B108: ='CashSum 5'!I15 -> 0 | C108: 103
A109: 104 | D109: Close 2008
A110: 105 | B110: ='CashSum 5'!I19 -> 0 | C110: 105
A111: 106 | B111: ='CashSum 5'!I20 -> 0 | C111: 106
A112: 107 | B112: ='CashSum 5'!I21 -> 144968 | C112: -144861
A113: 108 | D113: Close 2008
A114: 109 | D114: Close 2008
A115: 110 | D115: Close 2008
A116: 111 | D116: Close 2008
A117: 112 | D117: Close 2008
A118: 113 | D118: Close 2008
A119: 114 | D119: Close 2008
A120: 115 | D120: Close 2008
A121: 116 | D121: Close 2008
A122: 117 | D122: Close 2008
A123: 118 | D123: Close 2008
A124: 119 | D124: Close 2008
A125: 120 | B125: ='CashSum 5'!K4 -> 2114839 | C125: -2114719
A126: 121 | B126: ='CashSum 5'!K10 -> 0 | C126: 121
A127: 122 | B127: ='CashSum 5'!K11 -> 2114839 | C127: -2114717
A128: 123 | B128: ='CashSum 5'!K12 -> 2200959 | C128: -2200836
A129: 124 | B129: ='CashSum 5'!K13 -> 1000 | C129: -876
A130: 125 | B130: ='CashSum 5'!K16 -> 0 | C130: 125
A131: 126 | D131: Close 2008
A132: 127 | B132: ='CashSum 5'!K17 -> 0 | C132: 127
A133: 128 | D133: Close 2008
A134: 129 | D134: Close 2008
A135: 130 | B135: ='CashSum 5'!K19 -> 0 | C135: =A135-B135 -> 130
A136: 131 | B136: ='CashSum 5'!K20 -> 1000 | C136: -869
A137: 132 | B137: ='CashSum 5'!K21 -> 2199959 | C137: -2199827
A138: 133 | D138: Close 2008
A139: 134 | D139: Close 2008
A140: 135 | D140: Close 2008
A141: 136 | D141: Close 2008
A142: 137 | D142: Close 2008
A143: 138 | B143: ='EstExp 12-20'!I115 -> 0 | C143: 138
A144: 139 | D144: Close 2008
A145: 140 | D145: Close 2008
A146: 141 | B146: ='EstExp 12-20'!L115 -> 0 | C146: 141
A147: 142 | B147: ='EstExp 12-20'!I154 -> 0 | C147: 142
A148: 143 | B148: ='EstExp 12-20'!L154 -> 0 | C148: 143
A149: 144 | B149: ='EstExp 12-20'!I177 -> 0 | C149: 144
A150: 145 | B150: ='EstExp 12-20'!L177 -> 0 | C150: 145
A151: 146 | B151: ='EstExp 12-20'!I213 -> 0 | C151: 146
A152: 147 | B152: ='EstExp 12-20'!L213 -> 0 | C152: 147
A153: 148 | B153: ='EstExp 12-20'!I291 -> 0 | C153: 148
A154: 149 | B154: ='EstExp 12-20'!L291 -> 0 | C154: 149
A155: 150 | B155: ='EstExp 12-20'!I308 -> 0 | C155: 150
A156: 151 | B156: ='EstExp 12-20'!L308 -> 0 | C156: 151
A157: 152 | B157: ='EstExp 12-20'!I452 -> 0 | C157: 152
A158: 153 | B158: ='EstExp 12-20'!L452 -> 0 | C158: 153
A159: 154 | B159: ='EstExp 12-20'!K18 -> 0 | C159: 154
A160: 155
A161: 156
A162: 157
A163: 158
A164: 159
A165: 160
A166: 161
A167: 162
A168: 163
A169: 164
A170: 165
A171: 166
A172: 167
A173: 168
A174: 169
A175: 170
A176: 171
A177: 172
A178: 173
A179: 174
A180: 175
A181: 176
A182: 177
A183: 178
A184: 179
A185: 180
A186: 181
A187: 182
A188: 183
A189: 184 | D189: Close 2008
A190: 185
A191: 186
A192: 187
A193: 188
A194: 189
A195: 190
A196: 191
A197: 192
A198: 193
A199: 194
A200: 195
... 7800 more rows
